{"text_format":"2","workbook":"xlsx","n_sheets":33,"sheets":["Completion_Due_timeZoneCode","Data_Origin_Type_Code","Distribution_Channel","Division_Code","Escalation_Status_Code","Escalated_On_timeZoneCode","Initilal_Review_Due_timeZoneCod","Onsite_Due_timeZoneCode","OnSite_Arrival_timeZoneCode","Type_Code","Requested_Closed_DateTime_timeZ","Completion_Date_timeZoneCode","Initial_Review_Completed_timeZo","Reported_On_timeZoneCode","Requested_End_Date_timeZoneCode","Requested_Start_Date_timeZoneCo","ResolutionDue_timeZoneCode","Resolved_On_timeZoneCode","Last_Agent_Interaction_Time_Zon","Next_Response_Due_Time_Zone_Cod","Last_Customer_Interaction_Time_","Priority_Code","Classification","Status_Code","Coverage_Code","Warranty_Start_Ref_date","ZactualdurationUnitCode_KUT","Land_Project","ZpotentialcurrencyCode_KUT","ZprobabilityUnitCode_KUT","Product_pillar","Source","Task_status"],"not_rendered":{"charts":0,"images":0,"macros":0,"external_links":0,"defined_names":0,"comments":0,"pivot_tables":0},"unopened":[],"bounds":{"document_bytes":16777216,"sheet_cells":100000,"run_cost":"one","rows_first":2000,"rows_last":500,"rows_between":2000,"halvings":0,"cell_chars":16384,"cell_head_chars":4096},"cells_cut":0,"cells_raw":0,"read":"whole","date_system":"1900"}

{"sheet":"Completion_Due_timeZoneCode","index":0,"n_rows":126,"n_cols":2,"rows_kept":126,"cut":false,"hidden":false,"merged":[]}
["Description","Internal Code"]
["Afghanistan","AFGHAN"]
["Alaska (Anchorage)","ALA"]
["Alaska (Aleutian)","ALAW"]
["Argentina","ART"]
["Atlantic Time (Halifax)","AST"]
["Australia Capital Territories","AUSACT"]
["Australia Lord Howe Island","AUSLHI"]
["Australia New South Wales","AUSNSW"]
["Australia Northern Territories","AUSNT"]
["Australia Queensland","AUSQLD"]
["Australia South Australia","AUSSA"]
["Australia Tasmania","AUSTAS"]
["Australia Victoria","AUSVIC"]
["Australia Western Australia","AUSWA"]
["Europe Azores","AZOREN"]
["Azerbaijan","AZT"]
["Bangladesh","BDT"]
["Brazil","BRAZIL"]
["Brazil Andes","BRZLAN"]
["Brazil East","BRZLEA"]
["Brazil West","BRZLWE"]
["Central Africa","CAT"]
["Central Europe","CET"]
["Chile","CHILE"]
["Chile Easter Island","CHILEE"]
["Chile Magallanes Region","CHILEM"]
["Central Time (Dallas)","CST"]
["Central Time No DST","CSTNO"]
["North American Central Time","CST_NA"]
["Cyprus","CYPRUS"]
["Eastern Europe","EET"]
["Egypt","EGYPT"]
["Eastern Time (New York)","EST"]
["Eastern Time (Indianapolis)","ESTNO"]
["North American Eastern Time","EST_NA"]
["Falkland Islands","FLKLND"]
["Greenwich UK with DST","GMTUK"]
["Greenland","GST"]
["Eastern Greenland","GSTE"]
["Western Greenland","GSTW"]
["Hawaii","HAW"]
["India","INDIA"]
["Iran","IRAN"]
["Iraq","IRAQ"]
["Israel","ISRAEL"]
["Japan","JAPAN"]
["Jordan","JORDAN"]
["Lebanon","LBANON"]
["Mauritius","MAU"]
["Republic of Moldova","MOLDVA"]
["Morocco","MOROCC"]
["Mountain Time (Denver)","MST"]
["Mountain Time (Phoenix)","MSTNO"]
["North American Mountain Time","MST_NA"]
["Namibia","NAT"]
["Nepal","NEPAL"]
["Newfoundland","NFDL"]
["Norfolk Islands","NORFLK"]
["Newfoundland","NST"]
["New Zealand Chatham Islands","NZCHA"]
["New Zealand","NZST"]
["Paraguay","PARAGY"]
["St Pierre and Miquelon","PIERRE"]
["Pakistan","PKT"]
["Palestine","PLST"]
["Pacific Time (Los Angeles)","PST"]
["North American Pacific Time","PST_NA"]
["Russia (UTC+02)","RUS02"]
["Russia (Moscow) (UTC+03)","RUS03"]
["Russia (UTC+04)","RUS04"]
["Russia (UTC+05)","RUS05"]
["Russia (UTC+06)","RUS06"]
["Russia (UTC+07)","RUS07"]
["Russia (UTC+08)","RUS08"]
["Russia (UTC+09)","RUS09"]
["Russia (UTC+10)","RUS10"]
["Russia (UTC+11)","RUS11"]
["Russia (UTC+12)","RUS12"]
["Russia (UTC+13)","RUS13"]
["Russia (UTC+14)","RUS14"]
["Syria","SYRIA"]
["Turkey","TURKEY"]
["England, Ireland, Scotland","UK"]
["Uruguay","URUGUA"]
["UTC+0","UTC"]
["UTC+01","UTC+1"]
["UTC+10","UTC+10"]
["UTC+11","UTC+11"]
["UTC+12","UTC+12"]
["UTC+13","UTC+13"]
["UTC+14","UTC+14"]
["UTC+02","UTC+2"]
["UTC+03","UTC+3"]
["UTC+03:30","UTC+33"]
["UTC+04","UTC+4"]
["UTC+04:30","UTC+43"]
["UTC+05","UTC+5"]
["UTC+05:30","UTC+53"]
["UTC-01","UTC+54"]
["UTC+06","UTC+6"]
["UTC+06:30","UTC+63"]
["UTC+07","UTC+7"]
["UTC+08","UTC+8"]
["UTC+08:30","UTC+83"]
["UTC+09","UTC+9"]
["UTC+09:30","UTC+93"]
["UTC-01","UTC-1"]
["UTC-10","UTC-10"]
["UTC-11","UTC-11"]
["UTC-12","UTC-12"]
["UTC-02","UTC-2"]
["UTC-03","UTC-3"]
["UTC-03:30","UTC-33"]
["UTC-04","UTC-4"]
["UTC-04:30","UTC-43"]
["UTC-05","UTC-5"]
["UTC-06","UTC-6"]
["UTC-07","UTC-7"]
["UTC-08","UTC-8"]
["UTC-8:30","UTC-83"]
["UTC-09","UTC-9"]
["UTC-09:30","UTC-93"]
["Western Africa","WAT"]
["Walldorf (CET)","WDFT"]
["Western Europe","WET"]

{"sheet":"Data_Origin_Type_Code","index":1,"n_rows":570,"n_cols":10,"rows_kept":570,"cut":false,"hidden":false,"merged":[]}
["Description","Internal Code",{"$nulls":4},"TecSup Origin"]
["Manual data entry","1",{"$nulls":5},{"$f":"VLOOKUP(G2,Data_Origin_Type_Code[#All],2,FALSE)","v":{"$error":"#N/A"}}]
["Maintenance Plan","10",null,"TecSup Origin",null,null,null,{"$f":"VLOOKUP(G3,Data_Origin_Type_Code[#All],2,FALSE)","v":{"$error":"#N/A"}}]
["Letter","11",null,"Website",null,null,null,{"$f":"VLOOKUP(G4,Data_Origin_Type_Code[#All],2,FALSE)","v":{"$error":"#N/A"}}]
["Fax","12",null,"E-Mail",null,null,null,{"$f":"VLOOKUP(G5,Data_Origin_Type_Code[#All],2,FALSE)","v":{"$error":"#N/A"}}]
["IoT","13",null,"Phone",null,null,null,{"$f":"VLOOKUP(G6,Data_Origin_Type_Code[#All],2,FALSE)","v":{"$error":"#N/A"}}]
["BoT","14",null,"Fax",null,null,"E-Mail",{"$f":"VLOOKUP(G7,Data_Origin_Type_Code[#All],2,FALSE)","v":"5"},null,"5"]
["Other","15",null,"Letter",null,null,null,{"$f":"VLOOKUP(G8,Data_Origin_Type_Code[#All],2,FALSE)","v":{"$error":"#N/A"}}]
["Feedback","16",null,"Visit",null,null,"E-Mail",{"$f":"VLOOKUP(G9,Data_Origin_Type_Code[#All],2,FALSE)","v":"5"},null,"5"]
["WorkZone","17",{"$nulls":5},{"$f":"VLOOKUP(G10,Data_Origin_Type_Code[#All],2,FALSE)","v":{"$error":"#N/A"}}]
["Website","4",{"$nulls":4},"E-Mail",{"$f":"VLOOKUP(G11,Data_Origin_Type_Code[#All],2,FALSE)","v":"5"},null,"5"]
["E-Mail","5",{"$nulls":5},{"$f":"VLOOKUP(G12,Data_Origin_Type_Code[#All],2,FALSE)","v":{"$error":"#N/A"}}]
["Social Media","6",{"$nulls":5},{"$f":"VLOOKUP(G13,Data_Origin_Type_Code[#All],2,FALSE)","v":{"$error":"#N/A"}}]
["Chat","7",{"$nulls":5},{"$f":"VLOOKUP(G14,Data_Origin_Type_Code[#All],2,FALSE)","v":{"$error":"#N/A"}}]
["Phone","8",{"$nulls":5},{"$f":"VLOOKUP(G15,Data_Origin_Type_Code[#All],2,FALSE)","v":{"$error":"#N/A"}}]
["Visit","9",{"$nulls":4},"Visit",{"$f":"VLOOKUP(G16,Data_Origin_Type_Code[#All],2,FALSE)","v":"9"},null,"9"]
[{"$nulls":7},{"$f":"VLOOKUP(G17,Data_Origin_Type_Code[#All],2,FALSE)","v":{"$error":"#N/A"}}]
[{"$nulls":6},"E-Mail",{"$f":"VLOOKUP(G18,Data_Origin_Type_Code[#All],2,FALSE)","v":"5"},null,"5"]
[{"$nulls":7},{"$f":"VLOOKUP(G19,Data_Origin_Type_Code[#All],2,FALSE)","v":{"$error":"#N/A"}}]
[{"$nulls":7},{"$f":"VLOOKUP(G20,Data_Origin_Type_Code[#All],2,FALSE)","v":{"$error":"#N/A"}}]
[{"$nulls":7},{"$f":"VLOOKUP(G21,Data_Origin_Type_Code[#All],2,FALSE)","v":{"$error":"#N/A"}}]
[{"$nulls":7},{"$f":"VLOOKUP(G22,Data_Origin_Type_Code[#All],2,FALSE)","v":{"$error":"#N/A"}}]
[{"$nulls":6},"E-Mail",{"$f":"VLOOKUP(G23,Data_Origin_Type_Code[#All],2,FALSE)","v":"5"},null,"5"]
[{"$nulls":7},{"$f":"VLOOKUP(G24,Data_Origin_Type_Code[#All],2,FALSE)","v":{"$error":"#N/A"}}]
[{"$nulls":7},{"$f":"VLOOKUP(G25,Data_Origin_Type_Code[#All],2,FALSE)","v":{"$error":"#N/A"}}]
[{"$nulls":6},"E-Mail",{"$f":"VLOOKUP(G26,Data_Origin_Type_Code[#All],2,FALSE)","v":"5"},null,"5"]
[{"$nulls":6},"E-Mail",{"$f":"VLOOKUP(G27,Data_Origin_Type_Code[#All],2,FALSE)","v":"5"},null,"5"]
[{"$nulls":6},"E-Mail",{"$f":"VLOOKUP(G28,Data_Origin_Type_Code[#All],2,FALSE)","v":"5"},null,"5"]
[{"$nulls":7},{"$f":"VLOOKUP(G29,Data_Origin_Type_Code[#All],2,FALSE)","v":{"$error":"#N/A"}}]
[{"$nulls":7},{"$f":"VLOOKUP(G30,Data_Origin_Type_Code[#All],2,FALSE)","v":{"$error":"#N/A"}}]
[{"$nulls":6},"E-Mail",{"$f":"VLOOKUP(G31,Data_Origin_Type_Code[#All],2,FALSE)","v":"5"},null,"5"]
[{"$nulls":7},{"$f":"VLOOKUP(G32,Data_Origin_Type_Code[#All],2,FALSE)","v":{"$error":"#N/A"}}]
[{"$nulls":7},{"$f":"VLOOKUP(G33,Data_Origin_Type_Code[#All],2,FALSE)","v":{"$error":"#N/A"}}]
[{"$nulls":6},"E-Mail",{"$f":"VLOOKUP(G34,Data_Origin_Type_Code[#All],2,FALSE)","v":"5"},null,"5"]
[{"$nulls":7},{"$f":"VLOOKUP(G35,Data_Origin_Type_Code[#All],2,FALSE)","v":{"$error":"#N/A"}}]
[{"$nulls":7},{"$f":"VLOOKUP(G36,Data_Origin_Type_Code[#All],2,FALSE)","v":{"$error":"#N/A"}}]
[{"$nulls":7},{"$f":"VLOOKUP(G37,Data_Origin_Type_Code[#All],2,FALSE)","v":{"$error":"#N/A"}}]
[{"$nulls":7},{"$f":"VLOOKUP(G38,Data_Origin_Type_Code[#All],2,FALSE)","v":{"$error":"#N/A"}}]
[{"$nulls":7},{"$f":"VLOOKUP(G39,Data_Origin_Type_Code[#All],2,FALSE)","v":{"$error":"#N/A"}}]
[{"$nulls":7},{"$f":"VLOOKUP(G40,Data_Origin_Type_Code[#All],2,FALSE)","v":{"$error":"#N/A"}}]
[{"$nulls":7},{"$f":"VLOOKUP(G41,Data_Origin_Type_Code[#All],2,FALSE)","v":{"$error":"#N/A"}}]
[{"$nulls":7},{"$f":"VLOOKUP(G42,Data_Origin_Type_Code[#All],2,FALSE)","v":{"$error":"#N/A"}}]
[{"$nulls":7},{"$f":"VLOOKUP(G43,Data_Origin_Type_Code[#All],2,FALSE)","v":{"$error":"#N/A"}}]
[{"$nulls":6},"E-Mail",{"$f":"VLOOKUP(G44,Data_Origin_Type_Code[#All],2,FALSE)","v":"5"},null,"5"]
[{"$nulls":6},"E-Mail",{"$f":"VLOOKUP(G45,Data_Origin_Type_Code[#All],2,FALSE)","v":"5"},null,"5"]
[{"$nulls":6},"E-Mail",{"$f":"VLOOKUP(G46,Data_Origin_Type_Code[#All],2,FALSE)","v":"5"},null,"5"]
[{"$nulls":7},{"$f":"VLOOKUP(G47,Data_Origin_Type_Code[#All],2,FALSE)","v":{"$error":"#N/A"}}]
[{"$nulls":7},{"$f":"VLOOKUP(G48,Data_Origin_Type_Code[#All],2,FALSE)","v":{"$error":"#N/A"}}]
[{"$nulls":7},{"$f":"VLOOKUP(G49,Data_Origin_Type_Code[#All],2,FALSE)","v":{"$error":"#N/A"}}]
[{"$nulls":6},"E-Mail",{"$f":"VLOOKUP(G50,Data_Origin_Type_Code[#All],2,FALSE)","v":"5"},null,"5"]
[{"$nulls":7},{"$f":"VLOOKUP(G51,Data_Origin_Type_Code[#All],2,FALSE)","v":{"$error":"#N/A"}}]
[{"$nulls":7},{"$f":"VLOOKUP(G52,Data_Origin_Type_Code[#All],2,FALSE)","v":{"$error":"#N/A"}}]
[{"$nulls":7},{"$f":"VLOOKUP(G53,Data_Origin_Type_Code[#All],2,FALSE)","v":{"$error":"#N/A"}}]
[{"$nulls":7},{"$f":"VLOOKUP(G54,Data_Origin_Type_Code[#All],2,FALSE)","v":{"$error":"#N/A"}}]
[{"$nulls":7},{"$f":"VLOOKUP(G55,Data_Origin_Type_Code[#All],2,FALSE)","v":{"$error":"#N/A"}}]
[{"$nulls":7},{"$f":"VLOOKUP(G56,Data_Origin_Type_Code[#All],2,FALSE)","v":{"$error":"#N/A"}}]
[{"$nulls":6},"E-Mail",{"$f":"VLOOKUP(G57,Data_Origin_Type_Code[#All],2,FALSE)","v":"5"},null,"5"]
[{"$nulls":7},{"$f":"VLOOKUP(G58,Data_Origin_Type_Code[#All],2,FALSE)","v":{"$error":"#N/A"}}]
[{"$nulls":7},{"$f":"VLOOKUP(G59,Data_Origin_Type_Code[#All],2,FALSE)","v":{"$error":"#N/A"}}]
[{"$nulls":7},{"$f":"VLOOKUP(G60,Data_Origin_Type_Code[#All],2,FALSE)","v":{"$error":"#N/A"}}]
[{"$nulls":7},{"$f":"VLOOKUP(G61,Data_Origin_Type_Code[#All],2,FALSE)","v":{"$error":"#N/A"}}]
[{"$nulls":7},{"$f":"VLOOKUP(G62,Data_Origin_Type_Code[#All],2,FALSE)","v":{"$error":"#N/A"}}]
[{"$nulls":7},{"$f":"VLOOKUP(G63,Data_Origin_Type_Code[#All],2,FALSE)","v":{"$error":"#N/A"}}]
[{"$nulls":7},{"$f":"VLOOKUP(G64,Data_Origin_Type_Code[#All],2,FALSE)","v":{"$error":"#N/A"}}]
[{"$nulls":7},{"$f":"VLOOKUP(G65,Data_Origin_Type_Code[#All],2,FALSE)","v":{"$error":"#N/A"}}]
[{"$nulls":7},{"$f":"VLOOKUP(G66,Data_Origin_Type_Code[#All],2,FALSE)","v":{"$error":"#N/A"}}]
[{"$nulls":7},{"$f":"VLOOKUP(G67,Data_Origin_Type_Code[#All],2,FALSE)","v":{"$error":"#N/A"}}]
[{"$nulls":7},{"$f":"VLOOKUP(G68,Data_Origin_Type_Code[#All],2,FALSE)","v":{"$error":"#N/A"}}]
[{"$nulls":6},"E-Mail",{"$f":"VLOOKUP(G69,Data_Origin_Type_Code[#All],2,FALSE)","v":"5"},null,"5"]
[{"$nulls":7},{"$f":"VLOOKUP(G70,Data_Origin_Type_Code[#All],2,FALSE)","v":{"$error":"#N/A"}}]
[{"$nulls":7},{"$f":"VLOOKUP(G71,Data_Origin_Type_Code[#All],2,FALSE)","v":{"$error":"#N/A"}}]
[{"$nulls":7},{"$f":"VLOOKUP(G72,Data_Origin_Type_Code[#All],2,FALSE)","v":{"$error":"#N/A"}}]
[{"$nulls":7},{"$f":"VLOOKUP(G73,Data_Origin_Type_Code[#All],2,FALSE)","v":{"$error":"#N/A"}}]
[{"$nulls":7},{"$f":"VLOOKUP(G74,Data_Origin_Type_Code[#All],2,FALSE)","v":{"$error":"#N/A"}}]
[{"$nulls":7},{"$f":"VLOOKUP(G75,Data_Origin_Type_Code[#All],2,FALSE)","v":{"$error":"#N/A"}}]
[{"$nulls":7},{"$f":"VLOOKUP(G76,Data_Origin_Type_Code[#All],2,FALSE)","v":{"$error":"#N/A"}}]
[{"$nulls":7},{"$f":"VLOOKUP(G77,Data_Origin_Type_Code[#All],2,FALSE)","v":{"$error":"#N/A"}}]
[{"$nulls":7},{"$f":"VLOOKUP(G78,Data_Origin_Type_Code[#All],2,FALSE)","v":{"$error":"#N/A"}}]
[{"$nulls":7},{"$f":"VLOOKUP(G79,Data_Origin_Type_Code[#All],2,FALSE)","v":{"$error":"#N/A"}}]
[{"$nulls":7},{"$f":"VLOOKUP(G80,Data_Origin_Type_Code[#All],2,FALSE)","v":{"$error":"#N/A"}}]
[{"$nulls":7},{"$f":"VLOOKUP(G81,Data_Origin_Type_Code[#All],2,FALSE)","v":{"$error":"#N/A"}}]
[{"$nulls":6},"E-Mail",{"$f":"VLOOKUP(G82,Data_Origin_Type_Code[#All],2,FALSE)","v":"5"},null,"5"]
[{"$nulls":6},"E-Mail",{"$f":"VLOOKUP(G83,Data_Origin_Type_Code[#All],2,FALSE)","v":"5"},null,"5"]
[{"$nulls":7},{"$f":"VLOOKUP(G84,Data_Origin_Type_Code[#All],2,FALSE)","v":{"$error":"#N/A"}}]
[{"$nulls":7},{"$f":"VLOOKUP(G85,Data_Origin_Type_Code[#All],2,FALSE)","v":{"$error":"#N/A"}}]
[{"$nulls":7},{"$f":"VLOOKUP(G86,Data_Origin_Type_Code[#All],2,FALSE)","v":{"$error":"#N/A"}}]
[{"$nulls":7},{"$f":"VLOOKUP(G87,Data_Origin_Type_Code[#All],2,FALSE)","v":{"$error":"#N/A"}}]
[{"$nulls":6},"E-Mail",{"$f":"VLOOKUP(G88,Data_Origin_Type_Code[#All],2,FALSE)","v":"5"},null,"5"]
[{"$nulls":7},{"$f":"VLOOKUP(G89,Data_Origin_Type_Code[#All],2,FALSE)","v":{"$error":"#N/A"}}]
[{"$nulls":7},{"$f":"VLOOKUP(G90,Data_Origin_Type_Code[#All],2,FALSE)","v":{"$error":"#N/A"}}]
[{"$nulls":7},{"$f":"VLOOKUP(G91,Data_Origin_Type_Code[#All],2,FALSE)","v":{"$error":"#N/A"}}]
[{"$nulls":7},{"$f":"VLOOKUP(G92,Data_Origin_Type_Code[#All],2,FALSE)","v":{"$error":"#N/A"}}]
[{"$nulls":7},{"$f":"VLOOKUP(G93,Data_Origin_Type_Code[#All],2,FALSE)","v":{"$error":"#N/A"}}]
[{"$nulls":7},{"$f":"VLOOKUP(G94,Data_Origin_Type_Code[#All],2,FALSE)","v":{"$error":"#N/A"}}]
[{"$nulls":7},{"$f":"VLOOKUP(G95,Data_Origin_Type_Code[#All],2,FALSE)","v":{"$error":"#N/A"}}]
[{"$nulls":7},{"$f":"VLOOKUP(G96,Data_Origin_Type_Code[#All],2,FALSE)","v":{"$error":"#N/A"}}]
[{"$nulls":7},{"$f":"VLOOKUP(G97,Data_Origin_Type_Code[#All],2,FALSE)","v":{"$error":"#N/A"}}]
[{"$nulls":7},{"$f":"VLOOKUP(G98,Data_Origin_Type_Code[#All],2,FALSE)","v":{"$error":"#N/A"}}]
[{"$nulls":7},{"$f":"VLOOKUP(G99,Data_Origin_Type_Code[#All],2,FALSE)","v":{"$error":"#N/A"}}]
[{"$nulls":7},{"$f":"VLOOKUP(G100,Data_Origin_Type_Code[#All],2,FALSE)","v":{"$error":"#N/A"}}]
[{"$nulls":7},{"$f":"VLOOKUP(G101,Data_Origin_Type_Code[#All],2,FALSE)","v":{"$error":"#N/A"}}]
[{"$nulls":7},{"$f":"VLOOKUP(G102,Data_Origin_Type_Code[#All],2,FALSE)","v":{"$error":"#N/A"}}]
[{"$nulls":7},{"$f":"VLOOKUP(G103,Data_Origin_Type_Code[#All],2,FALSE)","v":{"$error":"#N/A"}}]
[{"$nulls":7},{"$f":"VLOOKUP(G104,Data_Origin_Type_Code[#All],2,FALSE)","v":{"$error":"#N/A"}}]
[{"$nulls":7},{"$f":"VLOOKUP(G105,Data_Origin_Type_Code[#All],2,FALSE)","v":{"$error":"#N/A"}}]
[{"$nulls":6},"E-Mail",{"$f":"VLOOKUP(G106,Data_Origin_Type_Code[#All],2,FALSE)","v":"5"},null,"5"]
[{"$nulls":7},{"$f":"VLOOKUP(G107,Data_Origin_Type_Code[#All],2,FALSE)","v":{"$error":"#N/A"}}]
[{"$nulls":7},{"$f":"VLOOKUP(G108,Data_Origin_Type_Code[#All],2,FALSE)","v":{"$error":"#N/A"}}]
[{"$nulls":7},{"$f":"VLOOKUP(G109,Data_Origin_Type_Code[#All],2,FALSE)","v":{"$error":"#N/A"}}]
[{"$nulls":6},"E-Mail",{"$f":"VLOOKUP(G110,Data_Origin_Type_Code[#All],2,FALSE)","v":"5"},null,"5"]
[{"$nulls":7},{"$f":"VLOOKUP(G111,Data_Origin_Type_Code[#All],2,FALSE)","v":{"$error":"#N/A"}}]
[{"$nulls":7},{"$f":"VLOOKUP(G112,Data_Origin_Type_Code[#All],2,FALSE)","v":{"$error":"#N/A"}}]
[{"$nulls":7},{"$f":"VLOOKUP(G113,Data_Origin_Type_Code[#All],2,FALSE)","v":{"$error":"#N/A"}}]
[{"$nulls":7},{"$f":"VLOOKUP(G114,Data_Origin_Type_Code[#All],2,FALSE)","v":{"$error":"#N/A"}}]
[{"$nulls":6},"E-Mail",{"$f":"VLOOKUP(G115,Data_Origin_Type_Code[#All],2,FALSE)","v":"5"},null,"5"]
[{"$nulls":7},{"$f":"VLOOKUP(G116,Data_Origin_Type_Code[#All],2,FALSE)","v":{"$error":"#N/A"}}]
[{"$nulls":7},{"$f":"VLOOKUP(G117,Data_Origin_Type_Code[#All],2,FALSE)","v":{"$error":"#N/A"}}]
[{"$nulls":6},"E-Mail",{"$f":"VLOOKUP(G118,Data_Origin_Type_Code[#All],2,FALSE)","v":"5"},null,"5"]
[{"$nulls":7},{"$f":"VLOOKUP(G119,Data_Origin_Type_Code[#All],2,FALSE)","v":{"$error":"#N/A"}}]
[{"$nulls":6},"E-Mail",{"$f":"VLOOKUP(G120,Data_Origin_Type_Code[#All],2,FALSE)","v":"5"},null,"5"]
[{"$nulls":7},{"$f":"VLOOKUP(G121,Data_Origin_Type_Code[#All],2,FALSE)","v":{"$error":"#N/A"}}]
[{"$nulls":7},{"$f":"VLOOKUP(G122,Data_Origin_Type_Code[#All],2,FALSE)","v":{"$error":"#N/A"}}]
[{"$nulls":7},{"$f":"VLOOKUP(G123,Data_Origin_Type_Code[#All],2,FALSE)","v":{"$error":"#N/A"}}]
[{"$nulls":7},{"$f":"VLOOKUP(G124,Data_Origin_Type_Code[#All],2,FALSE)","v":{"$error":"#N/A"}}]
[{"$nulls":7},{"$f":"VLOOKUP(G125,Data_Origin_Type_Code[#All],2,FALSE)","v":{"$error":"#N/A"}}]
[{"$nulls":7},{"$f":"VLOOKUP(G126,Data_Origin_Type_Code[#All],2,FALSE)","v":{"$error":"#N/A"}}]
[{"$nulls":7},{"$f":"VLOOKUP(G127,Data_Origin_Type_Code[#All],2,FALSE)","v":{"$error":"#N/A"}}]
[{"$nulls":6},"E-Mail",{"$f":"VLOOKUP(G128,Data_Origin_Type_Code[#All],2,FALSE)","v":"5"},null,"5"]
[{"$nulls":7},{"$f":"VLOOKUP(G129,Data_Origin_Type_Code[#All],2,FALSE)","v":{"$error":"#N/A"}}]
[{"$nulls":7},{"$f":"VLOOKUP(G130,Data_Origin_Type_Code[#All],2,FALSE)","v":{"$error":"#N/A"}}]
[{"$nulls":7},{"$f":"VLOOKUP(G131,Data_Origin_Type_Code[#All],2,FALSE)","v":{"$error":"#N/A"}}]
[{"$nulls":7},{"$f":"VLOOKUP(G132,Data_Origin_Type_Code[#All],2,FALSE)","v":{"$error":"#N/A"}}]
[{"$nulls":6},"E-Mail",{"$f":"VLOOKUP(G133,Data_Origin_Type_Code[#All],2,FALSE)","v":"5"},null,"5"]
[{"$nulls":7},{"$f":"VLOOKUP(G134,Data_Origin_Type_Code[#All],2,FALSE)","v":{"$error":"#N/A"}}]
[{"$nulls":7},{"$f":"VLOOKUP(G135,Data_Origin_Type_Code[#All],2,FALSE)","v":{"$error":"#N/A"}}]
[{"$nulls":7},{"$f":"VLOOKUP(G136,Data_Origin_Type_Code[#All],2,FALSE)","v":{"$error":"#N/A"}}]
[{"$nulls":7},{"$f":"VLOOKUP(G137,Data_Origin_Type_Code[#All],2,FALSE)","v":{"$error":"#N/A"}}]
[{"$nulls":7},{"$f":"VLOOKUP(G138,Data_Origin_Type_Code[#All],2,FALSE)","v":{"$error":"#N/A"}}]
[{"$nulls":7},{"$f":"VLOOKUP(G139,Data_Origin_Type_Code[#All],2,FALSE)","v":{"$error":"#N/A"}}]
[{"$nulls":6},"Phone",{"$f":"VLOOKUP(G140,Data_Origin_Type_Code[#All],2,FALSE)","v":"8"},null,"8"]
[{"$nulls":6},"E-Mail",{"$f":"VLOOKUP(G141,Data_Origin_Type_Code[#All],2,FALSE)","v":"5"},null,"5"]
[{"$nulls":7},{"$f":"VLOOKUP(G142,Data_Origin_Type_Code[#All],2,FALSE)","v":{"$error":"#N/A"}}]
[{"$nulls":7},{"$f":"VLOOKUP(G143,Data_Origin_Type_Code[#All],2,FALSE)","v":{"$error":"#N/A"}}]
[{"$nulls":7},{"$f":"VLOOKUP(G144,Data_Origin_Type_Code[#All],2,FALSE)","v":{"$error":"#N/A"}}]
[{"$nulls":6},"E-Mail",{"$f":"VLOOKUP(G145,Data_Origin_Type_Code[#All],2,FALSE)","v":"5"},null,"5"]
[{"$nulls":7},{"$f":"VLOOKUP(G146,Data_Origin_Type_Code[#All],2,FALSE)","v":{"$error":"#N/A"}}]
[{"$nulls":6},"E-Mail",{"$f":"VLOOKUP(G147,Data_Origin_Type_Code[#All],2,FALSE)","v":"5"},null,"5"]
[{"$nulls":7},{"$f":"VLOOKUP(G148,Data_Origin_Type_Code[#All],2,FALSE)","v":{"$error":"#N/A"}}]
[{"$nulls":7},{"$f":"VLOOKUP(G149,Data_Origin_Type_Code[#All],2,FALSE)","v":{"$error":"#N/A"}}]
[{"$nulls":6},"E-Mail",{"$f":"VLOOKUP(G150,Data_Origin_Type_Code[#All],2,FALSE)","v":"5"},null,"5"]
[{"$nulls":7},{"$f":"VLOOKUP(G151,Data_Origin_Type_Code[#All],2,FALSE)","v":{"$error":"#N/A"}}]
[{"$nulls":7},{"$f":"VLOOKUP(G152,Data_Origin_Type_Code[#All],2,FALSE)","v":{"$error":"#N/A"}}]
[{"$nulls":7},{"$f":"VLOOKUP(G153,Data_Origin_Type_Code[#All],2,FALSE)","v":{"$error":"#N/A"}}]
[{"$nulls":6},"E-Mail",{"$f":"VLOOKUP(G154,Data_Origin_Type_Code[#All],2,FALSE)","v":"5"},null,"5"]
[{"$nulls":7},{"$f":"VLOOKUP(G155,Data_Origin_Type_Code[#All],2,FALSE)","v":{"$error":"#N/A"}}]
[{"$nulls":6},"E-Mail",{"$f":"VLOOKUP(G156,Data_Origin_Type_Code[#All],2,FALSE)","v":"5"},null,"5"]
[{"$nulls":7},{"$f":"VLOOKUP(G157,Data_Origin_Type_Code[#All],2,FALSE)","v":{"$error":"#N/A"}}]
[{"$nulls":7},{"$f":"VLOOKUP(G158,Data_Origin_Type_Code[#All],2,FALSE)","v":{"$error":"#N/A"}}]
[{"$nulls":7},{"$f":"VLOOKUP(G159,Data_Origin_Type_Code[#All],2,FALSE)","v":{"$error":"#N/A"}}]
[{"$nulls":7},{"$f":"VLOOKUP(G160,Data_Origin_Type_Code[#All],2,FALSE)","v":{"$error":"#N/A"}}]
[{"$nulls":7},{"$f":"VLOOKUP(G161,Data_Origin_Type_Code[#All],2,FALSE)","v":{"$error":"#N/A"}}]
[{"$nulls":7},{"$f":"VLOOKUP(G162,Data_Origin_Type_Code[#All],2,FALSE)","v":{"$error":"#N/A"}}]
[{"$nulls":7},{"$f":"VLOOKUP(G163,Data_Origin_Type_Code[#All],2,FALSE)","v":{"$error":"#N/A"}}]
[{"$nulls":6},"E-Mail",{"$f":"VLOOKUP(G164,Data_Origin_Type_Code[#All],2,FALSE)","v":"5"},null,"5"]
[{"$nulls":7},{"$f":"VLOOKUP(G165,Data_Origin_Type_Code[#All],2,FALSE)","v":{"$error":"#N/A"}}]
[{"$nulls":7},{"$f":"VLOOKUP(G166,Data_Origin_Type_Code[#All],2,FALSE)","v":{"$error":"#N/A"}}]
[{"$nulls":7},{"$f":"VLOOKUP(G167,Data_Origin_Type_Code[#All],2,FALSE)","v":{"$error":"#N/A"}}]
[{"$nulls":7},{"$f":"VLOOKUP(G168,Data_Origin_Type_Code[#All],2,FALSE)","v":{"$error":"#N/A"}}]
[{"$nulls":6},"E-Mail",{"$f":"VLOOKUP(G169,Data_Origin_Type_Code[#All],2,FALSE)","v":"5"},null,"5"]
[{"$nulls":7},{"$f":"VLOOKUP(G170,Data_Origin_Type_Code[#All],2,FALSE)","v":{"$error":"#N/A"}}]
[{"$nulls":6},"E-Mail",{"$f":"VLOOKUP(G171,Data_Origin_Type_Code[#All],2,FALSE)","v":"5"},null,"5"]
[{"$nulls":7},{"$f":"VLOOKUP(G172,Data_Origin_Type_Code[#All],2,FALSE)","v":{"$error":"#N/A"}}]
[{"$nulls":7},{"$f":"VLOOKUP(G173,Data_Origin_Type_Code[#All],2,FALSE)","v":{"$error":"#N/A"}}]
[{"$nulls":7},{"$f":"VLOOKUP(G174,Data_Origin_Type_Code[#All],2,FALSE)","v":{"$error":"#N/A"}}]
[{"$nulls":7},{"$f":"VLOOKUP(G175,Data_Origin_Type_Code[#All],2,FALSE)","v":{"$error":"#N/A"}}]
[{"$nulls":7},{"$f":"VLOOKUP(G176,Data_Origin_Type_Code[#All],2,FALSE)","v":{"$error":"#N/A"}}]
[{"$nulls":6},"E-Mail",{"$f":"VLOOKUP(G177,Data_Origin_Type_Code[#All],2,FALSE)","v":"5"},null,"5"]
[{"$nulls":7},{"$f":"VLOOKUP(G178,Data_Origin_Type_Code[#All],2,FALSE)","v":{"$error":"#N/A"}}]
[{"$nulls":7},{"$f":"VLOOKUP(G179,Data_Origin_Type_Code[#All],2,FALSE)","v":{"$error":"#N/A"}}]
[{"$nulls":7},{"$f":"VLOOKUP(G180,Data_Origin_Type_Code[#All],2,FALSE)","v":{"$error":"#N/A"}}]
[{"$nulls":7},{"$f":"VLOOKUP(G181,Data_Origin_Type_Code[#All],2,FALSE)","v":{"$error":"#N/A"}}]
[{"$nulls":7},{"$f":"VLOOKUP(G182,Data_Origin_Type_Code[#All],2,FALSE)","v":{"$error":"#N/A"}}]
[{"$nulls":7},{"$f":"VLOOKUP(G183,Data_Origin_Type_Code[#All],2,FALSE)","v":{"$error":"#N/A"}}]
[{"$nulls":7},{"$f":"VLOOKUP(G184,Data_Origin_Type_Code[#All],2,FALSE)","v":{"$error":"#N/A"}}]
[{"$nulls":7},{"$f":"VLOOKUP(G185,Data_Origin_Type_Code[#All],2,FALSE)","v":{"$error":"#N/A"}}]
[{"$nulls":7},{"$f":"VLOOKUP(G186,Data_Origin_Type_Code[#All],2,FALSE)","v":{"$error":"#N/A"}}]
[{"$nulls":7},{"$f":"VLOOKUP(G187,Data_Origin_Type_Code[#All],2,FALSE)","v":{"$error":"#N/A"}}]
[{"$nulls":6},"E-Mail",{"$f":"VLOOKUP(G188,Data_Origin_Type_Code[#All],2,FALSE)","v":"5"},null,"5"]
[{"$nulls":7},{"$f":"VLOOKUP(G189,Data_Origin_Type_Code[#All],2,FALSE)","v":{"$error":"#N/A"}}]
[{"$nulls":7},{"$f":"VLOOKUP(G190,Data_Origin_Type_Code[#All],2,FALSE)","v":{"$error":"#N/A"}}]
[{"$nulls":7},{"$f":"VLOOKUP(G191,Data_Origin_Type_Code[#All],2,FALSE)","v":{"$error":"#N/A"}}]
[{"$nulls":7},{"$f":"VLOOKUP(G192,Data_Origin_Type_Code[#All],2,FALSE)","v":{"$error":"#N/A"}}]
[{"$nulls":6},"E-Mail",{"$f":"VLOOKUP(G193,Data_Origin_Type_Code[#All],2,FALSE)","v":"5"},null,"5"]
[{"$nulls":7},{"$f":"VLOOKUP(G194,Data_Origin_Type_Code[#All],2,FALSE)","v":{"$error":"#N/A"}}]
[{"$nulls":7},{"$f":"VLOOKUP(G195,Data_Origin_Type_Code[#All],2,FALSE)","v":{"$error":"#N/A"}}]
[{"$nulls":7},{"$f":"VLOOKUP(G196,Data_Origin_Type_Code[#All],2,FALSE)","v":{"$error":"#N/A"}}]
[{"$nulls":7},{"$f":"VLOOKUP(G197,Data_Origin_Type_Code[#All],2,FALSE)","v":{"$error":"#N/A"}}]
[{"$nulls":7},{"$f":"VLOOKUP(G198,Data_Origin_Type_Code[#All],2,FALSE)","v":{"$error":"#N/A"}}]
[{"$nulls":7},{"$f":"VLOOKUP(G199,Data_Origin_Type_Code[#All],2,FALSE)","v":{"$error":"#N/A"}}]
[{"$nulls":7},{"$f":"VLOOKUP(G200,Data_Origin_Type_Code[#All],2,FALSE)","v":{"$error":"#N/A"}}]
[{"$nulls":6},"E-Mail",{"$f":"VLOOKUP(G201,Data_Origin_Type_Code[#All],2,FALSE)","v":"5"},null,"5"]
[{"$nulls":7},{"$f":"VLOOKUP(G202,Data_Origin_Type_Code[#All],2,FALSE)","v":{"$error":"#N/A"}}]
[{"$nulls":7},{"$f":"VLOOKUP(G203,Data_Origin_Type_Code[#All],2,FALSE)","v":{"$error":"#N/A"}}]
[{"$nulls":7},{"$f":"VLOOKUP(G204,Data_Origin_Type_Code[#All],2,FALSE)","v":{"$error":"#N/A"}}]
[{"$nulls":6},"E-Mail",{"$f":"VLOOKUP(G205,Data_Origin_Type_Code[#All],2,FALSE)","v":"5"},null,"5"]
[{"$nulls":7},{"$f":"VLOOKUP(G206,Data_Origin_Type_Code[#All],2,FALSE)","v":{"$error":"#N/A"}}]
[{"$nulls":6},"E-Mail",{"$f":"VLOOKUP(G207,Data_Origin_Type_Code[#All],2,FALSE)","v":"5"},null,"5"]
[{"$nulls":7},{"$f":"VLOOKUP(G208,Data_Origin_Type_Code[#All],2,FALSE)","v":{"$error":"#N/A"}}]
[{"$nulls":6},"E-Mail",{"$f":"VLOOKUP(G209,Data_Origin_Type_Code[#All],2,FALSE)","v":"5"},null,"5"]
[{"$nulls":7},{"$f":"VLOOKUP(G210,Data_Origin_Type_Code[#All],2,FALSE)","v":{"$error":"#N/A"}}]
[{"$nulls":6},"E-Mail",{"$f":"VLOOKUP(G211,Data_Origin_Type_Code[#All],2,FALSE)","v":"5"},null,"5"]
[{"$nulls":7},{"$f":"VLOOKUP(G212,Data_Origin_Type_Code[#All],2,FALSE)","v":{"$error":"#N/A"}}]
[{"$nulls":7},{"$f":"VLOOKUP(G213,Data_Origin_Type_Code[#All],2,FALSE)","v":{"$error":"#N/A"}}]
[{"$nulls":7},{"$f":"VLOOKUP(G214,Data_Origin_Type_Code[#All],2,FALSE)","v":{"$error":"#N/A"}}]
[{"$nulls":7},{"$f":"VLOOKUP(G215,Data_Origin_Type_Code[#All],2,FALSE)","v":{"$error":"#N/A"}}]
[{"$nulls":7},{"$f":"VLOOKUP(G216,Data_Origin_Type_Code[#All],2,FALSE)","v":{"$error":"#N/A"}}]
[{"$nulls":6},"E-Mail",{"$f":"VLOOKUP(G217,Data_Origin_Type_Code[#All],2,FALSE)","v":"5"},null,"5"]
[{"$nulls":7},{"$f":"VLOOKUP(G218,Data_Origin_Type_Code[#All],2,FALSE)","v":{"$error":"#N/A"}}]
[{"$nulls":6},"E-Mail",{"$f":"VLOOKUP(G219,Data_Origin_Type_Code[#All],2,FALSE)","v":"5"},null,"5"]
[{"$nulls":6},"E-Mail",{"$f":"VLOOKUP(G220,Data_Origin_Type_Code[#All],2,FALSE)","v":"5"},null,"5"]
[{"$nulls":6},"E-Mail",{"$f":"VLOOKUP(G221,Data_Origin_Type_Code[#All],2,FALSE)","v":"5"},null,"5"]
[{"$nulls":7},{"$f":"VLOOKUP(G222,Data_Origin_Type_Code[#All],2,FALSE)","v":{"$error":"#N/A"}}]
[{"$nulls":7},{"$f":"VLOOKUP(G223,Data_Origin_Type_Code[#All],2,FALSE)","v":{"$error":"#N/A"}}]
[{"$nulls":7},{"$f":"VLOOKUP(G224,Data_Origin_Type_Code[#All],2,FALSE)","v":{"$error":"#N/A"}}]
[{"$nulls":7},{"$f":"VLOOKUP(G225,Data_Origin_Type_Code[#All],2,FALSE)","v":{"$error":"#N/A"}}]
[{"$nulls":6},"E-Mail",{"$f":"VLOOKUP(G226,Data_Origin_Type_Code[#All],2,FALSE)","v":"5"},null,"5"]
[{"$nulls":7},{"$f":"VLOOKUP(G227,Data_Origin_Type_Code[#All],2,FALSE)","v":{"$error":"#N/A"}}]
[{"$nulls":7},{"$f":"VLOOKUP(G228,Data_Origin_Type_Code[#All],2,FALSE)","v":{"$error":"#N/A"}}]
[{"$nulls":7},{"$f":"VLOOKUP(G229,Data_Origin_Type_Code[#All],2,FALSE)","v":{"$error":"#N/A"}}]
[{"$nulls":7},{"$f":"VLOOKUP(G230,Data_Origin_Type_Code[#All],2,FALSE)","v":{"$error":"#N/A"}}]
[{"$nulls":7},{"$f":"VLOOKUP(G231,Data_Origin_Type_Code[#All],2,FALSE)","v":{"$error":"#N/A"}}]
[{"$nulls":7},{"$f":"VLOOKUP(G232,Data_Origin_Type_Code[#All],2,FALSE)","v":{"$error":"#N/A"}}]
[{"$nulls":7},{"$f":"VLOOKUP(G233,Data_Origin_Type_Code[#All],2,FALSE)","v":{"$error":"#N/A"}}]
[{"$nulls":6},"E-Mail",{"$f":"VLOOKUP(G234,Data_Origin_Type_Code[#All],2,FALSE)","v":"5"},null,"5"]
[{"$nulls":7},{"$f":"VLOOKUP(G235,Data_Origin_Type_Code[#All],2,FALSE)","v":{"$error":"#N/A"}}]
[{"$nulls":7},{"$f":"VLOOKUP(G236,Data_Origin_Type_Code[#All],2,FALSE)","v":{"$error":"#N/A"}}]
[{"$nulls":6},"E-Mail",{"$f":"VLOOKUP(G237,Data_Origin_Type_Code[#All],2,FALSE)","v":"5"},null,"5"]
[{"$nulls":6},"E-Mail",{"$f":"VLOOKUP(G238,Data_Origin_Type_Code[#All],2,FALSE)","v":"5"},null,"5"]
[{"$nulls":7},{"$f":"VLOOKUP(G239,Data_Origin_Type_Code[#All],2,FALSE)","v":{"$error":"#N/A"}}]
[{"$nulls":7},{"$f":"VLOOKUP(G240,Data_Origin_Type_Code[#All],2,FALSE)","v":{"$error":"#N/A"}}]
[{"$nulls":7},{"$f":"VLOOKUP(G241,Data_Origin_Type_Code[#All],2,FALSE)","v":{"$error":"#N/A"}}]
[{"$nulls":6},"E-Mail",{"$f":"VLOOKUP(G242,Data_Origin_Type_Code[#All],2,FALSE)","v":"5"},null,"5"]
[{"$nulls":6},"E-Mail",{"$f":"VLOOKUP(G243,Data_Origin_Type_Code[#All],2,FALSE)","v":"5"},null,"5"]
[{"$nulls":6},"E-Mail",{"$f":"VLOOKUP(G244,Data_Origin_Type_Code[#All],2,FALSE)","v":"5"},null,"5"]
[{"$nulls":7},{"$f":"VLOOKUP(G245,Data_Origin_Type_Code[#All],2,FALSE)","v":{"$error":"#N/A"}}]
[{"$nulls":7},{"$f":"VLOOKUP(G246,Data_Origin_Type_Code[#All],2,FALSE)","v":{"$error":"#N/A"}}]
[{"$nulls":6},"E-Mail",{"$f":"VLOOKUP(G247,Data_Origin_Type_Code[#All],2,FALSE)","v":"5"},null,"5"]
[{"$nulls":7},{"$f":"VLOOKUP(G248,Data_Origin_Type_Code[#All],2,FALSE)","v":{"$error":"#N/A"}}]
[{"$nulls":7},{"$f":"VLOOKUP(G249,Data_Origin_Type_Code[#All],2,FALSE)","v":{"$error":"#N/A"}}]
[{"$nulls":7},{"$f":"VLOOKUP(G250,Data_Origin_Type_Code[#All],2,FALSE)","v":{"$error":"#N/A"}}]
[{"$nulls":7},{"$f":"VLOOKUP(G251,Data_Origin_Type_Code[#All],2,FALSE)","v":{"$error":"#N/A"}}]
[{"$nulls":7},{"$f":"VLOOKUP(G252,Data_Origin_Type_Code[#All],2,FALSE)","v":{"$error":"#N/A"}}]
[{"$nulls":7},{"$f":"VLOOKUP(G253,Data_Origin_Type_Code[#All],2,FALSE)","v":{"$error":"#N/A"}}]
[{"$nulls":7},{"$f":"VLOOKUP(G254,Data_Origin_Type_Code[#All],2,FALSE)","v":{"$error":"#N/A"}}]
[{"$nulls":7},{"$f":"VLOOKUP(G255,Data_Origin_Type_Code[#All],2,FALSE)","v":{"$error":"#N/A"}}]
[{"$nulls":6},"E-Mail",{"$f":"VLOOKUP(G256,Data_Origin_Type_Code[#All],2,FALSE)","v":"5"},null,"5"]
[{"$nulls":7},{"$f":"VLOOKUP(G257,Data_Origin_Type_Code[#All],2,FALSE)","v":{"$error":"#N/A"}}]
[{"$nulls":7},{"$f":"VLOOKUP(G258,Data_Origin_Type_Code[#All],2,FALSE)","v":{"$error":"#N/A"}}]
[{"$nulls":6},"E-Mail",{"$f":"VLOOKUP(G259,Data_Origin_Type_Code[#All],2,FALSE)","v":"5"},null,"5"]
[{"$nulls":6},"E-Mail",{"$f":"VLOOKUP(G260,Data_Origin_Type_Code[#All],2,FALSE)","v":"5"},null,"5"]
[{"$nulls":7},{"$f":"VLOOKUP(G261,Data_Origin_Type_Code[#All],2,FALSE)","v":{"$error":"#N/A"}}]
[{"$nulls":6},"E-Mail",{"$f":"VLOOKUP(G262,Data_Origin_Type_Code[#All],2,FALSE)","v":"5"},null,"5"]
[{"$nulls":7},{"$f":"VLOOKUP(G263,Data_Origin_Type_Code[#All],2,FALSE)","v":{"$error":"#N/A"}}]
[{"$nulls":7},{"$f":"VLOOKUP(G264,Data_Origin_Type_Code[#All],2,FALSE)","v":{"$error":"#N/A"}}]
[{"$nulls":6},"E-Mail",{"$f":"VLOOKUP(G265,Data_Origin_Type_Code[#All],2,FALSE)","v":"5"},null,"5"]
[{"$nulls":7},{"$f":"VLOOKUP(G266,Data_Origin_Type_Code[#All],2,FALSE)","v":{"$error":"#N/A"}}]
[{"$nulls":7},{"$f":"VLOOKUP(G267,Data_Origin_Type_Code[#All],2,FALSE)","v":{"$error":"#N/A"}}]
[{"$nulls":6},"E-Mail",{"$f":"VLOOKUP(G268,Data_Origin_Type_Code[#All],2,FALSE)","v":"5"},null,"5"]
[{"$nulls":7},{"$f":"VLOOKUP(G269,Data_Origin_Type_Code[#All],2,FALSE)","v":{"$error":"#N/A"}}]
[{"$nulls":7},{"$f":"VLOOKUP(G270,Data_Origin_Type_Code[#All],2,FALSE)","v":{"$error":"#N/A"}}]
[{"$nulls":7},{"$f":"VLOOKUP(G271,Data_Origin_Type_Code[#All],2,FALSE)","v":{"$error":"#N/A"}}]
[{"$nulls":7},{"$f":"VLOOKUP(G272,Data_Origin_Type_Code[#All],2,FALSE)","v":{"$error":"#N/A"}}]
[{"$nulls":7},{"$f":"VLOOKUP(G273,Data_Origin_Type_Code[#All],2,FALSE)","v":{"$error":"#N/A"}}]
[{"$nulls":7},{"$f":"VLOOKUP(G274,Data_Origin_Type_Code[#All],2,FALSE)","v":{"$error":"#N/A"}}]
[{"$nulls":6},"E-Mail",{"$f":"VLOOKUP(G275,Data_Origin_Type_Code[#All],2,FALSE)","v":"5"},null,"5"]
[{"$nulls":7},{"$f":"VLOOKUP(G276,Data_Origin_Type_Code[#All],2,FALSE)","v":{"$error":"#N/A"}}]
[{"$nulls":7},{"$f":"VLOOKUP(G277,Data_Origin_Type_Code[#All],2,FALSE)","v":{"$error":"#N/A"}}]
[{"$nulls":6},"E-Mail",{"$f":"VLOOKUP(G278,Data_Origin_Type_Code[#All],2,FALSE)","v":"5"},null,"5"]
[{"$nulls":7},{"$f":"VLOOKUP(G279,Data_Origin_Type_Code[#All],2,FALSE)","v":{"$error":"#N/A"}}]
[{"$nulls":7},{"$f":"VLOOKUP(G280,Data_Origin_Type_Code[#All],2,FALSE)","v":{"$error":"#N/A"}}]
[{"$nulls":7},{"$f":"VLOOKUP(G281,Data_Origin_Type_Code[#All],2,FALSE)","v":{"$error":"#N/A"}}]
[{"$nulls":7},{"$f":"VLOOKUP(G282,Data_Origin_Type_Code[#All],2,FALSE)","v":{"$error":"#N/A"}}]
[{"$nulls":7},{"$f":"VLOOKUP(G283,Data_Origin_Type_Code[#All],2,FALSE)","v":{"$error":"#N/A"}}]
[{"$nulls":7},{"$f":"VLOOKUP(G284,Data_Origin_Type_Code[#All],2,FALSE)","v":{"$error":"#N/A"}}]
[{"$nulls":7},{"$f":"VLOOKUP(G285,Data_Origin_Type_Code[#All],2,FALSE)","v":{"$error":"#N/A"}}]
[{"$nulls":6},"Phone",{"$f":"VLOOKUP(G286,Data_Origin_Type_Code[#All],2,FALSE)","v":"8"},null,"8"]
[{"$nulls":7},{"$f":"VLOOKUP(G287,Data_Origin_Type_Code[#All],2,FALSE)","v":{"$error":"#N/A"}}]
[{"$nulls":7},{"$f":"VLOOKUP(G288,Data_Origin_Type_Code[#All],2,FALSE)","v":{"$error":"#N/A"}}]
[{"$nulls":7},{"$f":"VLOOKUP(G289,Data_Origin_Type_Code[#All],2,FALSE)","v":{"$error":"#N/A"}}]
[{"$nulls":7},{"$f":"VLOOKUP(G290,Data_Origin_Type_Code[#All],2,FALSE)","v":{"$error":"#N/A"}}]
[{"$nulls":7},{"$f":"VLOOKUP(G291,Data_Origin_Type_Code[#All],2,FALSE)","v":{"$error":"#N/A"}}]
[{"$nulls":7},{"$f":"VLOOKUP(G292,Data_Origin_Type_Code[#All],2,FALSE)","v":{"$error":"#N/A"}}]
[{"$nulls":7},{"$f":"VLOOKUP(G293,Data_Origin_Type_Code[#All],2,FALSE)","v":{"$error":"#N/A"}}]
[{"$nulls":6},"E-Mail",{"$f":"VLOOKUP(G294,Data_Origin_Type_Code[#All],2,FALSE)","v":"5"},null,"5"]
[{"$nulls":7},{"$f":"VLOOKUP(G295,Data_Origin_Type_Code[#All],2,FALSE)","v":{"$error":"#N/A"}}]
[{"$nulls":7},{"$f":"VLOOKUP(G296,Data_Origin_Type_Code[#All],2,FALSE)","v":{"$error":"#N/A"}}]
[{"$nulls":6},"E-Mail",{"$f":"VLOOKUP(G297,Data_Origin_Type_Code[#All],2,FALSE)","v":"5"},null,"5"]
[{"$nulls":7},{"$f":"VLOOKUP(G298,Data_Origin_Type_Code[#All],2,FALSE)","v":{"$error":"#N/A"}}]
[{"$nulls":7},{"$f":"VLOOKUP(G299,Data_Origin_Type_Code[#All],2,FALSE)","v":{"$error":"#N/A"}}]
[{"$nulls":7},{"$f":"VLOOKUP(G300,Data_Origin_Type_Code[#All],2,FALSE)","v":{"$error":"#N/A"}}]
[{"$nulls":6},"E-Mail",{"$f":"VLOOKUP(G301,Data_Origin_Type_Code[#All],2,FALSE)","v":"5"},null,"5"]
[{"$nulls":6},"E-Mail",{"$f":"VLOOKUP(G302,Data_Origin_Type_Code[#All],2,FALSE)","v":"5"},null,"5"]
[{"$nulls":7},{"$f":"VLOOKUP(G303,Data_Origin_Type_Code[#All],2,FALSE)","v":{"$error":"#N/A"}}]
[{"$nulls":7},{"$f":"VLOOKUP(G304,Data_Origin_Type_Code[#All],2,FALSE)","v":{"$error":"#N/A"}}]
[{"$nulls":6},"E-Mail",{"$f":"VLOOKUP(G305,Data_Origin_Type_Code[#All],2,FALSE)","v":"5"},null,"5"]
[{"$nulls":7},{"$f":"VLOOKUP(G306,Data_Origin_Type_Code[#All],2,FALSE)","v":{"$error":"#N/A"}}]
[{"$nulls":6},"E-Mail",{"$f":"VLOOKUP(G307,Data_Origin_Type_Code[#All],2,FALSE)","v":"5"},null,"5"]
[{"$nulls":6},"E-Mail",{"$f":"VLOOKUP(G308,Data_Origin_Type_Code[#All],2,FALSE)","v":"5"},null,"5"]
[{"$nulls":7},{"$f":"VLOOKUP(G309,Data_Origin_Type_Code[#All],2,FALSE)","v":{"$error":"#N/A"}}]
[{"$nulls":7},{"$f":"VLOOKUP(G310,Data_Origin_Type_Code[#All],2,FALSE)","v":{"$error":"#N/A"}}]
[{"$nulls":7},{"$f":"VLOOKUP(G311,Data_Origin_Type_Code[#All],2,FALSE)","v":{"$error":"#N/A"}}]
[{"$nulls":7},{"$f":"VLOOKUP(G312,Data_Origin_Type_Code[#All],2,FALSE)","v":{"$error":"#N/A"}}]
[{"$nulls":7},{"$f":"VLOOKUP(G313,Data_Origin_Type_Code[#All],2,FALSE)","v":{"$error":"#N/A"}}]
[{"$nulls":6},"E-Mail",{"$f":"VLOOKUP(G314,Data_Origin_Type_Code[#All],2,FALSE)","v":"5"},null,"5"]
[{"$nulls":6},"E-Mail",{"$f":"VLOOKUP(G315,Data_Origin_Type_Code[#All],2,FALSE)","v":"5"},null,"5"]
[{"$nulls":7},{"$f":"VLOOKUP(G316,Data_Origin_Type_Code[#All],2,FALSE)","v":{"$error":"#N/A"}}]
[{"$nulls":7},{"$f":"VLOOKUP(G317,Data_Origin_Type_Code[#All],2,FALSE)","v":{"$error":"#N/A"}}]
[{"$nulls":7},{"$f":"VLOOKUP(G318,Data_Origin_Type_Code[#All],2,FALSE)","v":{"$error":"#N/A"}}]
[{"$nulls":6},"E-Mail",{"$f":"VLOOKUP(G319,Data_Origin_Type_Code[#All],2,FALSE)","v":"5"},null,"5"]
[{"$nulls":7},{"$f":"VLOOKUP(G320,Data_Origin_Type_Code[#All],2,FALSE)","v":{"$error":"#N/A"}}]
[{"$nulls":7},{"$f":"VLOOKUP(G321,Data_Origin_Type_Code[#All],2,FALSE)","v":{"$error":"#N/A"}}]
[{"$nulls":7},{"$f":"VLOOKUP(G322,Data_Origin_Type_Code[#All],2,FALSE)","v":{"$error":"#N/A"}}]
[{"$nulls":7},{"$f":"VLOOKUP(G323,Data_Origin_Type_Code[#All],2,FALSE)","v":{"$error":"#N/A"}}]
[{"$nulls":7},{"$f":"VLOOKUP(G324,Data_Origin_Type_Code[#All],2,FALSE)","v":{"$error":"#N/A"}}]
[{"$nulls":7},{"$f":"VLOOKUP(G325,Data_Origin_Type_Code[#All],2,FALSE)","v":{"$error":"#N/A"}}]
[{"$nulls":7},{"$f":"VLOOKUP(G326,Data_Origin_Type_Code[#All],2,FALSE)","v":{"$error":"#N/A"}}]
[{"$nulls":7},{"$f":"VLOOKUP(G327,Data_Origin_Type_Code[#All],2,FALSE)","v":{"$error":"#N/A"}}]
[{"$nulls":7},{"$f":"VLOOKUP(G328,Data_Origin_Type_Code[#All],2,FALSE)","v":{"$error":"#N/A"}}]
[{"$nulls":6},"E-Mail",{"$f":"VLOOKUP(G329,Data_Origin_Type_Code[#All],2,FALSE)","v":"5"},null,"5"]
[{"$nulls":6},"E-Mail",{"$f":"VLOOKUP(G330,Data_Origin_Type_Code[#All],2,FALSE)","v":"5"},null,"5"]
[{"$nulls":6},"E-Mail",{"$f":"VLOOKUP(G331,Data_Origin_Type_Code[#All],2,FALSE)","v":"5"},null,"5"]
[{"$nulls":6},"E-Mail",{"$f":"VLOOKUP(G332,Data_Origin_Type_Code[#All],2,FALSE)","v":"5"},null,"5"]
[{"$nulls":6},"E-Mail",{"$f":"VLOOKUP(G333,Data_Origin_Type_Code[#All],2,FALSE)","v":"5"},null,"5"]
[{"$nulls":7},{"$f":"VLOOKUP(G334,Data_Origin_Type_Code[#All],2,FALSE)","v":{"$error":"#N/A"}}]
[{"$nulls":7},{"$f":"VLOOKUP(G335,Data_Origin_Type_Code[#All],2,FALSE)","v":{"$error":"#N/A"}}]
[{"$nulls":7},{"$f":"VLOOKUP(G336,Data_Origin_Type_Code[#All],2,FALSE)","v":{"$error":"#N/A"}}]
[{"$nulls":7},{"$f":"VLOOKUP(G337,Data_Origin_Type_Code[#All],2,FALSE)","v":{"$error":"#N/A"}}]
[{"$nulls":6},"E-Mail",{"$f":"VLOOKUP(G338,Data_Origin_Type_Code[#All],2,FALSE)","v":"5"},null,"5"]
[{"$nulls":6},"E-Mail",{"$f":"VLOOKUP(G339,Data_Origin_Type_Code[#All],2,FALSE)","v":"5"},null,"5"]
[{"$nulls":6},"E-Mail",{"$f":"VLOOKUP(G340,Data_Origin_Type_Code[#All],2,FALSE)","v":"5"},null,"5"]
[{"$nulls":6},"E-Mail",{"$f":"VLOOKUP(G341,Data_Origin_Type_Code[#All],2,FALSE)","v":"5"},null,"5"]
[{"$nulls":7},{"$f":"VLOOKUP(G342,Data_Origin_Type_Code[#All],2,FALSE)","v":{"$error":"#N/A"}}]
[{"$nulls":7},{"$f":"VLOOKUP(G343,Data_Origin_Type_Code[#All],2,FALSE)","v":{"$error":"#N/A"}}]
[{"$nulls":7},{"$f":"VLOOKUP(G344,Data_Origin_Type_Code[#All],2,FALSE)","v":{"$error":"#N/A"}}]
[{"$nulls":7},{"$f":"VLOOKUP(G345,Data_Origin_Type_Code[#All],2,FALSE)","v":{"$error":"#N/A"}}]
[{"$nulls":7},{"$f":"VLOOKUP(G346,Data_Origin_Type_Code[#All],2,FALSE)","v":{"$error":"#N/A"}}]
[{"$nulls":7},{"$f":"VLOOKUP(G347,Data_Origin_Type_Code[#All],2,FALSE)","v":{"$error":"#N/A"}}]
[{"$nulls":7},{"$f":"VLOOKUP(G348,Data_Origin_Type_Code[#All],2,FALSE)","v":{"$error":"#N/A"}}]
[{"$nulls":6},"E-Mail",{"$f":"VLOOKUP(G349,Data_Origin_Type_Code[#All],2,FALSE)","v":"5"},null,"5"]
[{"$nulls":6},"E-Mail",{"$f":"VLOOKUP(G350,Data_Origin_Type_Code[#All],2,FALSE)","v":"5"},null,"5"]
[{"$nulls":7},{"$f":"VLOOKUP(G351,Data_Origin_Type_Code[#All],2,FALSE)","v":{"$error":"#N/A"}}]
[{"$nulls":6},"E-Mail",{"$f":"VLOOKUP(G352,Data_Origin_Type_Code[#All],2,FALSE)","v":"5"},null,"5"]
[{"$nulls":7},{"$f":"VLOOKUP(G353,Data_Origin_Type_Code[#All],2,FALSE)","v":{"$error":"#N/A"}}]
[{"$nulls":7},{"$f":"VLOOKUP(G354,Data_Origin_Type_Code[#All],2,FALSE)","v":{"$error":"#N/A"}}]
[{"$nulls":7},{"$f":"VLOOKUP(G355,Data_Origin_Type_Code[#All],2,FALSE)","v":{"$error":"#N/A"}}]
[{"$nulls":7},{"$f":"VLOOKUP(G356,Data_Origin_Type_Code[#All],2,FALSE)","v":{"$error":"#N/A"}}]
[{"$nulls":7},{"$f":"VLOOKUP(G357,Data_Origin_Type_Code[#All],2,FALSE)","v":{"$error":"#N/A"}}]
[{"$nulls":6},"E-Mail",{"$f":"VLOOKUP(G358,Data_Origin_Type_Code[#All],2,FALSE)","v":"5"},null,"5"]
[{"$nulls":6},"E-Mail",{"$f":"VLOOKUP(G359,Data_Origin_Type_Code[#All],2,FALSE)","v":"5"},null,"5"]
[{"$nulls":7},{"$f":"VLOOKUP(G360,Data_Origin_Type_Code[#All],2,FALSE)","v":{"$error":"#N/A"}}]
[{"$nulls":7},{"$f":"VLOOKUP(G361,Data_Origin_Type_Code[#All],2,FALSE)","v":{"$error":"#N/A"}}]
[{"$nulls":6},"E-Mail",{"$f":"VLOOKUP(G362,Data_Origin_Type_Code[#All],2,FALSE)","v":"5"},null,"5"]
[{"$nulls":7},{"$f":"VLOOKUP(G363,Data_Origin_Type_Code[#All],2,FALSE)","v":{"$error":"#N/A"}}]
[{"$nulls":7},{"$f":"VLOOKUP(G364,Data_Origin_Type_Code[#All],2,FALSE)","v":{"$error":"#N/A"}}]
[{"$nulls":7},{"$f":"VLOOKUP(G365,Data_Origin_Type_Code[#All],2,FALSE)","v":{"$error":"#N/A"}}]
[{"$nulls":7},{"$f":"VLOOKUP(G366,Data_Origin_Type_Code[#All],2,FALSE)","v":{"$error":"#N/A"}}]
[{"$nulls":7},{"$f":"VLOOKUP(G367,Data_Origin_Type_Code[#All],2,FALSE)","v":{"$error":"#N/A"}}]
[{"$nulls":7},{"$f":"VLOOKUP(G368,Data_Origin_Type_Code[#All],2,FALSE)","v":{"$error":"#N/A"}}]
[{"$nulls":6},"E-Mail",{"$f":"VLOOKUP(G369,Data_Origin_Type_Code[#All],2,FALSE)","v":"5"},null,"5"]
[{"$nulls":7},{"$f":"VLOOKUP(G370,Data_Origin_Type_Code[#All],2,FALSE)","v":{"$error":"#N/A"}}]
[{"$nulls":6},"E-Mail",{"$f":"VLOOKUP(G371,Data_Origin_Type_Code[#All],2,FALSE)","v":"5"},null,"5"]
[{"$nulls":6},"E-Mail",{"$f":"VLOOKUP(G372,Data_Origin_Type_Code[#All],2,FALSE)","v":"5"},null,"5"]
[{"$nulls":7},{"$f":"VLOOKUP(G373,Data_Origin_Type_Code[#All],2,FALSE)","v":{"$error":"#N/A"}}]
[{"$nulls":6},"E-Mail",{"$f":"VLOOKUP(G374,Data_Origin_Type_Code[#All],2,FALSE)","v":"5"},null,"5"]
[{"$nulls":7},{"$f":"VLOOKUP(G375,Data_Origin_Type_Code[#All],2,FALSE)","v":{"$error":"#N/A"}}]
[{"$nulls":7},{"$f":"VLOOKUP(G376,Data_Origin_Type_Code[#All],2,FALSE)","v":{"$error":"#N/A"}}]
[{"$nulls":7},{"$f":"VLOOKUP(G377,Data_Origin_Type_Code[#All],2,FALSE)","v":{"$error":"#N/A"}}]
[{"$nulls":7},{"$f":"VLOOKUP(G378,Data_Origin_Type_Code[#All],2,FALSE)","v":{"$error":"#N/A"}}]
[{"$nulls":7},{"$f":"VLOOKUP(G379,Data_Origin_Type_Code[#All],2,FALSE)","v":{"$error":"#N/A"}}]
[{"$nulls":7},{"$f":"VLOOKUP(G380,Data_Origin_Type_Code[#All],2,FALSE)","v":{"$error":"#N/A"}}]
[{"$nulls":6},"E-Mail",{"$f":"VLOOKUP(G381,Data_Origin_Type_Code[#All],2,FALSE)","v":"5"},null,"5"]
[{"$nulls":6},"E-Mail",{"$f":"VLOOKUP(G382,Data_Origin_Type_Code[#All],2,FALSE)","v":"5"},null,"5"]
[{"$nulls":7},{"$f":"VLOOKUP(G383,Data_Origin_Type_Code[#All],2,FALSE)","v":{"$error":"#N/A"}}]
[{"$nulls":7},{"$f":"VLOOKUP(G384,Data_Origin_Type_Code[#All],2,FALSE)","v":{"$error":"#N/A"}}]
[{"$nulls":7},{"$f":"VLOOKUP(G385,Data_Origin_Type_Code[#All],2,FALSE)","v":{"$error":"#N/A"}}]
[{"$nulls":7},{"$f":"VLOOKUP(G386,Data_Origin_Type_Code[#All],2,FALSE)","v":{"$error":"#N/A"}}]
[{"$nulls":7},{"$f":"VLOOKUP(G387,Data_Origin_Type_Code[#All],2,FALSE)","v":{"$error":"#N/A"}}]
[{"$nulls":7},{"$f":"VLOOKUP(G388,Data_Origin_Type_Code[#All],2,FALSE)","v":{"$error":"#N/A"}}]
[{"$nulls":7},{"$f":"VLOOKUP(G389,Data_Origin_Type_Code[#All],2,FALSE)","v":{"$error":"#N/A"}}]
[{"$nulls":7},{"$f":"VLOOKUP(G390,Data_Origin_Type_Code[#All],2,FALSE)","v":{"$error":"#N/A"}}]
[{"$nulls":7},{"$f":"VLOOKUP(G391,Data_Origin_Type_Code[#All],2,FALSE)","v":{"$error":"#N/A"}}]
[{"$nulls":7},{"$f":"VLOOKUP(G392,Data_Origin_Type_Code[#All],2,FALSE)","v":{"$error":"#N/A"}}]
[{"$nulls":7},{"$f":"VLOOKUP(G393,Data_Origin_Type_Code[#All],2,FALSE)","v":{"$error":"#N/A"}}]
[{"$nulls":7},{"$f":"VLOOKUP(G394,Data_Origin_Type_Code[#All],2,FALSE)","v":{"$error":"#N/A"}}]
[{"$nulls":7},{"$f":"VLOOKUP(G395,Data_Origin_Type_Code[#All],2,FALSE)","v":{"$error":"#N/A"}}]
[{"$nulls":7},{"$f":"VLOOKUP(G396,Data_Origin_Type_Code[#All],2,FALSE)","v":{"$error":"#N/A"}}]
[{"$nulls":7},{"$f":"VLOOKUP(G397,Data_Origin_Type_Code[#All],2,FALSE)","v":{"$error":"#N/A"}}]
[{"$nulls":7},{"$f":"VLOOKUP(G398,Data_Origin_Type_Code[#All],2,FALSE)","v":{"$error":"#N/A"}}]
[{"$nulls":7},{"$f":"VLOOKUP(G399,Data_Origin_Type_Code[#All],2,FALSE)","v":{"$error":"#N/A"}}]
[{"$nulls":7},{"$f":"VLOOKUP(G400,Data_Origin_Type_Code[#All],2,FALSE)","v":{"$error":"#N/A"}}]
[{"$nulls":7},{"$f":"VLOOKUP(G401,Data_Origin_Type_Code[#All],2,FALSE)","v":{"$error":"#N/A"}}]
[{"$nulls":7},{"$f":"VLOOKUP(G402,Data_Origin_Type_Code[#All],2,FALSE)","v":{"$error":"#N/A"}}]
[{"$nulls":7},{"$f":"VLOOKUP(G403,Data_Origin_Type_Code[#All],2,FALSE)","v":{"$error":"#N/A"}}]
[{"$nulls":7},{"$f":"VLOOKUP(G404,Data_Origin_Type_Code[#All],2,FALSE)","v":{"$error":"#N/A"}}]
[{"$nulls":7},{"$f":"VLOOKUP(G405,Data_Origin_Type_Code[#All],2,FALSE)","v":{"$error":"#N/A"}}]
[{"$nulls":7},{"$f":"VLOOKUP(G406,Data_Origin_Type_Code[#All],2,FALSE)","v":{"$error":"#N/A"}}]
[{"$nulls":7},{"$f":"VLOOKUP(G407,Data_Origin_Type_Code[#All],2,FALSE)","v":{"$error":"#N/A"}}]
[{"$nulls":7},{"$f":"VLOOKUP(G408,Data_Origin_Type_Code[#All],2,FALSE)","v":{"$error":"#N/A"}}]
[{"$nulls":7},{"$f":"VLOOKUP(G409,Data_Origin_Type_Code[#All],2,FALSE)","v":{"$error":"#N/A"}}]
[{"$nulls":7},{"$f":"VLOOKUP(G410,Data_Origin_Type_Code[#All],2,FALSE)","v":{"$error":"#N/A"}}]
[{"$nulls":7},{"$f":"VLOOKUP(G411,Data_Origin_Type_Code[#All],2,FALSE)","v":{"$error":"#N/A"}}]
[{"$nulls":7},{"$f":"VLOOKUP(G412,Data_Origin_Type_Code[#All],2,FALSE)","v":{"$error":"#N/A"}}]
[{"$nulls":7},{"$f":"VLOOKUP(G413,Data_Origin_Type_Code[#All],2,FALSE)","v":{"$error":"#N/A"}}]
[{"$nulls":7},{"$f":"VLOOKUP(G414,Data_Origin_Type_Code[#All],2,FALSE)","v":{"$error":"#N/A"}}]
[{"$nulls":7},{"$f":"VLOOKUP(G415,Data_Origin_Type_Code[#All],2,FALSE)","v":{"$error":"#N/A"}}]
[{"$nulls":7},{"$f":"VLOOKUP(G416,Data_Origin_Type_Code[#All],2,FALSE)","v":{"$error":"#N/A"}}]
[{"$nulls":7},{"$f":"VLOOKUP(G417,Data_Origin_Type_Code[#All],2,FALSE)","v":{"$error":"#N/A"}}]
[{"$nulls":7},{"$f":"VLOOKUP(G418,Data_Origin_Type_Code[#All],2,FALSE)","v":{"$error":"#N/A"}}]
[{"$nulls":7},{"$f":"VLOOKUP(G419,Data_Origin_Type_Code[#All],2,FALSE)","v":{"$error":"#N/A"}}]
[{"$nulls":7},{"$f":"VLOOKUP(G420,Data_Origin_Type_Code[#All],2,FALSE)","v":{"$error":"#N/A"}}]
[{"$nulls":7},{"$f":"VLOOKUP(G421,Data_Origin_Type_Code[#All],2,FALSE)","v":{"$error":"#N/A"}}]
[{"$nulls":7},{"$f":"VLOOKUP(G422,Data_Origin_Type_Code[#All],2,FALSE)","v":{"$error":"#N/A"}}]
[{"$nulls":7},{"$f":"VLOOKUP(G423,Data_Origin_Type_Code[#All],2,FALSE)","v":{"$error":"#N/A"}}]
[{"$nulls":7},{"$f":"VLOOKUP(G424,Data_Origin_Type_Code[#All],2,FALSE)","v":{"$error":"#N/A"}}]
[{"$nulls":7},{"$f":"VLOOKUP(G425,Data_Origin_Type_Code[#All],2,FALSE)","v":{"$error":"#N/A"}}]
[{"$nulls":7},{"$f":"VLOOKUP(G426,Data_Origin_Type_Code[#All],2,FALSE)","v":{"$error":"#N/A"}}]
[{"$nulls":7},{"$f":"VLOOKUP(G427,Data_Origin_Type_Code[#All],2,FALSE)","v":{"$error":"#N/A"}}]
[{"$nulls":7},{"$f":"VLOOKUP(G428,Data_Origin_Type_Code[#All],2,FALSE)","v":{"$error":"#N/A"}}]
[{"$nulls":7},{"$f":"VLOOKUP(G429,Data_Origin_Type_Code[#All],2,FALSE)","v":{"$error":"#N/A"}}]
[{"$nulls":7},{"$f":"VLOOKUP(G430,Data_Origin_Type_Code[#All],2,FALSE)","v":{"$error":"#N/A"}}]
[{"$nulls":7},{"$f":"VLOOKUP(G431,Data_Origin_Type_Code[#All],2,FALSE)","v":{"$error":"#N/A"}}]
[{"$nulls":7},{"$f":"VLOOKUP(G432,Data_Origin_Type_Code[#All],2,FALSE)","v":{"$error":"#N/A"}}]
[{"$nulls":7},{"$f":"VLOOKUP(G433,Data_Origin_Type_Code[#All],2,FALSE)","v":{"$error":"#N/A"}}]
[{"$nulls":7},{"$f":"VLOOKUP(G434,Data_Origin_Type_Code[#All],2,FALSE)","v":{"$error":"#N/A"}}]
[{"$nulls":7},{"$f":"VLOOKUP(G435,Data_Origin_Type_Code[#All],2,FALSE)","v":{"$error":"#N/A"}}]
[{"$nulls":7},{"$f":"VLOOKUP(G436,Data_Origin_Type_Code[#All],2,FALSE)","v":{"$error":"#N/A"}}]
[{"$nulls":7},{"$f":"VLOOKUP(G437,Data_Origin_Type_Code[#All],2,FALSE)","v":{"$error":"#N/A"}}]
[{"$nulls":7},{"$f":"VLOOKUP(G438,Data_Origin_Type_Code[#All],2,FALSE)","v":{"$error":"#N/A"}}]
[{"$nulls":7},{"$f":"VLOOKUP(G439,Data_Origin_Type_Code[#All],2,FALSE)","v":{"$error":"#N/A"}}]
[{"$nulls":7},{"$f":"VLOOKUP(G440,Data_Origin_Type_Code[#All],2,FALSE)","v":{"$error":"#N/A"}}]
[{"$nulls":7},{"$f":"VLOOKUP(G441,Data_Origin_Type_Code[#All],2,FALSE)","v":{"$error":"#N/A"}}]
[{"$nulls":7},{"$f":"VLOOKUP(G442,Data_Origin_Type_Code[#All],2,FALSE)","v":{"$error":"#N/A"}}]
[{"$nulls":7},{"$f":"VLOOKUP(G443,Data_Origin_Type_Code[#All],2,FALSE)","v":{"$error":"#N/A"}}]
[{"$nulls":7},{"$f":"VLOOKUP(G444,Data_Origin_Type_Code[#All],2,FALSE)","v":{"$error":"#N/A"}}]
[{"$nulls":7},{"$f":"VLOOKUP(G445,Data_Origin_Type_Code[#All],2,FALSE)","v":{"$error":"#N/A"}}]
[{"$nulls":7},{"$f":"VLOOKUP(G446,Data_Origin_Type_Code[#All],2,FALSE)","v":{"$error":"#N/A"}}]
[{"$nulls":7},{"$f":"VLOOKUP(G447,Data_Origin_Type_Code[#All],2,FALSE)","v":{"$error":"#N/A"}}]
[{"$nulls":7},{"$f":"VLOOKUP(G448,Data_Origin_Type_Code[#All],2,FALSE)","v":{"$error":"#N/A"}}]
[{"$nulls":7},{"$f":"VLOOKUP(G449,Data_Origin_Type_Code[#All],2,FALSE)","v":{"$error":"#N/A"}}]
[{"$nulls":7},{"$f":"VLOOKUP(G450,Data_Origin_Type_Code[#All],2,FALSE)","v":{"$error":"#N/A"}}]
[{"$nulls":7},{"$f":"VLOOKUP(G451,Data_Origin_Type_Code[#All],2,FALSE)","v":{"$error":"#N/A"}}]
[{"$nulls":7},{"$f":"VLOOKUP(G452,Data_Origin_Type_Code[#All],2,FALSE)","v":{"$error":"#N/A"}}]
[{"$nulls":7},{"$f":"VLOOKUP(G453,Data_Origin_Type_Code[#All],2,FALSE)","v":{"$error":"#N/A"}}]
[{"$nulls":7},{"$f":"VLOOKUP(G454,Data_Origin_Type_Code[#All],2,FALSE)","v":{"$error":"#N/A"}}]
[{"$nulls":7},{"$f":"VLOOKUP(G455,Data_Origin_Type_Code[#All],2,FALSE)","v":{"$error":"#N/A"}}]
[{"$nulls":7},{"$f":"VLOOKUP(G456,Data_Origin_Type_Code[#All],2,FALSE)","v":{"$error":"#N/A"}}]
[{"$nulls":7},{"$f":"VLOOKUP(G457,Data_Origin_Type_Code[#All],2,FALSE)","v":{"$error":"#N/A"}}]
[{"$nulls":7},{"$f":"VLOOKUP(G458,Data_Origin_Type_Code[#All],2,FALSE)","v":{"$error":"#N/A"}}]
[{"$nulls":7},{"$f":"VLOOKUP(G459,Data_Origin_Type_Code[#All],2,FALSE)","v":{"$error":"#N/A"}}]
[{"$nulls":7},{"$f":"VLOOKUP(G460,Data_Origin_Type_Code[#All],2,FALSE)","v":{"$error":"#N/A"}}]
[{"$nulls":7},{"$f":"VLOOKUP(G461,Data_Origin_Type_Code[#All],2,FALSE)","v":{"$error":"#N/A"}}]
[{"$nulls":7},{"$f":"VLOOKUP(G462,Data_Origin_Type_Code[#All],2,FALSE)","v":{"$error":"#N/A"}}]
[{"$nulls":7},{"$f":"VLOOKUP(G463,Data_Origin_Type_Code[#All],2,FALSE)","v":{"$error":"#N/A"}}]
[{"$nulls":7},{"$f":"VLOOKUP(G464,Data_Origin_Type_Code[#All],2,FALSE)","v":{"$error":"#N/A"}}]
[{"$nulls":7},{"$f":"VLOOKUP(G465,Data_Origin_Type_Code[#All],2,FALSE)","v":{"$error":"#N/A"}}]
[{"$nulls":7},{"$f":"VLOOKUP(G466,Data_Origin_Type_Code[#All],2,FALSE)","v":{"$error":"#N/A"}}]
[{"$nulls":7},{"$f":"VLOOKUP(G467,Data_Origin_Type_Code[#All],2,FALSE)","v":{"$error":"#N/A"}}]
[{"$nulls":7},{"$f":"VLOOKUP(G468,Data_Origin_Type_Code[#All],2,FALSE)","v":{"$error":"#N/A"}}]
[{"$nulls":7},{"$f":"VLOOKUP(G469,Data_Origin_Type_Code[#All],2,FALSE)","v":{"$error":"#N/A"}}]
[{"$nulls":7},{"$f":"VLOOKUP(G470,Data_Origin_Type_Code[#All],2,FALSE)","v":{"$error":"#N/A"}}]
[{"$nulls":7},{"$f":"VLOOKUP(G471,Data_Origin_Type_Code[#All],2,FALSE)","v":{"$error":"#N/A"}}]
[{"$nulls":7},{"$f":"VLOOKUP(G472,Data_Origin_Type_Code[#All],2,FALSE)","v":{"$error":"#N/A"}}]
[{"$nulls":7},{"$f":"VLOOKUP(G473,Data_Origin_Type_Code[#All],2,FALSE)","v":{"$error":"#N/A"}}]
[{"$nulls":7},{"$f":"VLOOKUP(G474,Data_Origin_Type_Code[#All],2,FALSE)","v":{"$error":"#N/A"}}]
[{"$nulls":7},{"$f":"VLOOKUP(G475,Data_Origin_Type_Code[#All],2,FALSE)","v":{"$error":"#N/A"}}]
[{"$nulls":7},{"$f":"VLOOKUP(G476,Data_Origin_Type_Code[#All],2,FALSE)","v":{"$error":"#N/A"}}]
[{"$nulls":7},{"$f":"VLOOKUP(G477,Data_Origin_Type_Code[#All],2,FALSE)","v":{"$error":"#N/A"}}]
[{"$nulls":7},{"$f":"VLOOKUP(G478,Data_Origin_Type_Code[#All],2,FALSE)","v":{"$error":"#N/A"}}]
[{"$nulls":7},{"$f":"VLOOKUP(G479,Data_Origin_Type_Code[#All],2,FALSE)","v":{"$error":"#N/A"}}]
[{"$nulls":7},{"$f":"VLOOKUP(G480,Data_Origin_Type_Code[#All],2,FALSE)","v":{"$error":"#N/A"}}]
[{"$nulls":7},{"$f":"VLOOKUP(G481,Data_Origin_Type_Code[#All],2,FALSE)","v":{"$error":"#N/A"}}]
[{"$nulls":7},{"$f":"VLOOKUP(G482,Data_Origin_Type_Code[#All],2,FALSE)","v":{"$error":"#N/A"}}]
[{"$nulls":7},{"$f":"VLOOKUP(G483,Data_Origin_Type_Code[#All],2,FALSE)","v":{"$error":"#N/A"}}]
[{"$nulls":7},{"$f":"VLOOKUP(G484,Data_Origin_Type_Code[#All],2,FALSE)","v":{"$error":"#N/A"}}]
[{"$nulls":7},{"$f":"VLOOKUP(G485,Data_Origin_Type_Code[#All],2,FALSE)","v":{"$error":"#N/A"}}]
[{"$nulls":7},{"$f":"VLOOKUP(G486,Data_Origin_Type_Code[#All],2,FALSE)","v":{"$error":"#N/A"}}]
[{"$nulls":7},{"$f":"VLOOKUP(G487,Data_Origin_Type_Code[#All],2,FALSE)","v":{"$error":"#N/A"}}]
[{"$nulls":7},{"$f":"VLOOKUP(G488,Data_Origin_Type_Code[#All],2,FALSE)","v":{"$error":"#N/A"}}]
[{"$nulls":7},{"$f":"VLOOKUP(G489,Data_Origin_Type_Code[#All],2,FALSE)","v":{"$error":"#N/A"}}]
[{"$nulls":7},{"$f":"VLOOKUP(G490,Data_Origin_Type_Code[#All],2,FALSE)","v":{"$error":"#N/A"}}]
[{"$nulls":7},{"$f":"VLOOKUP(G491,Data_Origin_Type_Code[#All],2,FALSE)","v":{"$error":"#N/A"}}]
[{"$nulls":7},{"$f":"VLOOKUP(G492,Data_Origin_Type_Code[#All],2,FALSE)","v":{"$error":"#N/A"}}]
[{"$nulls":7},{"$f":"VLOOKUP(G493,Data_Origin_Type_Code[#All],2,FALSE)","v":{"$error":"#N/A"}}]
[{"$nulls":7},{"$f":"VLOOKUP(G494,Data_Origin_Type_Code[#All],2,FALSE)","v":{"$error":"#N/A"}}]
[{"$nulls":7},{"$f":"VLOOKUP(G495,Data_Origin_Type_Code[#All],2,FALSE)","v":{"$error":"#N/A"}}]
[{"$nulls":7},{"$f":"VLOOKUP(G496,Data_Origin_Type_Code[#All],2,FALSE)","v":{"$error":"#N/A"}}]
[{"$nulls":7},{"$f":"VLOOKUP(G497,Data_Origin_Type_Code[#All],2,FALSE)","v":{"$error":"#N/A"}}]
[{"$nulls":7},{"$f":"VLOOKUP(G498,Data_Origin_Type_Code[#All],2,FALSE)","v":{"$error":"#N/A"}}]
[{"$nulls":7},{"$f":"VLOOKUP(G499,Data_Origin_Type_Code[#All],2,FALSE)","v":{"$error":"#N/A"}}]
[{"$nulls":7},{"$f":"VLOOKUP(G500,Data_Origin_Type_Code[#All],2,FALSE)","v":{"$error":"#N/A"}}]
[{"$nulls":7},{"$f":"VLOOKUP(G501,Data_Origin_Type_Code[#All],2,FALSE)","v":{"$error":"#N/A"}}]
[{"$nulls":7},{"$f":"VLOOKUP(G502,Data_Origin_Type_Code[#All],2,FALSE)","v":{"$error":"#N/A"}}]
[{"$nulls":7},{"$f":"VLOOKUP(G503,Data_Origin_Type_Code[#All],2,FALSE)","v":{"$error":"#N/A"}}]
[{"$nulls":7},{"$f":"VLOOKUP(G504,Data_Origin_Type_Code[#All],2,FALSE)","v":{"$error":"#N/A"}}]
[{"$nulls":7},{"$f":"VLOOKUP(G505,Data_Origin_Type_Code[#All],2,FALSE)","v":{"$error":"#N/A"}}]
[{"$nulls":7},{"$f":"VLOOKUP(G506,Data_Origin_Type_Code[#All],2,FALSE)","v":{"$error":"#N/A"}}]
[{"$nulls":7},{"$f":"VLOOKUP(G507,Data_Origin_Type_Code[#All],2,FALSE)","v":{"$error":"#N/A"}}]
[{"$nulls":7},{"$f":"VLOOKUP(G508,Data_Origin_Type_Code[#All],2,FALSE)","v":{"$error":"#N/A"}}]
[{"$nulls":7},{"$f":"VLOOKUP(G509,Data_Origin_Type_Code[#All],2,FALSE)","v":{"$error":"#N/A"}}]
[{"$nulls":7},{"$f":"VLOOKUP(G510,Data_Origin_Type_Code[#All],2,FALSE)","v":{"$error":"#N/A"}}]
[{"$nulls":7},{"$f":"VLOOKUP(G511,Data_Origin_Type_Code[#All],2,FALSE)","v":{"$error":"#N/A"}}]
[{"$nulls":7},{"$f":"VLOOKUP(G512,Data_Origin_Type_Code[#All],2,FALSE)","v":{"$error":"#N/A"}}]
[{"$nulls":7},{"$f":"VLOOKUP(G513,Data_Origin_Type_Code[#All],2,FALSE)","v":{"$error":"#N/A"}}]
[{"$nulls":7},{"$f":"VLOOKUP(G514,Data_Origin_Type_Code[#All],2,FALSE)","v":{"$error":"#N/A"}}]
[{"$nulls":7},{"$f":"VLOOKUP(G515,Data_Origin_Type_Code[#All],2,FALSE)","v":{"$error":"#N/A"}}]
[{"$nulls":7},{"$f":"VLOOKUP(G516,Data_Origin_Type_Code[#All],2,FALSE)","v":{"$error":"#N/A"}}]
[{"$nulls":7},{"$f":"VLOOKUP(G517,Data_Origin_Type_Code[#All],2,FALSE)","v":{"$error":"#N/A"}}]
[{"$nulls":7},{"$f":"VLOOKUP(G518,Data_Origin_Type_Code[#All],2,FALSE)","v":{"$error":"#N/A"}}]
[{"$nulls":7},{"$f":"VLOOKUP(G519,Data_Origin_Type_Code[#All],2,FALSE)","v":{"$error":"#N/A"}}]
[{"$nulls":7},{"$f":"VLOOKUP(G520,Data_Origin_Type_Code[#All],2,FALSE)","v":{"$error":"#N/A"}}]
[{"$nulls":7},{"$f":"VLOOKUP(G521,Data_Origin_Type_Code[#All],2,FALSE)","v":{"$error":"#N/A"}}]
[{"$nulls":7},{"$f":"VLOOKUP(G522,Data_Origin_Type_Code[#All],2,FALSE)","v":{"$error":"#N/A"}}]
[{"$nulls":7},{"$f":"VLOOKUP(G523,Data_Origin_Type_Code[#All],2,FALSE)","v":{"$error":"#N/A"}}]
[{"$nulls":7},{"$f":"VLOOKUP(G524,Data_Origin_Type_Code[#All],2,FALSE)","v":{"$error":"#N/A"}}]
[{"$nulls":7},{"$f":"VLOOKUP(G525,Data_Origin_Type_Code[#All],2,FALSE)","v":{"$error":"#N/A"}}]
[{"$nulls":7},{"$f":"VLOOKUP(G526,Data_Origin_Type_Code[#All],2,FALSE)","v":{"$error":"#N/A"}}]
[{"$nulls":7},{"$f":"VLOOKUP(G527,Data_Origin_Type_Code[#All],2,FALSE)","v":{"$error":"#N/A"}}]
[{"$nulls":7},{"$f":"VLOOKUP(G528,Data_Origin_Type_Code[#All],2,FALSE)","v":{"$error":"#N/A"}}]
[{"$nulls":7},{"$f":"VLOOKUP(G529,Data_Origin_Type_Code[#All],2,FALSE)","v":{"$error":"#N/A"}}]
[{"$nulls":7},{"$f":"VLOOKUP(G530,Data_Origin_Type_Code[#All],2,FALSE)","v":{"$error":"#N/A"}}]
[{"$nulls":7},{"$f":"VLOOKUP(G531,Data_Origin_Type_Code[#All],2,FALSE)","v":{"$error":"#N/A"}}]
[{"$nulls":7},{"$f":"VLOOKUP(G532,Data_Origin_Type_Code[#All],2,FALSE)","v":{"$error":"#N/A"}}]
[{"$nulls":7},{"$f":"VLOOKUP(G533,Data_Origin_Type_Code[#All],2,FALSE)","v":{"$error":"#N/A"}}]
[{"$nulls":7},{"$f":"VLOOKUP(G534,Data_Origin_Type_Code[#All],2,FALSE)","v":{"$error":"#N/A"}}]
[{"$nulls":7},{"$f":"VLOOKUP(G535,Data_Origin_Type_Code[#All],2,FALSE)","v":{"$error":"#N/A"}}]
[{"$nulls":7},{"$f":"VLOOKUP(G536,Data_Origin_Type_Code[#All],2,FALSE)","v":{"$error":"#N/A"}}]
[{"$nulls":7},{"$f":"VLOOKUP(G537,Data_Origin_Type_Code[#All],2,FALSE)","v":{"$error":"#N/A"}}]
[{"$nulls":7},{"$f":"VLOOKUP(G538,Data_Origin_Type_Code[#All],2,FALSE)","v":{"$error":"#N/A"}}]
[{"$nulls":7},{"$f":"VLOOKUP(G539,Data_Origin_Type_Code[#All],2,FALSE)","v":{"$error":"#N/A"}}]
[{"$nulls":7},{"$f":"VLOOKUP(G540,Data_Origin_Type_Code[#All],2,FALSE)","v":{"$error":"#N/A"}}]
[{"$nulls":7},{"$f":"VLOOKUP(G541,Data_Origin_Type_Code[#All],2,FALSE)","v":{"$error":"#N/A"}}]
[{"$nulls":7},{"$f":"VLOOKUP(G542,Data_Origin_Type_Code[#All],2,FALSE)","v":{"$error":"#N/A"}}]
[{"$nulls":7},{"$f":"VLOOKUP(G543,Data_Origin_Type_Code[#All],2,FALSE)","v":{"$error":"#N/A"}}]
[{"$nulls":7},{"$f":"VLOOKUP(G544,Data_Origin_Type_Code[#All],2,FALSE)","v":{"$error":"#N/A"}}]
[{"$nulls":7},{"$f":"VLOOKUP(G545,Data_Origin_Type_Code[#All],2,FALSE)","v":{"$error":"#N/A"}}]
[{"$nulls":7},{"$f":"VLOOKUP(G546,Data_Origin_Type_Code[#All],2,FALSE)","v":{"$error":"#N/A"}}]
[{"$nulls":7},{"$f":"VLOOKUP(G547,Data_Origin_Type_Code[#All],2,FALSE)","v":{"$error":"#N/A"}}]
[{"$nulls":7},{"$f":"VLOOKUP(G548,Data_Origin_Type_Code[#All],2,FALSE)","v":{"$error":"#N/A"}}]
[{"$nulls":7},{"$f":"VLOOKUP(G549,Data_Origin_Type_Code[#All],2,FALSE)","v":{"$error":"#N/A"}}]
[{"$nulls":7},{"$f":"VLOOKUP(G550,Data_Origin_Type_Code[#All],2,FALSE)","v":{"$error":"#N/A"}}]
[{"$nulls":7},{"$f":"VLOOKUP(G551,Data_Origin_Type_Code[#All],2,FALSE)","v":{"$error":"#N/A"}}]
[{"$nulls":7},{"$f":"VLOOKUP(G552,Data_Origin_Type_Code[#All],2,FALSE)","v":{"$error":"#N/A"}}]
[{"$nulls":7},{"$f":"VLOOKUP(G553,Data_Origin_Type_Code[#All],2,FALSE)","v":{"$error":"#N/A"}}]
[{"$nulls":7},{"$f":"VLOOKUP(G554,Data_Origin_Type_Code[#All],2,FALSE)","v":{"$error":"#N/A"}}]
[{"$nulls":7},{"$f":"VLOOKUP(G555,Data_Origin_Type_Code[#All],2,FALSE)","v":{"$error":"#N/A"}}]
[{"$nulls":7},{"$f":"VLOOKUP(G556,Data_Origin_Type_Code[#All],2,FALSE)","v":{"$error":"#N/A"}}]
[{"$nulls":7},{"$f":"VLOOKUP(G557,Data_Origin_Type_Code[#All],2,FALSE)","v":{"$error":"#N/A"}}]
[{"$nulls":7},{"$f":"VLOOKUP(G558,Data_Origin_Type_Code[#All],2,FALSE)","v":{"$error":"#N/A"}}]
[{"$nulls":7},{"$f":"VLOOKUP(G559,Data_Origin_Type_Code[#All],2,FALSE)","v":{"$error":"#N/A"}}]
[{"$nulls":7},{"$f":"VLOOKUP(G560,Data_Origin_Type_Code[#All],2,FALSE)","v":{"$error":"#N/A"}}]
[{"$nulls":7},{"$f":"VLOOKUP(G561,Data_Origin_Type_Code[#All],2,FALSE)","v":{"$error":"#N/A"}}]
[{"$nulls":7},{"$f":"VLOOKUP(G562,Data_Origin_Type_Code[#All],2,FALSE)","v":{"$error":"#N/A"}}]
[{"$nulls":7},{"$f":"VLOOKUP(G563,Data_Origin_Type_Code[#All],2,FALSE)","v":{"$error":"#N/A"}}]
[{"$nulls":7},{"$f":"VLOOKUP(G564,Data_Origin_Type_Code[#All],2,FALSE)","v":{"$error":"#N/A"}}]
[{"$nulls":7},{"$f":"VLOOKUP(G565,Data_Origin_Type_Code[#All],2,FALSE)","v":{"$error":"#N/A"}}]
[{"$nulls":7},{"$f":"VLOOKUP(G566,Data_Origin_Type_Code[#All],2,FALSE)","v":{"$error":"#N/A"}}]
[{"$nulls":7},{"$f":"VLOOKUP(G567,Data_Origin_Type_Code[#All],2,FALSE)","v":{"$error":"#N/A"}}]
[{"$nulls":7},{"$f":"VLOOKUP(G568,Data_Origin_Type_Code[#All],2,FALSE)","v":{"$error":"#N/A"}}]
[{"$nulls":7},{"$f":"VLOOKUP(G569,Data_Origin_Type_Code[#All],2,FALSE)","v":{"$error":"#N/A"}}]
[{"$nulls":7},{"$f":"VLOOKUP(G570,Data_Origin_Type_Code[#All],2,FALSE)","v":{"$error":"#N/A"}}]

{"sheet":"Distribution_Channel","index":2,"n_rows":3,"n_cols":2,"rows_kept":3,"cut":false,"hidden":false,"merged":[]}
["Description","Internal Code"]
["Trade","10"]
["Intercompany","99"]

{"sheet":"Division_Code","index":3,"n_rows":2,"n_cols":2,"rows_kept":2,"cut":false,"hidden":false,"merged":[]}
["Description","Internal Code"]
["Leviat Division","01"]

{"sheet":"Escalation_Status_Code","index":4,"n_rows":3,"n_cols":2,"rows_kept":3,"cut":false,"hidden":false,"merged":[]}
["Description","Internal Code"]
["Not Escalated","1"]
["Escalated","2"]

{"sheet":"Escalated_On_timeZoneCode","index":5,"n_rows":126,"n_cols":2,"rows_kept":126,"cut":false,"hidden":false,"merged":[]}
["Description","Internal Code"]
["Afghanistan","AFGHAN"]
["Alaska (Anchorage)","ALA"]
["Alaska (Aleutian)","ALAW"]
["Argentina","ART"]
["Atlantic Time (Halifax)","AST"]
["Australia Capital Territories","AUSACT"]
["Australia Lord Howe Island","AUSLHI"]
["Australia New South Wales","AUSNSW"]
["Australia Northern Territories","AUSNT"]
["Australia Queensland","AUSQLD"]
["Australia South Australia","AUSSA"]
["Australia Tasmania","AUSTAS"]
["Australia Victoria","AUSVIC"]
["Australia Western Australia","AUSWA"]
["Europe Azores","AZOREN"]
["Azerbaijan","AZT"]
["Bangladesh","BDT"]
["Brazil","BRAZIL"]
["Brazil Andes","BRZLAN"]
["Brazil East","BRZLEA"]
["Brazil West","BRZLWE"]
["Central Africa","CAT"]
["Central Europe","CET"]
["Chile","CHILE"]
["Chile Easter Island","CHILEE"]
["Chile Magallanes Region","CHILEM"]
["Central Time (Dallas)","CST"]
["Central Time No DST","CSTNO"]
["North American Central Time","CST_NA"]
["Cyprus","CYPRUS"]
["Eastern Europe","EET"]
["Egypt","EGYPT"]
["Eastern Time (New York)","EST"]
["Eastern Time (Indianapolis)","ESTNO"]
["North American Eastern Time","EST_NA"]
["Falkland Islands","FLKLND"]
["Greenwich UK with DST","GMTUK"]
["Greenland","GST"]
["Eastern Greenland","GSTE"]
["Western Greenland","GSTW"]
["Hawaii","HAW"]
["India","INDIA"]
["Iran","IRAN"]
["Iraq","IRAQ"]
["Israel","ISRAEL"]
["Japan","JAPAN"]
["Jordan","JORDAN"]
["Lebanon","LBANON"]
["Mauritius","MAU"]
["Republic of Moldova","MOLDVA"]
["Morocco","MOROCC"]
["Mountain Time (Denver)","MST"]
["Mountain Time (Phoenix)","MSTNO"]
["North American Mountain Time","MST_NA"]
["Namibia","NAT"]
["Nepal","NEPAL"]
["Newfoundland","NFDL"]
["Norfolk Islands","NORFLK"]
["Newfoundland","NST"]
["New Zealand Chatham Islands","NZCHA"]
["New Zealand","NZST"]
["Paraguay","PARAGY"]
["St Pierre and Miquelon","PIERRE"]
["Pakistan","PKT"]
["Palestine","PLST"]
["Pacific Time (Los Angeles)","PST"]
["North American Pacific Time","PST_NA"]
["Russia (UTC+02)","RUS02"]
["Russia (Moscow) (UTC+03)","RUS03"]
["Russia (UTC+04)","RUS04"]
["Russia (UTC+05)","RUS05"]
["Russia (UTC+06)","RUS06"]
["Russia (UTC+07)","RUS07"]
["Russia (UTC+08)","RUS08"]
["Russia (UTC+09)","RUS09"]
["Russia (UTC+10)","RUS10"]
["Russia (UTC+11)","RUS11"]
["Russia (UTC+12)","RUS12"]
["Russia (UTC+13)","RUS13"]
["Russia (UTC+14)","RUS14"]
["Syria","SYRIA"]
["Turkey","TURKEY"]
["England, Ireland, Scotland","UK"]
["Uruguay","URUGUA"]
["UTC+0","UTC"]
["UTC+01","UTC+1"]
["UTC+10","UTC+10"]
["UTC+11","UTC+11"]
["UTC+12","UTC+12"]
["UTC+13","UTC+13"]
["UTC+14","UTC+14"]
["UTC+02","UTC+2"]
["UTC+03","UTC+3"]
["UTC+03:30","UTC+33"]
["UTC+04","UTC+4"]
["UTC+04:30","UTC+43"]
["UTC+05","UTC+5"]
["UTC+05:30","UTC+53"]
["UTC-01","UTC+54"]
["UTC+06","UTC+6"]
["UTC+06:30","UTC+63"]
["UTC+07","UTC+7"]
["UTC+08","UTC+8"]
["UTC+08:30","UTC+83"]
["UTC+09","UTC+9"]
["UTC+09:30","UTC+93"]
["UTC-01","UTC-1"]
["UTC-10","UTC-10"]
["UTC-11","UTC-11"]
["UTC-12","UTC-12"]
["UTC-02","UTC-2"]
["UTC-03","UTC-3"]
["UTC-03:30","UTC-33"]
["UTC-04","UTC-4"]
["UTC-04:30","UTC-43"]
["UTC-05","UTC-5"]
["UTC-06","UTC-6"]
["UTC-07","UTC-7"]
["UTC-08","UTC-8"]
["UTC-8:30","UTC-83"]
["UTC-09","UTC-9"]
["UTC-09:30","UTC-93"]
["Western Africa","WAT"]
["Walldorf (CET)","WDFT"]
["Western Europe","WET"]

{"sheet":"Initilal_Review_Due_timeZoneCod","index":6,"n_rows":126,"n_cols":2,"rows_kept":126,"cut":false,"hidden":false,"merged":[]}
["Description","Internal Code"]
["Afghanistan","AFGHAN"]
["Alaska (Anchorage)","ALA"]
["Alaska (Aleutian)","ALAW"]
["Argentina","ART"]
["Atlantic Time (Halifax)","AST"]
["Australia Capital Territories","AUSACT"]
["Australia Lord Howe Island","AUSLHI"]
["Australia New South Wales","AUSNSW"]
["Australia Northern Territories","AUSNT"]
["Australia Queensland","AUSQLD"]
["Australia South Australia","AUSSA"]
["Australia Tasmania","AUSTAS"]
["Australia Victoria","AUSVIC"]
["Australia Western Australia","AUSWA"]
["Europe Azores","AZOREN"]
["Azerbaijan","AZT"]
["Bangladesh","BDT"]
["Brazil","BRAZIL"]
["Brazil Andes","BRZLAN"]
["Brazil East","BRZLEA"]
["Brazil West","BRZLWE"]
["Central Africa","CAT"]
["Central Europe","CET"]
["Chile","CHILE"]
["Chile Easter Island","CHILEE"]
["Chile Magallanes Region","CHILEM"]
["Central Time (Dallas)","CST"]
["Central Time No DST","CSTNO"]
["North American Central Time","CST_NA"]
["Cyprus","CYPRUS"]
["Eastern Europe","EET"]
["Egypt","EGYPT"]
["Eastern Time (New York)","EST"]
["Eastern Time (Indianapolis)","ESTNO"]
["North American Eastern Time","EST_NA"]
["Falkland Islands","FLKLND"]
["Greenwich UK with DST","GMTUK"]
["Greenland","GST"]
["Eastern Greenland","GSTE"]
["Western Greenland","GSTW"]
["Hawaii","HAW"]
["India","INDIA"]
["Iran","IRAN"]
["Iraq","IRAQ"]
["Israel","ISRAEL"]
["Japan","JAPAN"]
["Jordan","JORDAN"]
["Lebanon","LBANON"]
["Mauritius","MAU"]
["Republic of Moldova","MOLDVA"]
["Morocco","MOROCC"]
["Mountain Time (Denver)","MST"]
["Mountain Time (Phoenix)","MSTNO"]
["North American Mountain Time","MST_NA"]
["Namibia","NAT"]
["Nepal","NEPAL"]
["Newfoundland","NFDL"]
["Norfolk Islands","NORFLK"]
["Newfoundland","NST"]
["New Zealand Chatham Islands","NZCHA"]
["New Zealand","NZST"]
["Paraguay","PARAGY"]
["St Pierre and Miquelon","PIERRE"]
["Pakistan","PKT"]
["Palestine","PLST"]
["Pacific Time (Los Angeles)","PST"]
["North American Pacific Time","PST_NA"]
["Russia (UTC+02)","RUS02"]
["Russia (Moscow) (UTC+03)","RUS03"]
["Russia (UTC+04)","RUS04"]
["Russia (UTC+05)","RUS05"]
["Russia (UTC+06)","RUS06"]
["Russia (UTC+07)","RUS07"]
["Russia (UTC+08)","RUS08"]
["Russia (UTC+09)","RUS09"]
["Russia (UTC+10)","RUS10"]
["Russia (UTC+11)","RUS11"]
["Russia (UTC+12)","RUS12"]
["Russia (UTC+13)","RUS13"]
["Russia (UTC+14)","RUS14"]
["Syria","SYRIA"]
["Turkey","TURKEY"]
["England, Ireland, Scotland","UK"]
["Uruguay","URUGUA"]
["UTC+0","UTC"]
["UTC+01","UTC+1"]
["UTC+10","UTC+10"]
["UTC+11","UTC+11"]
["UTC+12","UTC+12"]
["UTC+13","UTC+13"]
["UTC+14","UTC+14"]
["UTC+02","UTC+2"]
["UTC+03","UTC+3"]
["UTC+03:30","UTC+33"]
["UTC+04","UTC+4"]
["UTC+04:30","UTC+43"]
["UTC+05","UTC+5"]
["UTC+05:30","UTC+53"]
["UTC-01","UTC+54"]
["UTC+06","UTC+6"]
["UTC+06:30","UTC+63"]
["UTC+07","UTC+7"]
["UTC+08","UTC+8"]
["UTC+08:30","UTC+83"]
["UTC+09","UTC+9"]
["UTC+09:30","UTC+93"]
["UTC-01","UTC-1"]
["UTC-10","UTC-10"]
["UTC-11","UTC-11"]
["UTC-12","UTC-12"]
["UTC-02","UTC-2"]
["UTC-03","UTC-3"]
["UTC-03:30","UTC-33"]
["UTC-04","UTC-4"]
["UTC-04:30","UTC-43"]
["UTC-05","UTC-5"]
["UTC-06","UTC-6"]
["UTC-07","UTC-7"]
["UTC-08","UTC-8"]
["UTC-8:30","UTC-83"]
["UTC-09","UTC-9"]
["UTC-09:30","UTC-93"]
["Western Africa","WAT"]
["Walldorf (CET)","WDFT"]
["Western Europe","WET"]

{"sheet":"Onsite_Due_timeZoneCode","index":7,"n_rows":126,"n_cols":2,"rows_kept":126,"cut":false,"hidden":false,"merged":[]}
["Description","Internal Code"]
["Afghanistan","AFGHAN"]
["Alaska (Anchorage)","ALA"]
["Alaska (Aleutian)","ALAW"]
["Argentina","ART"]
["Atlantic Time (Halifax)","AST"]
["Australia Capital Territories","AUSACT"]
["Australia Lord Howe Island","AUSLHI"]
["Australia New South Wales","AUSNSW"]
["Australia Northern Territories","AUSNT"]
["Australia Queensland","AUSQLD"]
["Australia South Australia","AUSSA"]
["Australia Tasmania","AUSTAS"]
["Australia Victoria","AUSVIC"]
["Australia Western Australia","AUSWA"]
["Europe Azores","AZOREN"]
["Azerbaijan","AZT"]
["Bangladesh","BDT"]
["Brazil","BRAZIL"]
["Brazil Andes","BRZLAN"]
["Brazil East","BRZLEA"]
["Brazil West","BRZLWE"]
["Central Africa","CAT"]
["Central Europe","CET"]
["Chile","CHILE"]
["Chile Easter Island","CHILEE"]
["Chile Magallanes Region","CHILEM"]
["Central Time (Dallas)","CST"]
["Central Time No DST","CSTNO"]
["North American Central Time","CST_NA"]
["Cyprus","CYPRUS"]
["Eastern Europe","EET"]
["Egypt","EGYPT"]
["Eastern Time (New York)","EST"]
["Eastern Time (Indianapolis)","ESTNO"]
["North American Eastern Time","EST_NA"]
["Falkland Islands","FLKLND"]
["Greenwich UK with DST","GMTUK"]
["Greenland","GST"]
["Eastern Greenland","GSTE"]
["Western Greenland","GSTW"]
["Hawaii","HAW"]
["India","INDIA"]
["Iran","IRAN"]
["Iraq","IRAQ"]
["Israel","ISRAEL"]
["Japan","JAPAN"]
["Jordan","JORDAN"]
["Lebanon","LBANON"]
["Mauritius","MAU"]
["Republic of Moldova","MOLDVA"]
["Morocco","MOROCC"]
["Mountain Time (Denver)","MST"]
["Mountain Time (Phoenix)","MSTNO"]
["North American Mountain Time","MST_NA"]
["Namibia","NAT"]
["Nepal","NEPAL"]
["Newfoundland","NFDL"]
["Norfolk Islands","NORFLK"]
["Newfoundland","NST"]
["New Zealand Chatham Islands","NZCHA"]
["New Zealand","NZST"]
["Paraguay","PARAGY"]
["St Pierre and Miquelon","PIERRE"]
["Pakistan","PKT"]
["Palestine","PLST"]
["Pacific Time (Los Angeles)","PST"]
["North American Pacific Time","PST_NA"]
["Russia (UTC+02)","RUS02"]
["Russia (Moscow) (UTC+03)","RUS03"]
["Russia (UTC+04)","RUS04"]
["Russia (UTC+05)","RUS05"]
["Russia (UTC+06)","RUS06"]
["Russia (UTC+07)","RUS07"]
["Russia (UTC+08)","RUS08"]
["Russia (UTC+09)","RUS09"]
["Russia (UTC+10)","RUS10"]
["Russia (UTC+11)","RUS11"]
["Russia (UTC+12)","RUS12"]
["Russia (UTC+13)","RUS13"]
["Russia (UTC+14)","RUS14"]
["Syria","SYRIA"]
["Turkey","TURKEY"]
["England, Ireland, Scotland","UK"]
["Uruguay","URUGUA"]
["UTC+0","UTC"]
["UTC+01","UTC+1"]
["UTC+10","UTC+10"]
["UTC+11","UTC+11"]
["UTC+12","UTC+12"]
["UTC+13","UTC+13"]
["UTC+14","UTC+14"]
["UTC+02","UTC+2"]
["UTC+03","UTC+3"]
["UTC+03:30","UTC+33"]
["UTC+04","UTC+4"]
["UTC+04:30","UTC+43"]
["UTC+05","UTC+5"]
["UTC+05:30","UTC+53"]
["UTC-01","UTC+54"]
["UTC+06","UTC+6"]
["UTC+06:30","UTC+63"]
["UTC+07","UTC+7"]
["UTC+08","UTC+8"]
["UTC+08:30","UTC+83"]
["UTC+09","UTC+9"]
["UTC+09:30","UTC+93"]
["UTC-01","UTC-1"]
["UTC-10","UTC-10"]
["UTC-11","UTC-11"]
["UTC-12","UTC-12"]
["UTC-02","UTC-2"]
["UTC-03","UTC-3"]
["UTC-03:30","UTC-33"]
["UTC-04","UTC-4"]
["UTC-04:30","UTC-43"]
["UTC-05","UTC-5"]
["UTC-06","UTC-6"]
["UTC-07","UTC-7"]
["UTC-08","UTC-8"]
["UTC-8:30","UTC-83"]
["UTC-09","UTC-9"]
["UTC-09:30","UTC-93"]
["Western Africa","WAT"]
["Walldorf (CET)","WDFT"]
["Western Europe","WET"]

{"sheet":"OnSite_Arrival_timeZoneCode","index":8,"n_rows":126,"n_cols":2,"rows_kept":126,"cut":false,"hidden":false,"merged":[]}
["Description","Internal Code"]
["Afghanistan","AFGHAN"]
["Alaska (Anchorage)","ALA"]
["Alaska (Aleutian)","ALAW"]
["Argentina","ART"]
["Atlantic Time (Halifax)","AST"]
["Australia Capital Territories","AUSACT"]
["Australia Lord Howe Island","AUSLHI"]
["Australia New South Wales","AUSNSW"]
["Australia Northern Territories","AUSNT"]
["Australia Queensland","AUSQLD"]
["Australia South Australia","AUSSA"]
["Australia Tasmania","AUSTAS"]
["Australia Victoria","AUSVIC"]
["Australia Western Australia","AUSWA"]
["Europe Azores","AZOREN"]
["Azerbaijan","AZT"]
["Bangladesh","BDT"]
["Brazil","BRAZIL"]
["Brazil Andes","BRZLAN"]
["Brazil East","BRZLEA"]
["Brazil West","BRZLWE"]
["Central Africa","CAT"]
["Central Europe","CET"]
["Chile","CHILE"]
["Chile Easter Island","CHILEE"]
["Chile Magallanes Region","CHILEM"]
["Central Time (Dallas)","CST"]
["Central Time No DST","CSTNO"]
["North American Central Time","CST_NA"]
["Cyprus","CYPRUS"]
["Eastern Europe","EET"]
["Egypt","EGYPT"]
["Eastern Time (New York)","EST"]
["Eastern Time (Indianapolis)","ESTNO"]
["North American Eastern Time","EST_NA"]
["Falkland Islands","FLKLND"]
["Greenwich UK with DST","GMTUK"]
["Greenland","GST"]
["Eastern Greenland","GSTE"]
["Western Greenland","GSTW"]
["Hawaii","HAW"]
["India","INDIA"]
["Iran","IRAN"]
["Iraq","IRAQ"]
["Israel","ISRAEL"]
["Japan","JAPAN"]
["Jordan","JORDAN"]
["Lebanon","LBANON"]
["Mauritius","MAU"]
["Republic of Moldova","MOLDVA"]
["Morocco","MOROCC"]
["Mountain Time (Denver)","MST"]
["Mountain Time (Phoenix)","MSTNO"]
["North American Mountain Time","MST_NA"]
["Namibia","NAT"]
["Nepal","NEPAL"]
["Newfoundland","NFDL"]
["Norfolk Islands","NORFLK"]
["Newfoundland","NST"]
["New Zealand Chatham Islands","NZCHA"]
["New Zealand","NZST"]
["Paraguay","PARAGY"]
["St Pierre and Miquelon","PIERRE"]
["Pakistan","PKT"]
["Palestine","PLST"]
["Pacific Time (Los Angeles)","PST"]
["North American Pacific Time","PST_NA"]
["Russia (UTC+02)","RUS02"]
["Russia (Moscow) (UTC+03)","RUS03"]
["Russia (UTC+04)","RUS04"]
["Russia (UTC+05)","RUS05"]
["Russia (UTC+06)","RUS06"]
["Russia (UTC+07)","RUS07"]
["Russia (UTC+08)","RUS08"]
["Russia (UTC+09)","RUS09"]
["Russia (UTC+10)","RUS10"]
["Russia (UTC+11)","RUS11"]
["Russia (UTC+12)","RUS12"]
["Russia (UTC+13)","RUS13"]
["Russia (UTC+14)","RUS14"]
["Syria","SYRIA"]
["Turkey","TURKEY"]
["England, Ireland, Scotland","UK"]
["Uruguay","URUGUA"]
["UTC+0","UTC"]
["UTC+01","UTC+1"]
["UTC+10","UTC+10"]
["UTC+11","UTC+11"]
["UTC+12","UTC+12"]
["UTC+13","UTC+13"]
["UTC+14","UTC+14"]
["UTC+02","UTC+2"]
["UTC+03","UTC+3"]
["UTC+03:30","UTC+33"]
["UTC+04","UTC+4"]
["UTC+04:30","UTC+43"]
["UTC+05","UTC+5"]
["UTC+05:30","UTC+53"]
["UTC-01","UTC+54"]
["UTC+06","UTC+6"]
["UTC+06:30","UTC+63"]
["UTC+07","UTC+7"]
["UTC+08","UTC+8"]
["UTC+08:30","UTC+83"]
["UTC+09","UTC+9"]
["UTC+09:30","UTC+93"]
["UTC-01","UTC-1"]
["UTC-10","UTC-10"]
["UTC-11","UTC-11"]
["UTC-12","UTC-12"]
["UTC-02","UTC-2"]
["UTC-03","UTC-3"]
["UTC-03:30","UTC-33"]
["UTC-04","UTC-4"]
["UTC-04:30","UTC-43"]
["UTC-05","UTC-5"]
["UTC-06","UTC-6"]
["UTC-07","UTC-7"]
["UTC-08","UTC-8"]
["UTC-8:30","UTC-83"]
["UTC-09","UTC-9"]
["UTC-09:30","UTC-93"]
["Western Africa","WAT"]
["Walldorf (CET)","WDFT"]
["Western Europe","WET"]

{"sheet":"Type_Code","index":9,"n_rows":2,"n_cols":2,"rows_kept":2,"cut":false,"hidden":false,"merged":[]}
["Description","Internal Code"]
["Service Request","SRRQ"]

{"sheet":"Requested_Closed_DateTime_timeZ","index":10,"n_rows":126,"n_cols":2,"rows_kept":126,"cut":false,"hidden":false,"merged":[]}
["Description","Internal Code"]
["Afghanistan","AFGHAN"]
["Alaska (Anchorage)","ALA"]
["Alaska (Aleutian)","ALAW"]
["Argentina","ART"]
["Atlantic Time (Halifax)","AST"]
["Australia Capital Territories","AUSACT"]
["Australia Lord Howe Island","AUSLHI"]
["Australia New South Wales","AUSNSW"]
["Australia Northern Territories","AUSNT"]
["Australia Queensland","AUSQLD"]
["Australia South Australia","AUSSA"]
["Australia Tasmania","AUSTAS"]
["Australia Victoria","AUSVIC"]
["Australia Western Australia","AUSWA"]
["Europe Azores","AZOREN"]
["Azerbaijan","AZT"]
["Bangladesh","BDT"]
["Brazil","BRAZIL"]
["Brazil Andes","BRZLAN"]
["Brazil East","BRZLEA"]
["Brazil West","BRZLWE"]
["Central Africa","CAT"]
["Central Europe","CET"]
["Chile","CHILE"]
["Chile Easter Island","CHILEE"]
["Chile Magallanes Region","CHILEM"]
["Central Time (Dallas)","CST"]
["Central Time No DST","CSTNO"]
["North American Central Time","CST_NA"]
["Cyprus","CYPRUS"]
["Eastern Europe","EET"]
["Egypt","EGYPT"]
["Eastern Time (New York)","EST"]
["Eastern Time (Indianapolis)","ESTNO"]
["North American Eastern Time","EST_NA"]
["Falkland Islands","FLKLND"]
["Greenwich UK with DST","GMTUK"]
["Greenland","GST"]
["Eastern Greenland","GSTE"]
["Western Greenland","GSTW"]
["Hawaii","HAW"]
["India","INDIA"]
["Iran","IRAN"]
["Iraq","IRAQ"]
["Israel","ISRAEL"]
["Japan","JAPAN"]
["Jordan","JORDAN"]
["Lebanon","LBANON"]
["Mauritius","MAU"]
["Republic of Moldova","MOLDVA"]
["Morocco","MOROCC"]
["Mountain Time (Denver)","MST"]
["Mountain Time (Phoenix)","MSTNO"]
["North American Mountain Time","MST_NA"]
["Namibia","NAT"]
["Nepal","NEPAL"]
["Newfoundland","NFDL"]
["Norfolk Islands","NORFLK"]
["Newfoundland","NST"]
["New Zealand Chatham Islands","NZCHA"]
["New Zealand","NZST"]
["Paraguay","PARAGY"]
["St Pierre and Miquelon","PIERRE"]
["Pakistan","PKT"]
["Palestine","PLST"]
["Pacific Time (Los Angeles)","PST"]
["North American Pacific Time","PST_NA"]
["Russia (UTC+02)","RUS02"]
["Russia (Moscow) (UTC+03)","RUS03"]
["Russia (UTC+04)","RUS04"]
["Russia (UTC+05)","RUS05"]
["Russia (UTC+06)","RUS06"]
["Russia (UTC+07)","RUS07"]
["Russia (UTC+08)","RUS08"]
["Russia (UTC+09)","RUS09"]
["Russia (UTC+10)","RUS10"]
["Russia (UTC+11)","RUS11"]
["Russia (UTC+12)","RUS12"]
["Russia (UTC+13)","RUS13"]
["Russia (UTC+14)","RUS14"]
["Syria","SYRIA"]
["Turkey","TURKEY"]
["England, Ireland, Scotland","UK"]
["Uruguay","URUGUA"]
["UTC+0","UTC"]
["UTC+01","UTC+1"]
["UTC+10","UTC+10"]
["UTC+11","UTC+11"]
["UTC+12","UTC+12"]
["UTC+13","UTC+13"]
["UTC+14","UTC+14"]
["UTC+02","UTC+2"]
["UTC+03","UTC+3"]
["UTC+03:30","UTC+33"]
["UTC+04","UTC+4"]
["UTC+04:30","UTC+43"]
["UTC+05","UTC+5"]
["UTC+05:30","UTC+53"]
["UTC-01","UTC+54"]
["UTC+06","UTC+6"]
["UTC+06:30","UTC+63"]
["UTC+07","UTC+7"]
["UTC+08","UTC+8"]
["UTC+08:30","UTC+83"]
["UTC+09","UTC+9"]
["UTC+09:30","UTC+93"]
["UTC-01","UTC-1"]
["UTC-10","UTC-10"]
["UTC-11","UTC-11"]
["UTC-12","UTC-12"]
["UTC-02","UTC-2"]
["UTC-03","UTC-3"]
["UTC-03:30","UTC-33"]
["UTC-04","UTC-4"]
["UTC-04:30","UTC-43"]
["UTC-05","UTC-5"]
["UTC-06","UTC-6"]
["UTC-07","UTC-7"]
["UTC-08","UTC-8"]
["UTC-8:30","UTC-83"]
["UTC-09","UTC-9"]
["UTC-09:30","UTC-93"]
["Western Africa","WAT"]
["Walldorf (CET)","WDFT"]
["Western Europe","WET"]

{"sheet":"Completion_Date_timeZoneCode","index":11,"n_rows":126,"n_cols":2,"rows_kept":126,"cut":false,"hidden":false,"merged":[]}
["Description","Internal Code"]
["Afghanistan","AFGHAN"]
["Alaska (Anchorage)","ALA"]
["Alaska (Aleutian)","ALAW"]
["Argentina","ART"]
["Atlantic Time (Halifax)","AST"]
["Australia Capital Territories","AUSACT"]
["Australia Lord Howe Island","AUSLHI"]
["Australia New South Wales","AUSNSW"]
["Australia Northern Territories","AUSNT"]
["Australia Queensland","AUSQLD"]
["Australia South Australia","AUSSA"]
["Australia Tasmania","AUSTAS"]
["Australia Victoria","AUSVIC"]
["Australia Western Australia","AUSWA"]
["Europe Azores","AZOREN"]
["Azerbaijan","AZT"]
["Bangladesh","BDT"]
["Brazil","BRAZIL"]
["Brazil Andes","BRZLAN"]
["Brazil East","BRZLEA"]
["Brazil West","BRZLWE"]
["Central Africa","CAT"]
["Central Europe","CET"]
["Chile","CHILE"]
["Chile Easter Island","CHILEE"]
["Chile Magallanes Region","CHILEM"]
["Central Time (Dallas)","CST"]
["Central Time No DST","CSTNO"]
["North American Central Time","CST_NA"]
["Cyprus","CYPRUS"]
["Eastern Europe","EET"]
["Egypt","EGYPT"]
["Eastern Time (New York)","EST"]
["Eastern Time (Indianapolis)","ESTNO"]
["North American Eastern Time","EST_NA"]
["Falkland Islands","FLKLND"]
["Greenwich UK with DST","GMTUK"]
["Greenland","GST"]
["Eastern Greenland","GSTE"]
["Western Greenland","GSTW"]
["Hawaii","HAW"]
["India","INDIA"]
["Iran","IRAN"]
["Iraq","IRAQ"]
["Israel","ISRAEL"]
["Japan","JAPAN"]
["Jordan","JORDAN"]
["Lebanon","LBANON"]
["Mauritius","MAU"]
["Republic of Moldova","MOLDVA"]
["Morocco","MOROCC"]
["Mountain Time (Denver)","MST"]
["Mountain Time (Phoenix)","MSTNO"]
["North American Mountain Time","MST_NA"]
["Namibia","NAT"]
["Nepal","NEPAL"]
["Newfoundland","NFDL"]
["Norfolk Islands","NORFLK"]
["Newfoundland","NST"]
["New Zealand Chatham Islands","NZCHA"]
["New Zealand","NZST"]
["Paraguay","PARAGY"]
["St Pierre and Miquelon","PIERRE"]
["Pakistan","PKT"]
["Palestine","PLST"]
["Pacific Time (Los Angeles)","PST"]
["North American Pacific Time","PST_NA"]
["Russia (UTC+02)","RUS02"]
["Russia (Moscow) (UTC+03)","RUS03"]
["Russia (UTC+04)","RUS04"]
["Russia (UTC+05)","RUS05"]
["Russia (UTC+06)","RUS06"]
["Russia (UTC+07)","RUS07"]
["Russia (UTC+08)","RUS08"]
["Russia (UTC+09)","RUS09"]
["Russia (UTC+10)","RUS10"]
["Russia (UTC+11)","RUS11"]
["Russia (UTC+12)","RUS12"]
["Russia (UTC+13)","RUS13"]
["Russia (UTC+14)","RUS14"]
["Syria","SYRIA"]
["Turkey","TURKEY"]
["England, Ireland, Scotland","UK"]
["Uruguay","URUGUA"]
["UTC+0","UTC"]
["UTC+01","UTC+1"]
["UTC+10","UTC+10"]
["UTC+11","UTC+11"]
["UTC+12","UTC+12"]
["UTC+13","UTC+13"]
["UTC+14","UTC+14"]
["UTC+02","UTC+2"]
["UTC+03","UTC+3"]
["UTC+03:30","UTC+33"]
["UTC+04","UTC+4"]
["UTC+04:30","UTC+43"]
["UTC+05","UTC+5"]
["UTC+05:30","UTC+53"]
["UTC-01","UTC+54"]
["UTC+06","UTC+6"]
["UTC+06:30","UTC+63"]
["UTC+07","UTC+7"]
["UTC+08","UTC+8"]
["UTC+08:30","UTC+83"]
["UTC+09","UTC+9"]
["UTC+09:30","UTC+93"]
["UTC-01","UTC-1"]
["UTC-10","UTC-10"]
["UTC-11","UTC-11"]
["UTC-12","UTC-12"]
["UTC-02","UTC-2"]
["UTC-03","UTC-3"]
["UTC-03:30","UTC-33"]
["UTC-04","UTC-4"]
["UTC-04:30","UTC-43"]
["UTC-05","UTC-5"]
["UTC-06","UTC-6"]
["UTC-07","UTC-7"]
["UTC-08","UTC-8"]
["UTC-8:30","UTC-83"]
["UTC-09","UTC-9"]
["UTC-09:30","UTC-93"]
["Western Africa","WAT"]
["Walldorf (CET)","WDFT"]
["Western Europe","WET"]

{"sheet":"Initial_Review_Completed_timeZo","index":12,"n_rows":126,"n_cols":2,"rows_kept":126,"cut":false,"hidden":false,"merged":[]}
["Description","Internal Code"]
["Afghanistan","AFGHAN"]
["Alaska (Anchorage)","ALA"]
["Alaska (Aleutian)","ALAW"]
["Argentina","ART"]
["Atlantic Time (Halifax)","AST"]
["Australia Capital Territories","AUSACT"]
["Australia Lord Howe Island","AUSLHI"]
["Australia New South Wales","AUSNSW"]
["Australia Northern Territories","AUSNT"]
["Australia Queensland","AUSQLD"]
["Australia South Australia","AUSSA"]
["Australia Tasmania","AUSTAS"]
["Australia Victoria","AUSVIC"]
["Australia Western Australia","AUSWA"]
["Europe Azores","AZOREN"]
["Azerbaijan","AZT"]
["Bangladesh","BDT"]
["Brazil","BRAZIL"]
["Brazil Andes","BRZLAN"]
["Brazil East","BRZLEA"]
["Brazil West","BRZLWE"]
["Central Africa","CAT"]
["Central Europe","CET"]
["Chile","CHILE"]
["Chile Easter Island","CHILEE"]
["Chile Magallanes Region","CHILEM"]
["Central Time (Dallas)","CST"]
["Central Time No DST","CSTNO"]
["North American Central Time","CST_NA"]
["Cyprus","CYPRUS"]
["Eastern Europe","EET"]
["Egypt","EGYPT"]
["Eastern Time (New York)","EST"]
["Eastern Time (Indianapolis)","ESTNO"]
["North American Eastern Time","EST_NA"]
["Falkland Islands","FLKLND"]
["Greenwich UK with DST","GMTUK"]
["Greenland","GST"]
["Eastern Greenland","GSTE"]
["Western Greenland","GSTW"]
["Hawaii","HAW"]
["India","INDIA"]
["Iran","IRAN"]
["Iraq","IRAQ"]
["Israel","ISRAEL"]
["Japan","JAPAN"]
["Jordan","JORDAN"]
["Lebanon","LBANON"]
["Mauritius","MAU"]
["Republic of Moldova","MOLDVA"]
["Morocco","MOROCC"]
["Mountain Time (Denver)","MST"]
["Mountain Time (Phoenix)","MSTNO"]
["North American Mountain Time","MST_NA"]
["Namibia","NAT"]
["Nepal","NEPAL"]
["Newfoundland","NFDL"]
["Norfolk Islands","NORFLK"]
["Newfoundland","NST"]
["New Zealand Chatham Islands","NZCHA"]
["New Zealand","NZST"]
["Paraguay","PARAGY"]
["St Pierre and Miquelon","PIERRE"]
["Pakistan","PKT"]
["Palestine","PLST"]
["Pacific Time (Los Angeles)","PST"]
["North American Pacific Time","PST_NA"]
["Russia (UTC+02)","RUS02"]
["Russia (Moscow) (UTC+03)","RUS03"]
["Russia (UTC+04)","RUS04"]
["Russia (UTC+05)","RUS05"]
["Russia (UTC+06)","RUS06"]
["Russia (UTC+07)","RUS07"]
["Russia (UTC+08)","RUS08"]
["Russia (UTC+09)","RUS09"]
["Russia (UTC+10)","RUS10"]
["Russia (UTC+11)","RUS11"]
["Russia (UTC+12)","RUS12"]
["Russia (UTC+13)","RUS13"]
["Russia (UTC+14)","RUS14"]
["Syria","SYRIA"]
["Turkey","TURKEY"]
["England, Ireland, Scotland","UK"]
["Uruguay","URUGUA"]
["UTC+0","UTC"]
["UTC+01","UTC+1"]
["UTC+10","UTC+10"]
["UTC+11","UTC+11"]
["UTC+12","UTC+12"]
["UTC+13","UTC+13"]
["UTC+14","UTC+14"]
["UTC+02","UTC+2"]
["UTC+03","UTC+3"]
["UTC+03:30","UTC+33"]
["UTC+04","UTC+4"]
["UTC+04:30","UTC+43"]
["UTC+05","UTC+5"]
["UTC+05:30","UTC+53"]
["UTC-01","UTC+54"]
["UTC+06","UTC+6"]
["UTC+06:30","UTC+63"]
["UTC+07","UTC+7"]
["UTC+08","UTC+8"]
["UTC+08:30","UTC+83"]
["UTC+09","UTC+9"]
["UTC+09:30","UTC+93"]
["UTC-01","UTC-1"]
["UTC-10","UTC-10"]
["UTC-11","UTC-11"]
["UTC-12","UTC-12"]
["UTC-02","UTC-2"]
["UTC-03","UTC-3"]
["UTC-03:30","UTC-33"]
["UTC-04","UTC-4"]
["UTC-04:30","UTC-43"]
["UTC-05","UTC-5"]
["UTC-06","UTC-6"]
["UTC-07","UTC-7"]
["UTC-08","UTC-8"]
["UTC-8:30","UTC-83"]
["UTC-09","UTC-9"]
["UTC-09:30","UTC-93"]
["Western Africa","WAT"]
["Walldorf (CET)","WDFT"]
["Western Europe","WET"]

{"sheet":"Reported_On_timeZoneCode","index":13,"n_rows":126,"n_cols":2,"rows_kept":126,"cut":false,"hidden":false,"merged":[]}
["Description","Internal Code"]
["Afghanistan","AFGHAN"]
["Alaska (Anchorage)","ALA"]
["Alaska (Aleutian)","ALAW"]
["Argentina","ART"]
["Atlantic Time (Halifax)","AST"]
["Australia Capital Territories","AUSACT"]
["Australia Lord Howe Island","AUSLHI"]
["Australia New South Wales","AUSNSW"]
["Australia Northern Territories","AUSNT"]
["Australia Queensland","AUSQLD"]
["Australia South Australia","AUSSA"]
["Australia Tasmania","AUSTAS"]
["Australia Victoria","AUSVIC"]
["Australia Western Australia","AUSWA"]
["Europe Azores","AZOREN"]
["Azerbaijan","AZT"]
["Bangladesh","BDT"]
["Brazil","BRAZIL"]
["Brazil Andes","BRZLAN"]
["Brazil East","BRZLEA"]
["Brazil West","BRZLWE"]
["Central Africa","CAT"]
["Central Europe","CET"]
["Chile","CHILE"]
["Chile Easter Island","CHILEE"]
["Chile Magallanes Region","CHILEM"]
["Central Time (Dallas)","CST"]
["Central Time No DST","CSTNO"]
["North American Central Time","CST_NA"]
["Cyprus","CYPRUS"]
["Eastern Europe","EET"]
["Egypt","EGYPT"]
["Eastern Time (New York)","EST"]
["Eastern Time (Indianapolis)","ESTNO"]
["North American Eastern Time","EST_NA"]
["Falkland Islands","FLKLND"]
["Greenwich UK with DST","GMTUK"]
["Greenland","GST"]
["Eastern Greenland","GSTE"]
["Western Greenland","GSTW"]
["Hawaii","HAW"]
["India","INDIA"]
["Iran","IRAN"]
["Iraq","IRAQ"]
["Israel","ISRAEL"]
["Japan","JAPAN"]
["Jordan","JORDAN"]
["Lebanon","LBANON"]
["Mauritius","MAU"]
["Republic of Moldova","MOLDVA"]
["Morocco","MOROCC"]
["Mountain Time (Denver)","MST"]
["Mountain Time (Phoenix)","MSTNO"]
["North American Mountain Time","MST_NA"]
["Namibia","NAT"]
["Nepal","NEPAL"]
["Newfoundland","NFDL"]
["Norfolk Islands","NORFLK"]
["Newfoundland","NST"]
["New Zealand Chatham Islands","NZCHA"]
["New Zealand","NZST"]
["Paraguay","PARAGY"]
["St Pierre and Miquelon","PIERRE"]
["Pakistan","PKT"]
["Palestine","PLST"]
["Pacific Time (Los Angeles)","PST"]
["North American Pacific Time","PST_NA"]
["Russia (UTC+02)","RUS02"]
["Russia (Moscow) (UTC+03)","RUS03"]
["Russia (UTC+04)","RUS04"]
["Russia (UTC+05)","RUS05"]
["Russia (UTC+06)","RUS06"]
["Russia (UTC+07)","RUS07"]
["Russia (UTC+08)","RUS08"]
["Russia (UTC+09)","RUS09"]
["Russia (UTC+10)","RUS10"]
["Russia (UTC+11)","RUS11"]
["Russia (UTC+12)","RUS12"]
["Russia (UTC+13)","RUS13"]
["Russia (UTC+14)","RUS14"]
["Syria","SYRIA"]
["Turkey","TURKEY"]
["England, Ireland, Scotland","UK"]
["Uruguay","URUGUA"]
["UTC+0","UTC"]
["UTC+01","UTC+1"]
["UTC+10","UTC+10"]
["UTC+11","UTC+11"]
["UTC+12","UTC+12"]
["UTC+13","UTC+13"]
["UTC+14","UTC+14"]
["UTC+02","UTC+2"]
["UTC+03","UTC+3"]
["UTC+03:30","UTC+33"]
["UTC+04","UTC+4"]
["UTC+04:30","UTC+43"]
["UTC+05","UTC+5"]
["UTC+05:30","UTC+53"]
["UTC-01","UTC+54"]
["UTC+06","UTC+6"]
["UTC+06:30","UTC+63"]
["UTC+07","UTC+7"]
["UTC+08","UTC+8"]
["UTC+08:30","UTC+83"]
["UTC+09","UTC+9"]
["UTC+09:30","UTC+93"]
["UTC-01","UTC-1"]
["UTC-10","UTC-10"]
["UTC-11","UTC-11"]
["UTC-12","UTC-12"]
["UTC-02","UTC-2"]
["UTC-03","UTC-3"]
["UTC-03:30","UTC-33"]
["UTC-04","UTC-4"]
["UTC-04:30","UTC-43"]
["UTC-05","UTC-5"]
["UTC-06","UTC-6"]
["UTC-07","UTC-7"]
["UTC-08","UTC-8"]
["UTC-8:30","UTC-83"]
["UTC-09","UTC-9"]
["UTC-09:30","UTC-93"]
["Western Africa","WAT"]
["Walldorf (CET)","WDFT"]
["Western Europe","WET"]

{"sheet":"Requested_End_Date_timeZoneCode","index":14,"n_rows":126,"n_cols":2,"rows_kept":126,"cut":false,"hidden":false,"merged":[]}
["Description","Internal Code"]
["Afghanistan","AFGHAN"]
["Alaska (Anchorage)","ALA"]
["Alaska (Aleutian)","ALAW"]
["Argentina","ART"]
["Atlantic Time (Halifax)","AST"]
["Australia Capital Territories","AUSACT"]
["Australia Lord Howe Island","AUSLHI"]
["Australia New South Wales","AUSNSW"]
["Australia Northern Territories","AUSNT"]
["Australia Queensland","AUSQLD"]
["Australia South Australia","AUSSA"]
["Australia Tasmania","AUSTAS"]
["Australia Victoria","AUSVIC"]
["Australia Western Australia","AUSWA"]
["Europe Azores","AZOREN"]
["Azerbaijan","AZT"]
["Bangladesh","BDT"]
["Brazil","BRAZIL"]
["Brazil Andes","BRZLAN"]
["Brazil East","BRZLEA"]
["Brazil West","BRZLWE"]
["Central Africa","CAT"]
["Central Europe","CET"]
["Chile","CHILE"]
["Chile Easter Island","CHILEE"]
["Chile Magallanes Region","CHILEM"]
["Central Time (Dallas)","CST"]
["Central Time No DST","CSTNO"]
["North American Central Time","CST_NA"]
["Cyprus","CYPRUS"]
["Eastern Europe","EET"]
["Egypt","EGYPT"]
["Eastern Time (New York)","EST"]
["Eastern Time (Indianapolis)","ESTNO"]
["North American Eastern Time","EST_NA"]
["Falkland Islands","FLKLND"]
["Greenwich UK with DST","GMTUK"]
["Greenland","GST"]
["Eastern Greenland","GSTE"]
["Western Greenland","GSTW"]
["Hawaii","HAW"]
["India","INDIA"]
["Iran","IRAN"]
["Iraq","IRAQ"]
["Israel","ISRAEL"]
["Japan","JAPAN"]
["Jordan","JORDAN"]
["Lebanon","LBANON"]
["Mauritius","MAU"]
["Republic of Moldova","MOLDVA"]
["Morocco","MOROCC"]
["Mountain Time (Denver)","MST"]
["Mountain Time (Phoenix)","MSTNO"]
["North American Mountain Time","MST_NA"]
["Namibia","NAT"]
["Nepal","NEPAL"]
["Newfoundland","NFDL"]
["Norfolk Islands","NORFLK"]
["Newfoundland","NST"]
["New Zealand Chatham Islands","NZCHA"]
["New Zealand","NZST"]
["Paraguay","PARAGY"]
["St Pierre and Miquelon","PIERRE"]
["Pakistan","PKT"]
["Palestine","PLST"]
["Pacific Time (Los Angeles)","PST"]
["North American Pacific Time","PST_NA"]
["Russia (UTC+02)","RUS02"]
["Russia (Moscow) (UTC+03)","RUS03"]
["Russia (UTC+04)","RUS04"]
["Russia (UTC+05)","RUS05"]
["Russia (UTC+06)","RUS06"]
["Russia (UTC+07)","RUS07"]
["Russia (UTC+08)","RUS08"]
["Russia (UTC+09)","RUS09"]
["Russia (UTC+10)","RUS10"]
["Russia (UTC+11)","RUS11"]
["Russia (UTC+12)","RUS12"]
["Russia (UTC+13)","RUS13"]
["Russia (UTC+14)","RUS14"]
["Syria","SYRIA"]
["Turkey","TURKEY"]
["England, Ireland, Scotland","UK"]
["Uruguay","URUGUA"]
["UTC+0","UTC"]
["UTC+01","UTC+1"]
["UTC+10","UTC+10"]
["UTC+11","UTC+11"]
["UTC+12","UTC+12"]
["UTC+13","UTC+13"]
["UTC+14","UTC+14"]
["UTC+02","UTC+2"]
["UTC+03","UTC+3"]
["UTC+03:30","UTC+33"]
["UTC+04","UTC+4"]
["UTC+04:30","UTC+43"]
["UTC+05","UTC+5"]
["UTC+05:30","UTC+53"]
["UTC-01","UTC+54"]
["UTC+06","UTC+6"]
["UTC+06:30","UTC+63"]
["UTC+07","UTC+7"]
["UTC+08","UTC+8"]
["UTC+08:30","UTC+83"]
["UTC+09","UTC+9"]
["UTC+09:30","UTC+93"]
["UTC-01","UTC-1"]
["UTC-10","UTC-10"]
["UTC-11","UTC-11"]
["UTC-12","UTC-12"]
["UTC-02","UTC-2"]
["UTC-03","UTC-3"]
["UTC-03:30","UTC-33"]
["UTC-04","UTC-4"]
["UTC-04:30","UTC-43"]
["UTC-05","UTC-5"]
["UTC-06","UTC-6"]
["UTC-07","UTC-7"]
["UTC-08","UTC-8"]
["UTC-8:30","UTC-83"]
["UTC-09","UTC-9"]
["UTC-09:30","UTC-93"]
["Western Africa","WAT"]
["Walldorf (CET)","WDFT"]
["Western Europe","WET"]

{"sheet":"Requested_Start_Date_timeZoneCo","index":15,"n_rows":126,"n_cols":2,"rows_kept":126,"cut":false,"hidden":false,"merged":[]}
["Description","Internal Code"]
["Afghanistan","AFGHAN"]
["Alaska (Anchorage)","ALA"]
["Alaska (Aleutian)","ALAW"]
["Argentina","ART"]
["Atlantic Time (Halifax)","AST"]
["Australia Capital Territories","AUSACT"]
["Australia Lord Howe Island","AUSLHI"]
["Australia New South Wales","AUSNSW"]
["Australia Northern Territories","AUSNT"]
["Australia Queensland","AUSQLD"]
["Australia South Australia","AUSSA"]
["Australia Tasmania","AUSTAS"]
["Australia Victoria","AUSVIC"]
["Australia Western Australia","AUSWA"]
["Europe Azores","AZOREN"]
["Azerbaijan","AZT"]
["Bangladesh","BDT"]
["Brazil","BRAZIL"]
["Brazil Andes","BRZLAN"]
["Brazil East","BRZLEA"]
["Brazil West","BRZLWE"]
["Central Africa","CAT"]
["Central Europe","CET"]
["Chile","CHILE"]
["Chile Easter Island","CHILEE"]
["Chile Magallanes Region","CHILEM"]
["Central Time (Dallas)","CST"]
["Central Time No DST","CSTNO"]
["North American Central Time","CST_NA"]
["Cyprus","CYPRUS"]
["Eastern Europe","EET"]
["Egypt","EGYPT"]
["Eastern Time (New York)","EST"]
["Eastern Time (Indianapolis)","ESTNO"]
["North American Eastern Time","EST_NA"]
["Falkland Islands","FLKLND"]
["Greenwich UK with DST","GMTUK"]
["Greenland","GST"]
["Eastern Greenland","GSTE"]
["Western Greenland","GSTW"]
["Hawaii","HAW"]
["India","INDIA"]
["Iran","IRAN"]
["Iraq","IRAQ"]
["Israel","ISRAEL"]
["Japan","JAPAN"]
["Jordan","JORDAN"]
["Lebanon","LBANON"]
["Mauritius","MAU"]
["Republic of Moldova","MOLDVA"]
["Morocco","MOROCC"]
["Mountain Time (Denver)","MST"]
["Mountain Time (Phoenix)","MSTNO"]
["North American Mountain Time","MST_NA"]
["Namibia","NAT"]
["Nepal","NEPAL"]
["Newfoundland","NFDL"]
["Norfolk Islands","NORFLK"]
["Newfoundland","NST"]
["New Zealand Chatham Islands","NZCHA"]
["New Zealand","NZST"]
["Paraguay","PARAGY"]
["St Pierre and Miquelon","PIERRE"]
["Pakistan","PKT"]
["Palestine","PLST"]
["Pacific Time (Los Angeles)","PST"]
["North American Pacific Time","PST_NA"]
["Russia (UTC+02)","RUS02"]
["Russia (Moscow) (UTC+03)","RUS03"]
["Russia (UTC+04)","RUS04"]
["Russia (UTC+05)","RUS05"]
["Russia (UTC+06)","RUS06"]
["Russia (UTC+07)","RUS07"]
["Russia (UTC+08)","RUS08"]
["Russia (UTC+09)","RUS09"]
["Russia (UTC+10)","RUS10"]
["Russia (UTC+11)","RUS11"]
["Russia (UTC+12)","RUS12"]
["Russia (UTC+13)","RUS13"]
["Russia (UTC+14)","RUS14"]
["Syria","SYRIA"]
["Turkey","TURKEY"]
["England, Ireland, Scotland","UK"]
["Uruguay","URUGUA"]
["UTC+0","UTC"]
["UTC+01","UTC+1"]
["UTC+10","UTC+10"]
["UTC+11","UTC+11"]
["UTC+12","UTC+12"]
["UTC+13","UTC+13"]
["UTC+14","UTC+14"]
["UTC+02","UTC+2"]
["UTC+03","UTC+3"]
["UTC+03:30","UTC+33"]
["UTC+04","UTC+4"]
["UTC+04:30","UTC+43"]
["UTC+05","UTC+5"]
["UTC+05:30","UTC+53"]
["UTC-01","UTC+54"]
["UTC+06","UTC+6"]
["UTC+06:30","UTC+63"]
["UTC+07","UTC+7"]
["UTC+08","UTC+8"]
["UTC+08:30","UTC+83"]
["UTC+09","UTC+9"]
["UTC+09:30","UTC+93"]
["UTC-01","UTC-1"]
["UTC-10","UTC-10"]
["UTC-11","UTC-11"]
["UTC-12","UTC-12"]
["UTC-02","UTC-2"]
["UTC-03","UTC-3"]
["UTC-03:30","UTC-33"]
["UTC-04","UTC-4"]
["UTC-04:30","UTC-43"]
["UTC-05","UTC-5"]
["UTC-06","UTC-6"]
["UTC-07","UTC-7"]
["UTC-08","UTC-8"]
["UTC-8:30","UTC-83"]
["UTC-09","UTC-9"]
["UTC-09:30","UTC-93"]
["Western Africa","WAT"]
["Walldorf (CET)","WDFT"]
["Western Europe","WET"]

{"sheet":"ResolutionDue_timeZoneCode","index":16,"n_rows":126,"n_cols":2,"rows_kept":126,"cut":false,"hidden":false,"merged":[]}
["Description","Internal Code"]
["Afghanistan","AFGHAN"]
["Alaska (Anchorage)","ALA"]
["Alaska (Aleutian)","ALAW"]
["Argentina","ART"]
["Atlantic Time (Halifax)","AST"]
["Australia Capital Territories","AUSACT"]
["Australia Lord Howe Island","AUSLHI"]
["Australia New South Wales","AUSNSW"]
["Australia Northern Territories","AUSNT"]
["Australia Queensland","AUSQLD"]
["Australia South Australia","AUSSA"]
["Australia Tasmania","AUSTAS"]
["Australia Victoria","AUSVIC"]
["Australia Western Australia","AUSWA"]
["Europe Azores","AZOREN"]
["Azerbaijan","AZT"]
["Bangladesh","BDT"]
["Brazil","BRAZIL"]
["Brazil Andes","BRZLAN"]
["Brazil East","BRZLEA"]
["Brazil West","BRZLWE"]
["Central Africa","CAT"]
["Central Europe","CET"]
["Chile","CHILE"]
["Chile Easter Island","CHILEE"]
["Chile Magallanes Region","CHILEM"]
["Central Time (Dallas)","CST"]
["Central Time No DST","CSTNO"]
["North American Central Time","CST_NA"]
["Cyprus","CYPRUS"]
["Eastern Europe","EET"]
["Egypt","EGYPT"]
["Eastern Time (New York)","EST"]
["Eastern Time (Indianapolis)","ESTNO"]
["North American Eastern Time","EST_NA"]
["Falkland Islands","FLKLND"]
["Greenwich UK with DST","GMTUK"]
["Greenland","GST"]
["Eastern Greenland","GSTE"]
["Western Greenland","GSTW"]
["Hawaii","HAW"]
["India","INDIA"]
["Iran","IRAN"]
["Iraq","IRAQ"]
["Israel","ISRAEL"]
["Japan","JAPAN"]
["Jordan","JORDAN"]
["Lebanon","LBANON"]
["Mauritius","MAU"]
["Republic of Moldova","MOLDVA"]
["Morocco","MOROCC"]
["Mountain Time (Denver)","MST"]
["Mountain Time (Phoenix)","MSTNO"]
["North American Mountain Time","MST_NA"]
["Namibia","NAT"]
["Nepal","NEPAL"]
["Newfoundland","NFDL"]
["Norfolk Islands","NORFLK"]
["Newfoundland","NST"]
["New Zealand Chatham Islands","NZCHA"]
["New Zealand","NZST"]
["Paraguay","PARAGY"]
["St Pierre and Miquelon","PIERRE"]
["Pakistan","PKT"]
["Palestine","PLST"]
["Pacific Time (Los Angeles)","PST"]
["North American Pacific Time","PST_NA"]
["Russia (UTC+02)","RUS02"]
["Russia (Moscow) (UTC+03)","RUS03"]
["Russia (UTC+04)","RUS04"]
["Russia (UTC+05)","RUS05"]
["Russia (UTC+06)","RUS06"]
["Russia (UTC+07)","RUS07"]
["Russia (UTC+08)","RUS08"]
["Russia (UTC+09)","RUS09"]
["Russia (UTC+10)","RUS10"]
["Russia (UTC+11)","RUS11"]
["Russia (UTC+12)","RUS12"]
["Russia (UTC+13)","RUS13"]
["Russia (UTC+14)","RUS14"]
["Syria","SYRIA"]
["Turkey","TURKEY"]
["England, Ireland, Scotland","UK"]
["Uruguay","URUGUA"]
["UTC+0","UTC"]
["UTC+01","UTC+1"]
["UTC+10","UTC+10"]
["UTC+11","UTC+11"]
["UTC+12","UTC+12"]
["UTC+13","UTC+13"]
["UTC+14","UTC+14"]
["UTC+02","UTC+2"]
["UTC+03","UTC+3"]
["UTC+03:30","UTC+33"]
["UTC+04","UTC+4"]
["UTC+04:30","UTC+43"]
["UTC+05","UTC+5"]
["UTC+05:30","UTC+53"]
["UTC-01","UTC+54"]
["UTC+06","UTC+6"]
["UTC+06:30","UTC+63"]
["UTC+07","UTC+7"]
["UTC+08","UTC+8"]
["UTC+08:30","UTC+83"]
["UTC+09","UTC+9"]
["UTC+09:30","UTC+93"]
["UTC-01","UTC-1"]
["UTC-10","UTC-10"]
["UTC-11","UTC-11"]
["UTC-12","UTC-12"]
["UTC-02","UTC-2"]
["UTC-03","UTC-3"]
["UTC-03:30","UTC-33"]
["UTC-04","UTC-4"]
["UTC-04:30","UTC-43"]
["UTC-05","UTC-5"]
["UTC-06","UTC-6"]
["UTC-07","UTC-7"]
["UTC-08","UTC-8"]
["UTC-8:30","UTC-83"]
["UTC-09","UTC-9"]
["UTC-09:30","UTC-93"]
["Western Africa","WAT"]
["Walldorf (CET)","WDFT"]
["Western Europe","WET"]

{"sheet":"Resolved_On_timeZoneCode","index":17,"n_rows":126,"n_cols":2,"rows_kept":126,"cut":false,"hidden":false,"merged":[]}
["Description","Internal Code"]
["Afghanistan","AFGHAN"]
["Alaska (Anchorage)","ALA"]
["Alaska (Aleutian)","ALAW"]
["Argentina","ART"]
["Atlantic Time (Halifax)","AST"]
["Australia Capital Territories","AUSACT"]
["Australia Lord Howe Island","AUSLHI"]
["Australia New South Wales","AUSNSW"]
["Australia Northern Territories","AUSNT"]
["Australia Queensland","AUSQLD"]
["Australia South Australia","AUSSA"]
["Australia Tasmania","AUSTAS"]
["Australia Victoria","AUSVIC"]
["Australia Western Australia","AUSWA"]
["Europe Azores","AZOREN"]
["Azerbaijan","AZT"]
["Bangladesh","BDT"]
["Brazil","BRAZIL"]
["Brazil Andes","BRZLAN"]
["Brazil East","BRZLEA"]
["Brazil West","BRZLWE"]
["Central Africa","CAT"]
["Central Europe","CET"]
["Chile","CHILE"]
["Chile Easter Island","CHILEE"]
["Chile Magallanes Region","CHILEM"]
["Central Time (Dallas)","CST"]
["Central Time No DST","CSTNO"]
["North American Central Time","CST_NA"]
["Cyprus","CYPRUS"]
["Eastern Europe","EET"]
["Egypt","EGYPT"]
["Eastern Time (New York)","EST"]
["Eastern Time (Indianapolis)","ESTNO"]
["North American Eastern Time","EST_NA"]
["Falkland Islands","FLKLND"]
["Greenwich UK with DST","GMTUK"]
["Greenland","GST"]
["Eastern Greenland","GSTE"]
["Western Greenland","GSTW"]
["Hawaii","HAW"]
["India","INDIA"]
["Iran","IRAN"]
["Iraq","IRAQ"]
["Israel","ISRAEL"]
["Japan","JAPAN"]
["Jordan","JORDAN"]
["Lebanon","LBANON"]
["Mauritius","MAU"]
["Republic of Moldova","MOLDVA"]
["Morocco","MOROCC"]
["Mountain Time (Denver)","MST"]
["Mountain Time (Phoenix)","MSTNO"]
["North American Mountain Time","MST_NA"]
["Namibia","NAT"]
["Nepal","NEPAL"]
["Newfoundland","NFDL"]
["Norfolk Islands","NORFLK"]
["Newfoundland","NST"]
["New Zealand Chatham Islands","NZCHA"]
["New Zealand","NZST"]
["Paraguay","PARAGY"]
["St Pierre and Miquelon","PIERRE"]
["Pakistan","PKT"]
["Palestine","PLST"]
["Pacific Time (Los Angeles)","PST"]
["North American Pacific Time","PST_NA"]
["Russia (UTC+02)","RUS02"]
["Russia (Moscow) (UTC+03)","RUS03"]
["Russia (UTC+04)","RUS04"]
["Russia (UTC+05)","RUS05"]
["Russia (UTC+06)","RUS06"]
["Russia (UTC+07)","RUS07"]
["Russia (UTC+08)","RUS08"]
["Russia (UTC+09)","RUS09"]
["Russia (UTC+10)","RUS10"]
["Russia (UTC+11)","RUS11"]
["Russia (UTC+12)","RUS12"]
["Russia (UTC+13)","RUS13"]
["Russia (UTC+14)","RUS14"]
["Syria","SYRIA"]
["Turkey","TURKEY"]
["England, Ireland, Scotland","UK"]
["Uruguay","URUGUA"]
["UTC+0","UTC"]
["UTC+01","UTC+1"]
["UTC+10","UTC+10"]
["UTC+11","UTC+11"]
["UTC+12","UTC+12"]
["UTC+13","UTC+13"]
["UTC+14","UTC+14"]
["UTC+02","UTC+2"]
["UTC+03","UTC+3"]
["UTC+03:30","UTC+33"]
["UTC+04","UTC+4"]
["UTC+04:30","UTC+43"]
["UTC+05","UTC+5"]
["UTC+05:30","UTC+53"]
["UTC-01","UTC+54"]
["UTC+06","UTC+6"]
["UTC+06:30","UTC+63"]
["UTC+07","UTC+7"]
["UTC+08","UTC+8"]
["UTC+08:30","UTC+83"]
["UTC+09","UTC+9"]
["UTC+09:30","UTC+93"]
["UTC-01","UTC-1"]
["UTC-10","UTC-10"]
["UTC-11","UTC-11"]
["UTC-12","UTC-12"]
["UTC-02","UTC-2"]
["UTC-03","UTC-3"]
["UTC-03:30","UTC-33"]
["UTC-04","UTC-4"]
["UTC-04:30","UTC-43"]
["UTC-05","UTC-5"]
["UTC-06","UTC-6"]
["UTC-07","UTC-7"]
["UTC-08","UTC-8"]
["UTC-8:30","UTC-83"]
["UTC-09","UTC-9"]
["UTC-09:30","UTC-93"]
["Western Africa","WAT"]
["Walldorf (CET)","WDFT"]
["Western Europe","WET"]

{"sheet":"Last_Agent_Interaction_Time_Zon","index":18,"n_rows":126,"n_cols":2,"rows_kept":126,"cut":false,"hidden":false,"merged":[]}
["Description","Internal Code"]
["Afghanistan","AFGHAN"]
["Alaska (Anchorage)","ALA"]
["Alaska (Aleutian)","ALAW"]
["Argentina","ART"]
["Atlantic Time (Halifax)","AST"]
["Australia Capital Territories","AUSACT"]
["Australia Lord Howe Island","AUSLHI"]
["Australia New South Wales","AUSNSW"]
["Australia Northern Territories","AUSNT"]
["Australia Queensland","AUSQLD"]
["Australia South Australia","AUSSA"]
["Australia Tasmania","AUSTAS"]
["Australia Victoria","AUSVIC"]
["Australia Western Australia","AUSWA"]
["Europe Azores","AZOREN"]
["Azerbaijan","AZT"]
["Bangladesh","BDT"]
["Brazil","BRAZIL"]
["Brazil Andes","BRZLAN"]
["Brazil East","BRZLEA"]
["Brazil West","BRZLWE"]
["Central Africa","CAT"]
["Central Europe","CET"]
["Chile","CHILE"]
["Chile Easter Island","CHILEE"]
["Chile Magallanes Region","CHILEM"]
["Central Time (Dallas)","CST"]
["Central Time No DST","CSTNO"]
["North American Central Time","CST_NA"]
["Cyprus","CYPRUS"]
["Eastern Europe","EET"]
["Egypt","EGYPT"]
["Eastern Time (New York)","EST"]
["Eastern Time (Indianapolis)","ESTNO"]
["North American Eastern Time","EST_NA"]
["Falkland Islands","FLKLND"]
["Greenwich UK with DST","GMTUK"]
["Greenland","GST"]
["Eastern Greenland","GSTE"]
["Western Greenland","GSTW"]
["Hawaii","HAW"]
["India","INDIA"]
["Iran","IRAN"]
["Iraq","IRAQ"]
["Israel","ISRAEL"]
["Japan","JAPAN"]
["Jordan","JORDAN"]
["Lebanon","LBANON"]
["Mauritius","MAU"]
["Republic of Moldova","MOLDVA"]
["Morocco","MOROCC"]
["Mountain Time (Denver)","MST"]
["Mountain Time (Phoenix)","MSTNO"]
["North American Mountain Time","MST_NA"]
["Namibia","NAT"]
["Nepal","NEPAL"]
["Newfoundland","NFDL"]
["Norfolk Islands","NORFLK"]
["Newfoundland","NST"]
["New Zealand Chatham Islands","NZCHA"]
["New Zealand","NZST"]
["Paraguay","PARAGY"]
["St Pierre and Miquelon","PIERRE"]
["Pakistan","PKT"]
["Palestine","PLST"]
["Pacific Time (Los Angeles)","PST"]
["North American Pacific Time","PST_NA"]
["Russia (UTC+02)","RUS02"]
["Russia (Moscow) (UTC+03)","RUS03"]
["Russia (UTC+04)","RUS04"]
["Russia (UTC+05)","RUS05"]
["Russia (UTC+06)","RUS06"]
["Russia (UTC+07)","RUS07"]
["Russia (UTC+08)","RUS08"]
["Russia (UTC+09)","RUS09"]
["Russia (UTC+10)","RUS10"]
["Russia (UTC+11)","RUS11"]
["Russia (UTC+12)","RUS12"]
["Russia (UTC+13)","RUS13"]
["Russia (UTC+14)","RUS14"]
["Syria","SYRIA"]
["Turkey","TURKEY"]
["England, Ireland, Scotland","UK"]
["Uruguay","URUGUA"]
["UTC+0","UTC"]
["UTC+01","UTC+1"]
["UTC+10","UTC+10"]
["UTC+11","UTC+11"]
["UTC+12","UTC+12"]
["UTC+13","UTC+13"]
["UTC+14","UTC+14"]
["UTC+02","UTC+2"]
["UTC+03","UTC+3"]
["UTC+03:30","UTC+33"]
["UTC+04","UTC+4"]
["UTC+04:30","UTC+43"]
["UTC+05","UTC+5"]
["UTC+05:30","UTC+53"]
["UTC-01","UTC+54"]
["UTC+06","UTC+6"]
["UTC+06:30","UTC+63"]
["UTC+07","UTC+7"]
["UTC+08","UTC+8"]
["UTC+08:30","UTC+83"]
["UTC+09","UTC+9"]
["UTC+09:30","UTC+93"]
["UTC-01","UTC-1"]
["UTC-10","UTC-10"]
["UTC-11","UTC-11"]
["UTC-12","UTC-12"]
["UTC-02","UTC-2"]
["UTC-03","UTC-3"]
["UTC-03:30","UTC-33"]
["UTC-04","UTC-4"]
["UTC-04:30","UTC-43"]
["UTC-05","UTC-5"]
["UTC-06","UTC-6"]
["UTC-07","UTC-7"]
["UTC-08","UTC-8"]
["UTC-8:30","UTC-83"]
["UTC-09","UTC-9"]
["UTC-09:30","UTC-93"]
["Western Africa","WAT"]
["Walldorf (CET)","WDFT"]
["Western Europe","WET"]

{"sheet":"Next_Response_Due_Time_Zone_Cod","index":19,"n_rows":126,"n_cols":2,"rows_kept":126,"cut":false,"hidden":false,"merged":[]}
["Description","Internal Code"]
["Afghanistan","AFGHAN"]
["Alaska (Anchorage)","ALA"]
["Alaska (Aleutian)","ALAW"]
["Argentina","ART"]
["Atlantic Time (Halifax)","AST"]
["Australia Capital Territories","AUSACT"]
["Australia Lord Howe Island","AUSLHI"]
["Australia New South Wales","AUSNSW"]
["Australia Northern Territories","AUSNT"]
["Australia Queensland","AUSQLD"]
["Australia South Australia","AUSSA"]
["Australia Tasmania","AUSTAS"]
["Australia Victoria","AUSVIC"]
["Australia Western Australia","AUSWA"]
["Europe Azores","AZOREN"]
["Azerbaijan","AZT"]
["Bangladesh","BDT"]
["Brazil","BRAZIL"]
["Brazil Andes","BRZLAN"]
["Brazil East","BRZLEA"]
["Brazil West","BRZLWE"]
["Central Africa","CAT"]
["Central Europe","CET"]
["Chile","CHILE"]
["Chile Easter Island","CHILEE"]
["Chile Magallanes Region","CHILEM"]
["Central Time (Dallas)","CST"]
["Central Time No DST","CSTNO"]
["North American Central Time","CST_NA"]
["Cyprus","CYPRUS"]
["Eastern Europe","EET"]
["Egypt","EGYPT"]
["Eastern Time (New York)","EST"]
["Eastern Time (Indianapolis)","ESTNO"]
["North American Eastern Time","EST_NA"]
["Falkland Islands","FLKLND"]
["Greenwich UK with DST","GMTUK"]
["Greenland","GST"]
["Eastern Greenland","GSTE"]
["Western Greenland","GSTW"]
["Hawaii","HAW"]
["India","INDIA"]
["Iran","IRAN"]
["Iraq","IRAQ"]
["Israel","ISRAEL"]
["Japan","JAPAN"]
["Jordan","JORDAN"]
["Lebanon","LBANON"]
["Mauritius","MAU"]
["Republic of Moldova","MOLDVA"]
["Morocco","MOROCC"]
["Mountain Time (Denver)","MST"]
["Mountain Time (Phoenix)","MSTNO"]
["North American Mountain Time","MST_NA"]
["Namibia","NAT"]
["Nepal","NEPAL"]
["Newfoundland","NFDL"]
["Norfolk Islands","NORFLK"]
["Newfoundland","NST"]
["New Zealand Chatham Islands","NZCHA"]
["New Zealand","NZST"]
["Paraguay","PARAGY"]
["St Pierre and Miquelon","PIERRE"]
["Pakistan","PKT"]
["Palestine","PLST"]
["Pacific Time (Los Angeles)","PST"]
["North American Pacific Time","PST_NA"]
["Russia (UTC+02)","RUS02"]
["Russia (Moscow) (UTC+03)","RUS03"]
["Russia (UTC+04)","RUS04"]
["Russia (UTC+05)","RUS05"]
["Russia (UTC+06)","RUS06"]
["Russia (UTC+07)","RUS07"]
["Russia (UTC+08)","RUS08"]
["Russia (UTC+09)","RUS09"]
["Russia (UTC+10)","RUS10"]
["Russia (UTC+11)","RUS11"]
["Russia (UTC+12)","RUS12"]
["Russia (UTC+13)","RUS13"]
["Russia (UTC+14)","RUS14"]
["Syria","SYRIA"]
["Turkey","TURKEY"]
["England, Ireland, Scotland","UK"]
["Uruguay","URUGUA"]
["UTC+0","UTC"]
["UTC+01","UTC+1"]
["UTC+10","UTC+10"]
["UTC+11","UTC+11"]
["UTC+12","UTC+12"]
["UTC+13","UTC+13"]
["UTC+14","UTC+14"]
["UTC+02","UTC+2"]
["UTC+03","UTC+3"]
["UTC+03:30","UTC+33"]
["UTC+04","UTC+4"]
["UTC+04:30","UTC+43"]
["UTC+05","UTC+5"]
["UTC+05:30","UTC+53"]
["UTC-01","UTC+54"]
["UTC+06","UTC+6"]
["UTC+06:30","UTC+63"]
["UTC+07","UTC+7"]
["UTC+08","UTC+8"]
["UTC+08:30","UTC+83"]
["UTC+09","UTC+9"]
["UTC+09:30","UTC+93"]
["UTC-01","UTC-1"]
["UTC-10","UTC-10"]
["UTC-11","UTC-11"]
["UTC-12","UTC-12"]
["UTC-02","UTC-2"]
["UTC-03","UTC-3"]
["UTC-03:30","UTC-33"]
["UTC-04","UTC-4"]
["UTC-04:30","UTC-43"]
["UTC-05","UTC-5"]
["UTC-06","UTC-6"]
["UTC-07","UTC-7"]
["UTC-08","UTC-8"]
["UTC-8:30","UTC-83"]
["UTC-09","UTC-9"]
["UTC-09:30","UTC-93"]
["Western Africa","WAT"]
["Walldorf (CET)","WDFT"]
["Western Europe","WET"]

{"sheet":"Last_Customer_Interaction_Time_","index":20,"n_rows":126,"n_cols":2,"rows_kept":126,"cut":false,"hidden":false,"merged":[]}
["Description","Internal Code"]
["Afghanistan","AFGHAN"]
["Alaska (Anchorage)","ALA"]
["Alaska (Aleutian)","ALAW"]
["Argentina","ART"]
["Atlantic Time (Halifax)","AST"]
["Australia Capital Territories","AUSACT"]
["Australia Lord Howe Island","AUSLHI"]
["Australia New South Wales","AUSNSW"]
["Australia Northern Territories","AUSNT"]
["Australia Queensland","AUSQLD"]
["Australia South Australia","AUSSA"]
["Australia Tasmania","AUSTAS"]
["Australia Victoria","AUSVIC"]
["Australia Western Australia","AUSWA"]
["Europe Azores","AZOREN"]
["Azerbaijan","AZT"]
["Bangladesh","BDT"]
["Brazil","BRAZIL"]
["Brazil Andes","BRZLAN"]
["Brazil East","BRZLEA"]
["Brazil West","BRZLWE"]
["Central Africa","CAT"]
["Central Europe","CET"]
["Chile","CHILE"]
["Chile Easter Island","CHILEE"]
["Chile Magallanes Region","CHILEM"]
["Central Time (Dallas)","CST"]
["Central Time No DST","CSTNO"]
["North American Central Time","CST_NA"]
["Cyprus","CYPRUS"]
["Eastern Europe","EET"]
["Egypt","EGYPT"]
["Eastern Time (New York)","EST"]
["Eastern Time (Indianapolis)","ESTNO"]
["North American Eastern Time","EST_NA"]
["Falkland Islands","FLKLND"]
["Greenwich UK with DST","GMTUK"]
["Greenland","GST"]
["Eastern Greenland","GSTE"]
["Western Greenland","GSTW"]
["Hawaii","HAW"]
["India","INDIA"]
["Iran","IRAN"]
["Iraq","IRAQ"]
["Israel","ISRAEL"]
["Japan","JAPAN"]
["Jordan","JORDAN"]
["Lebanon","LBANON"]
["Mauritius","MAU"]
["Republic of Moldova","MOLDVA"]
["Morocco","MOROCC"]
["Mountain Time (Denver)","MST"]
["Mountain Time (Phoenix)","MSTNO"]
["North American Mountain Time","MST_NA"]
["Namibia","NAT"]
["Nepal","NEPAL"]
["Newfoundland","NFDL"]
["Norfolk Islands","NORFLK"]
["Newfoundland","NST"]
["New Zealand Chatham Islands","NZCHA"]
["New Zealand","NZST"]
["Paraguay","PARAGY"]
["St Pierre and Miquelon","PIERRE"]
["Pakistan","PKT"]
["Palestine","PLST"]
["Pacific Time (Los Angeles)","PST"]
["North American Pacific Time","PST_NA"]
["Russia (UTC+02)","RUS02"]
["Russia (Moscow) (UTC+03)","RUS03"]
["Russia (UTC+04)","RUS04"]
["Russia (UTC+05)","RUS05"]
["Russia (UTC+06)","RUS06"]
["Russia (UTC+07)","RUS07"]
["Russia (UTC+08)","RUS08"]
["Russia (UTC+09)","RUS09"]
["Russia (UTC+10)","RUS10"]
["Russia (UTC+11)","RUS11"]
["Russia (UTC+12)","RUS12"]
["Russia (UTC+13)","RUS13"]
["Russia (UTC+14)","RUS14"]
["Syria","SYRIA"]
["Turkey","TURKEY"]
["England, Ireland, Scotland","UK"]
["Uruguay","URUGUA"]
["UTC+0","UTC"]
["UTC+01","UTC+1"]
["UTC+10","UTC+10"]
["UTC+11","UTC+11"]
["UTC+12","UTC+12"]
["UTC+13","UTC+13"]
["UTC+14","UTC+14"]
["UTC+02","UTC+2"]
["UTC+03","UTC+3"]
["UTC+03:30","UTC+33"]
["UTC+04","UTC+4"]
["UTC+04:30","UTC+43"]
["UTC+05","UTC+5"]
["UTC+05:30","UTC+53"]
["UTC-01","UTC+54"]
["UTC+06","UTC+6"]
["UTC+06:30","UTC+63"]
["UTC+07","UTC+7"]
["UTC+08","UTC+8"]
["UTC+08:30","UTC+83"]
["UTC+09","UTC+9"]
["UTC+09:30","UTC+93"]
["UTC-01","UTC-1"]
["UTC-10","UTC-10"]
["UTC-11","UTC-11"]
["UTC-12","UTC-12"]
["UTC-02","UTC-2"]
["UTC-03","UTC-3"]
["UTC-03:30","UTC-33"]
["UTC-04","UTC-4"]
["UTC-04:30","UTC-43"]
["UTC-05","UTC-5"]
["UTC-06","UTC-6"]
["UTC-07","UTC-7"]
["UTC-08","UTC-8"]
["UTC-8:30","UTC-83"]
["UTC-09","UTC-9"]
["UTC-09:30","UTC-93"]
["Western Africa","WAT"]
["Walldorf (CET)","WDFT"]
["Western Europe","WET"]

{"sheet":"Priority_Code","index":21,"n_rows":5,"n_cols":2,"rows_kept":5,"cut":false,"hidden":false,"merged":[]}
["Description","Internal Code"]
["Immediate","1"]
["Urgent","2"]
["Normal","3"]
["Low","7"]

{"sheet":"Classification","index":22,"n_rows":4,"n_cols":2,"rows_kept":4,"cut":false,"hidden":false,"merged":[]}
["Description","Internal Code"]
["Problem","1"]
["Comment","2"]
["Not Relevant","3"]

{"sheet":"Status_Code","index":23,"n_rows":7,"n_cols":2,"rows_kept":7,"cut":false,"hidden":false,"merged":[]}
["Description","Internal Code"]
["Open","1"]
["In Process","2"]
["Customer Action","4"]
["Completed","5"]
["Closed","6"]
["Pending quote","Z1"]

{"sheet":"Coverage_Code","index":24,"n_rows":1,"n_cols":2,"rows_kept":1,"cut":false,"hidden":false,"merged":[]}
["Description","Internal Code"]

{"sheet":"Warranty_Start_Ref_date","index":25,"n_rows":126,"n_cols":2,"rows_kept":126,"cut":false,"hidden":false,"merged":[]}
["Description","Internal Code"]
["Afghanistan","AFGHAN"]
["Alaska (Anchorage)","ALA"]
["Alaska (Aleutian)","ALAW"]
["Argentina","ART"]
["Atlantic Time (Halifax)","AST"]
["Australia Capital Territories","AUSACT"]
["Australia Lord Howe Island","AUSLHI"]
["Australia New South Wales","AUSNSW"]
["Australia Northern Territories","AUSNT"]
["Australia Queensland","AUSQLD"]
["Australia South Australia","AUSSA"]
["Australia Tasmania","AUSTAS"]
["Australia Victoria","AUSVIC"]
["Australia Western Australia","AUSWA"]
["Europe Azores","AZOREN"]
["Azerbaijan","AZT"]
["Bangladesh","BDT"]
["Brazil","BRAZIL"]
["Brazil Andes","BRZLAN"]
["Brazil East","BRZLEA"]
["Brazil West","BRZLWE"]
["Central Africa","CAT"]
["Central Europe","CET"]
["Chile","CHILE"]
["Chile Easter Island","CHILEE"]
["Chile Magallanes Region","CHILEM"]
["Central Time (Dallas)","CST"]
["Central Time No DST","CSTNO"]
["North American Central Time","CST_NA"]
["Cyprus","CYPRUS"]
["Eastern Europe","EET"]
["Egypt","EGYPT"]
["Eastern Time (New York)","EST"]
["Eastern Time (Indianapolis)","ESTNO"]
["North American Eastern Time","EST_NA"]
["Falkland Islands","FLKLND"]
["Greenwich UK with DST","GMTUK"]
["Greenland","GST"]
["Eastern Greenland","GSTE"]
["Western Greenland","GSTW"]
["Hawaii","HAW"]
["India","INDIA"]
["Iran","IRAN"]
["Iraq","IRAQ"]
["Israel","ISRAEL"]
["Japan","JAPAN"]
["Jordan","JORDAN"]
["Lebanon","LBANON"]
["Mauritius","MAU"]
["Republic of Moldova","MOLDVA"]
["Morocco","MOROCC"]
["Mountain Time (Denver)","MST"]
["Mountain Time (Phoenix)","MSTNO"]
["North American Mountain Time","MST_NA"]
["Namibia","NAT"]
["Nepal","NEPAL"]
["Newfoundland","NFDL"]
["Norfolk Islands","NORFLK"]
["Newfoundland","NST"]
["New Zealand Chatham Islands","NZCHA"]
["New Zealand","NZST"]
["Paraguay","PARAGY"]
["St Pierre and Miquelon","PIERRE"]
["Pakistan","PKT"]
["Palestine","PLST"]
["Pacific Time (Los Angeles)","PST"]
["North American Pacific Time","PST_NA"]
["Russia (UTC+02)","RUS02"]
["Russia (Moscow) (UTC+03)","RUS03"]
["Russia (UTC+04)","RUS04"]
["Russia (UTC+05)","RUS05"]
["Russia (UTC+06)","RUS06"]
["Russia (UTC+07)","RUS07"]
["Russia (UTC+08)","RUS08"]
["Russia (UTC+09)","RUS09"]
["Russia (UTC+10)","RUS10"]
["Russia (UTC+11)","RUS11"]
["Russia (UTC+12)","RUS12"]
["Russia (UTC+13)","RUS13"]
["Russia (UTC+14)","RUS14"]
["Syria","SYRIA"]
["Turkey","TURKEY"]
["England, Ireland, Scotland","UK"]
["Uruguay","URUGUA"]
["UTC+0","UTC"]
["UTC+01","UTC+1"]
["UTC+10","UTC+10"]
["UTC+11","UTC+11"]
["UTC+12","UTC+12"]
["UTC+13","UTC+13"]
["UTC+14","UTC+14"]
["UTC+02","UTC+2"]
["UTC+03","UTC+3"]
["UTC+03:30","UTC+33"]
["UTC+04","UTC+4"]
["UTC+04:30","UTC+43"]
["UTC+05","UTC+5"]
["UTC+05:30","UTC+53"]
["UTC-01","UTC+54"]
["UTC+06","UTC+6"]
["UTC+06:30","UTC+63"]
["UTC+07","UTC+7"]
["UTC+08","UTC+8"]
["UTC+08:30","UTC+83"]
["UTC+09","UTC+9"]
["UTC+09:30","UTC+93"]
["UTC-01","UTC-1"]
["UTC-10","UTC-10"]
["UTC-11","UTC-11"]
["UTC-12","UTC-12"]
["UTC-02","UTC-2"]
["UTC-03","UTC-3"]
["UTC-03:30","UTC-33"]
["UTC-04","UTC-4"]
["UTC-04:30","UTC-43"]
["UTC-05","UTC-5"]
["UTC-06","UTC-6"]
["UTC-07","UTC-7"]
["UTC-08","UTC-8"]
["UTC-8:30","UTC-83"]
["UTC-09","UTC-9"]
["UTC-09:30","UTC-93"]
["Western Africa","WAT"]
["Walldorf (CET)","WDFT"]
["Western Europe","WET"]

{"sheet":"ZactualdurationUnitCode_KUT","index":26,"n_rows":41,"n_cols":2,"rows_kept":41,"cut":false,"hidden":false,"merged":[]}
["Description","Internal Code"]
["Batch","5B"]
["Activity","ACT"]
["Year","ANN"]
["Centimeter","CMT"]
["Day(s)","DAY"]
["Dozen","DZN"]
["Working day(s)","E49"]
["Each","EA"]
["Foot","FOT"]
["Cubic foot","FTQ"]
["Gallon (UK)","GLI"]
["Gallon (US)","GLL"]
["Gram","GRM"]
["Hour(s)","HUR"]
["Inch","INH"]
["Kilogram","KGM"]
["Kilometer","KMT"]
["Pound","LBR"]
["Tonne (UK) or long ton (US)","LTN"]
["Liter","LTR"]
["Minute [unit of time]","MIN"]
["Month","MON"]
["Cubic meter","MTQ"]
["Meter","MTR"]
["Ounce","ONZ"]
["Percent","P1"]
["Second [unit of time]","SEC"]
["Mile (statute mile)","SMI"]
["Ton (US) or short ton (UK/US)","STN"]
["Ton (metric ton)","TNE"]
["Week","WEE"]
["Bag","XBG"]
["Box","XBX"]
["Crate","XCR"]
["Case","XCS"]
["Carton","XCT"]
["Package","XPK"]
["Pallet","XPX"]
["Set","XSX"]
["Yard","YRD"]

{"sheet":"Land_Project","index":27,"n_rows":253,"n_cols":2,"rows_kept":253,"cut":false,"hidden":false,"merged":[]}
["Description","Internal Code"]
["Andorra","AD"]
["United Arab Emirates","AE"]
["Afghanistan","AF"]
["Antigua and Barbuda","AG"]
["Anguilla","AI"]
["Albania","AL"]
["Armenia","AM"]
["Netherlands Antilles (OBSOLETE)","AN"]
["Angola","AO"]
["Antarctica","AQ"]
["Argentina","AR"]
["American Samoa","AS"]
["Austria","AT"]
["Australia","AU"]
["Aruba","AW"]
["Aland Islands","AX"]
["Azerbaijan","AZ"]
["Bosnia and Herzegovina","BA"]
["Barbados","BB"]
["Bangladesh","BD"]
["Belgium","BE"]
["Burkina Faso","BF"]
["Bulgaria","BG"]
["Bahrain","BH"]
["Burundi","BI"]
["Benin","BJ"]
["Saint Barthélemy","BL"]
["Bermuda","BM"]
["Brunei Darussalam","BN"]
["Bolivia","BO"]
["Bonaire, Sint Eustatius and Saba","BQ"]
["Brazil","BR"]
["Bahamas","BS"]
["Bhutan","BT"]
["Bouvet Islands","BV"]
["Botswana","BW"]
["Belarus","BY"]
["Belize","BZ"]
["Canada","CA"]
["Cocos (Keeling) Islands","CC"]
["Democratic Republic of the Congo","CD"]
["Central African Republic","CF"]
["Congo","CG"]
["Switzerland","CH"]
["Cote d'Ivoire","CI"]
["Cook Islands","CK"]
["Chile","CL"]
["Cameroon","CM"]
["China","CN"]
["Colombia","CO"]
["Costa Rica","CR"]
["(OBSOLETE) Serbia and Montenegro","CS"]
["Cuba","CU"]
["Cape Verde","CV"]
["Curaçao","CW"]
["Christmas Island","CX"]
["Cyprus","CY"]
["Czech Republic","CZ"]
["Germany","DE"]
["Djibouti","DJ"]
["Denmark","DK"]
["Dominica","DM"]
["Dominican Republic","DO"]
["Algeria","DZ"]
["Ecuador","EC"]
["Estonia","EE"]
["Egypt","EG"]
["West Sahara","EH"]
["Eritrea","ER"]
["Spain","ES"]
["Ethiopia","ET"]
["Finland","FI"]
["Fiji","FJ"]
["Falkland Islands","FK"]
["Micronesia","FM"]
["Faroe Islands","FO"]
["France","FR"]
["Gabon","GA"]
["United Kingdom","GB"]
["Grenada","GD"]
["Georgia","GE"]
["French Guyana","GF"]
["Guernsey","GG"]
["Ghana","GH"]
["Gibraltar","GI"]
["Greenland","GL"]
["Gambia","GM"]
["Guinea","GN"]
["Guadeloupe","GP"]
["Equatorial Guinea","GQ"]
["Greece","GR"]
["South Georgia and the Southern Sandwich Islands","GS"]
["Guatemala","GT"]
["Guam","GU"]
["Guinea-Bissau","GW"]
["Guyana","GY"]
["Hong Kong","HK"]
["Heard and McDonald Islands","HM"]
["Honduras","HN"]
["Croatia","HR"]
["Haiti","HT"]
["Hungary","HU"]
["Indonesia","ID"]
["Ireland","IE"]
["Israel","IL"]
["Isle Of Man","IM"]
["India","IN"]
["British Indian Ocean Territory","IO"]
["Iraq","IQ"]
["Iran","IR"]
["Iceland","IS"]
["Italy","IT"]
["Jersey","JE"]
["Jamaica","JM"]
["Jordan","JO"]
["Japan","JP"]
["Kenya","KE"]
["Kyrgyzstan","KG"]
["Cambodia","KH"]
["Kiribati","KI"]
["Comoros","KM"]
["Saint Kitts and Nevis","KN"]
["North Korea","KP"]
["South Korea","KR"]
["Kuwait","KW"]
["Cayman Islands","KY"]
["Kazakhstan","KZ"]
["Laos","LA"]
["Lebanon","LB"]
["St. Lucia","LC"]
["Liechtenstein","LI"]
["Sri Lanka","LK"]
["Liberia","LR"]
["Lesotho","LS"]
["Lithuania","LT"]
["Luxembourg","LU"]
["Latvia","LV"]
["Libya","LY"]
["Morocco","MA"]
["Monaco","MC"]
["Moldova","MD"]
["Montenegro","ME"]
["Saint Martin","MF"]
["Madagascar","MG"]
["Marshall Islands","MH"]
["North Macedonia","MK"]
["Mali","ML"]
["Myanmar","MM"]
["Mongolia","MN"]
["Macao","MO"]
["North Mariana Islands","MP"]
["Martinique","MQ"]
["Mauritania","MR"]
["Montserrat","MS"]
["Malta","MT"]
["Mauritius","MU"]
["Maldives","MV"]
["Malawi","MW"]
["Mexico","MX"]
["Malaysia","MY"]
["Mozambique","MZ"]
["Namibia","NA"]
["New Caledonia","NC"]
["Niger","NE"]
["Norfolk Islands","NF"]
["Nigeria","NG"]
["Nicaragua","NI"]
["Netherlands","NL"]
["Norway","NO"]
["Nepal","NP"]
["Nauru","NR"]
["Niue","NU"]
["New Zealand","NZ"]
["Oman","OM"]
["Panama","PA"]
["Peru","PE"]
["French Polynesia","PF"]
["Papua New Guinea","PG"]
["Philippines","PH"]
["Pakistan","PK"]
["Poland","PL"]
["St. Pierre and Miquelon","PM"]
["Pitcairn Islands","PN"]
["Puerto Rico","PR"]
["Palestine, State of","PS"]
["Portugal","PT"]
["Palau","PW"]
["Paraguay","PY"]
["Qatar","QA"]
["Reunion","RE"]
["Romania","RO"]
["Serbia","RS"]
["Russian Federation","RU"]
["Rwanda","RW"]
["Saudi Arabia","SA"]
["Solomon Islands","SB"]
["Seychelles","SC"]
["Sudan","SD"]
["Sweden","SE"]
["Singapore","SG"]
["St. Helena","SH"]
["Slovenia","SI"]
["Svalbard","SJ"]
["Slovakia","SK"]
["Sierra Leone","SL"]
["San Marino","SM"]
["Senegal","SN"]
["Somalia","SO"]
["Suriname","SR"]
["Republic of South Sudan","SS"]
["Sao Tome and Principe","ST"]
["El Salvador","SV"]
["Sint Maarten","SX"]
["Syria","SY"]
["The Kingdom of Eswatini","SZ"]
["Turksh Caicosin","TC"]
["Chad","TD"]
["French Southern Territories","TF"]
["Togo","TG"]
["Thailand","TH"]
["Tajikistan","TJ"]
["Tokelau Islands","TK"]
["Timor-Leste","TL"]
["Turkmenistan","TM"]
["Tunisia","TN"]
["Tonga","TO"]
["Turkey","TR"]
["Trinidad,Tobago","TT"]
["Tuvalu","TV"]
["Taiwan","TW"]
["Tanzania","TZ"]
["Ukraine","UA"]
["Uganda","UG"]
["American Minor Outlying Islands","UM"]
["United States","US"]
["Uruguay","UY"]
["Uzbekistan","UZ"]
["Vatican City","VA"]
["St. Vincent","VC"]
["Venezuela","VE"]
["British Virgin Islands","VG"]
["American Virgin Islands","VI"]
["Vietnam","VN"]
["Vanuatu","VU"]
["Wallis and Futuna Islands","WF"]
["Samoa","WS"]
["Kosovo","XK"]
["Yemen","YE"]
["Mayotte","YT"]
["South Africa","ZA"]
["Zambia","ZM"]
["Zimbabwe","ZW"]

{"sheet":"ZpotentialcurrencyCode_KUT","index":28,"n_rows":203,"n_cols":2,"rows_kept":203,"cut":false,"hidden":false,"merged":[]}
["Description","Internal Code"]
["UAE Dirham","AED"]
["Afghani","AFN"]
["Lek","ALL"]
["Armenian Dram","AMD"]
["Netherlands Antillian Guilder","ANG"]
["Kwanza","AOA"]
["Argentine Peso","ARS"]
["Australian Dollar","AUD"]
["Aruban Guilder","AWG"]
["Azerbaijanian Manat","AZN"]
["Convertible Marks","BAM"]
["Barbados Dollar","BBD"]
["Taka","BDT"]
["Bulgarian Lev","BGN"]
["Bahraini Dinar","BHD"]
["Burundi Franc","BIF"]
["Bermudian Dollar (customarily known as Bermuda Dollar)","BMD"]
["Brunei Dollar","BND"]
["Boliviano","BOB"]
["Mvdol","BOV"]
["Brazilian Real","BRL"]
["Bahamian Dollar","BSD"]
["Ngultrum","BTN"]
["Pula","BWP"]
["Belarusian Ruble","BYN"]
["Belarusian Ruble","BYR"]
["Belize Dollar","BZD"]
["Canadian Dollar","CAD"]
["Congolese Franc","CDF"]
["WIR Euro","CHE"]
["Swiss Franc","CHF"]
["WIR Franc","CHW"]
["Unidad de Fomento","CLF"]
["Chilean Peso","CLP"]
["Yuan Renminbi","CNY"]
["Colombian Peso","COP"]
["Unidad de Valor Real","COU"]
["Costa Rican Colon","CRC"]
["Old Serbian Dinar (replaced by Serbaian Dinar RSD)","CSD"]
["Peso Convertible","CUC"]
["Cuban Peso","CUP"]
["Cabo Verde Escudo","CVE"]
["Old Cyprus Pound (replaced by Euro EUR)","CYP"]
["Czech Koruna","CZK"]
["Djibouti Franc","DJF"]
["Danish Krone","DKK"]
["Dominican Peso","DOP"]
["Algerian Dinar","DZD"]
["Kroon (replaced by Euro EUR)","EEK"]
["Egyptian Pound","EGP"]
["Nakfa","ERN"]
["Ethiopian Birr","ETB"]
["Euro","EUR"]
["Fiji Dollar","FJD"]
["Falkland Islands Pound","FKP"]
["Pound Sterling","GBP"]
["Lari","GEL"]
["Old Ghana Cedi (replaced by Ghana Cedi GHS)","GHC"]
["Ghana Cedi","GHS"]
["Gibraltar Pound","GIP"]
["Dalasi","GMD"]
["Guinea Franc","GNF"]
["Quetzal","GTQ"]
["Old Guinea-Bissau Peso (replaced by Guunea Franc GNF)","GWP"]
["Guyana Dollar","GYD"]
["Hong Kong Dollar","HKD"]
["Lempira","HNL"]
["Kuna","HRK"]
["Gourde","HTG"]
["Forint","HUF"]
["Rupiah","IDR"]
["New Israeli Sheqel","ILS"]
["Indian Rupee","INR"]
["Iraqi Dinar","IQD"]
["Iranian Rial","IRR"]
["Iceland Krona","ISK"]
["Jamaican Dollar","JMD"]
["Jordanian Dinar","JOD"]
["Yen","JPY"]
["Kenyan Shilling","KES"]
["Som","KGS"]
["Riel","KHR"]
["Comoro Franc","KMF"]
["North Korean Won","KPW"]
["Won","KRW"]
["Kuwaiti Dinar","KWD"]
["Cayman Islands Dollar","KYD"]
["Tenge","KZT"]
["Kip","LAK"]
["Lebanese Pound","LBP"]
["Sri Lanka Rupee","LKR"]
["Liberian Dollar","LRD"]
["Loti","LSL"]
["Lithuanian Litas (replaced by Euro EUR as of 01.01.2015))","LTL"]
["Old Latvian Lats (replaced by Euro EUR)","LVL"]
["Libyan Dinar","LYD"]
["Moroccan Dirham","MAD"]
["Moldovan Leu","MDL"]
["Malagascy Ariary","MGA"]
["Denar","MKD"]
["Kyat","MMK"]
["Tugrik","MNT"]
["Pataca","MOP"]
["Ouguiya","MRO"]
["Ouguiya","MRU"]
["Old Maltese Lira (replaced by Euro EUR)","MTL"]
["Mauritius Rupee","MUR"]
["Rufiyaa","MVR"]
["Kwacha","MWK"]
["Mexican Peso","MXN"]
["Mexican Unidad de Inversion (UID)","MXV"]
["Malaysian Ringgit","MYR"]
["Mozambique Metical","MZN"]
["Namibia Dollar","NAD"]
["Naira","NGN"]
["Cordoba Oro","NIO"]
["Norwegian Krone","NOK"]
["Nepalese Rupee","NPR"]
["New Zealand Dollar","NZD"]
["Rial Omani","OMR"]
["Balboa","PAB"]
["Nuevo Sol","PEN"]
["Kina","PGK"]
["Philippine Peso","PHP"]
["Pakistan Rupee","PKR"]
["Zloty","PLN"]
["Guarani","PYG"]
["Qatari Rial","QAR"]
["Old Romanian Leu (replacey by New Romanian Leu RON)","ROL"]
["Romanian Leu","RON"]
["Serbian Dinar","RSD"]
["Russian Ruble","RUB"]
["Rwanda Franc","RWF"]
["Saudi Riyal","SAR"]
["Solomon Islands Dollar","SBD"]
["Seychelles Rupee","SCR"]
["Old Sudanese Dinar (replaced by Sudanese Pound SDG)","SDD"]
["Sudanese Pound","SDG"]
["Swedish Krona","SEK"]
["Singapore Dollar","SGD"]
["Saint Helena Pound","SHP"]
["Old Tolar (replaced by Euro EUR)","SIT"]
["Old Slovak Koruna (replaced by Euro EUR)","SKK"]
["Leone","SLL"]
["Somali Shilling","SOS"]
["Surinam Dollar","SRD"]
["South Sudanese Pound","SSP"]
["Dobra","STD"]
["Dobra","STN"]
["El Salvador Colon","SVC"]
["Syrian Pound","SYP"]
["Lilangeni","SZL"]
["Baht","THB"]
["Somoni","TJS"]
["Turkmenistan Old Manat (replaced by Turkmenistan New Manat TMT)","TMM"]
["Turkmenistan New Manat","TMT"]
["Tunisian Dinar","TND"]
["Pa'anga","TOP"]
["Turkish Lira","TRY"]
["Trinidad and Tobago Dollar","TTD"]
["New Taiwan Dollar","TWD"]
["Tanzanian Shilling","TZS"]
["Hryvnia","UAH"]
["Uganda Shilling","UGX"]
["US Dollar","USD"]
["US Dollar (Next day)","USN"]
["US Dollar (Same day) - not active any more","USS"]
["Uruguay Peso en Unidades","UYI"]
["Peso Uruguayo","UYU"]
["Uzbekistan Sum","UZS"]
["Old Bolivar (replaced by Bolivar VEF)","VEB"]
["Bolivar","VEF"]
["Bolivar Soberano","VES"]
["Dong","VND"]
["Vatu","VUV"]
["Tala","WST"]
["CFA Franc BEAC","XAF"]
["Silver","XAG"]
["Gold","XAU"]
["Bond Markets Units European Composite Unit (EURCO)","XBA"]
["European Monetary Unit (E.M.U.-6)","XBB"]
["European Unit of Account 9(E.U.A.-9)","XBC"]
["European Unit of Account 17(E.U.A.-17)","XBD"]
["East Caribbean Dollar","XCD"]
["SDR (Special Drawing Right)","XDR"]
["Gold-Franc - not active any more","XFO"]
["UIC-Franc - not active any more","XFU"]
["CFA Franc BCEAO","XOF"]
["Palladium","XPD"]
["CFP Franc","XPF"]
["Platinum","XPT"]
["Sucre","XSU"]
["Codes specifically reserved for testing purposes","XTS"]
["ADB Unit of Account","XUA"]
["Codes for no currency transactions","XXX"]
["Yemeni Rial","YER"]
["Rand","ZAR"]
["Old Zambian Kwacha (replaced by Zambian Kwacha ZMW)","ZMK"]
["Zambian Kwacha","ZMW"]
["Old First Zimbabwe Dollar (replaced by Zimbabwe Dollar ZWL)","ZWD"]
["Zimbabwe Dollar","ZWL"]
["Old Second Zimbabwe Dollar (replaced by Zimbabwe Dollar ZWL)","ZWN"]

{"sheet":"ZprobabilityUnitCode_KUT","index":29,"n_rows":41,"n_cols":2,"rows_kept":41,"cut":false,"hidden":false,"merged":[]}
["Description","Internal Code"]
["Batch","5B"]
["Activity","ACT"]
["Year","ANN"]
["Centimeter","CMT"]
["Day(s)","DAY"]
["Dozen","DZN"]
["Working day(s)","E49"]
["Each","EA"]
["Foot","FOT"]
["Cubic foot","FTQ"]
["Gallon (UK)","GLI"]
["Gallon (US)","GLL"]
["Gram","GRM"]
["Hour(s)","HUR"]
["Inch","INH"]
["Kilogram","KGM"]
["Kilometer","KMT"]
["Pound","LBR"]
["Tonne (UK) or long ton (US)","LTN"]
["Liter","LTR"]
["Minute [unit of time]","MIN"]
["Month","MON"]
["Cubic meter","MTQ"]
["Meter","MTR"]
["Ounce","ONZ"]
["Percent","P1"]
["Second [unit of time]","SEC"]
["Mile (statute mile)","SMI"]
["Ton (US) or short ton (UK/US)","STN"]
["Ton (metric ton)","TNE"]
["Week","WEE"]
["Bag","XBG"]
["Box","XBX"]
["Crate","XCR"]
["Case","XCS"]
["Carton","XCT"]
["Package","XPK"]
["Pallet","XPX"]
["Set","XSX"]
["Yard","YRD"]

{"sheet":"Product_pillar","index":30,"n_rows":5,"n_cols":2,"rows_kept":5,"cut":false,"hidden":false,"merged":[]}
["Description","Internal Code"]
["Masonry","101"]
["Reinforcement","111"]
["Anchoring & Fixings","121"]
["Other","131"]

{"sheet":"Source","index":31,"n_rows":4,"n_cols":2,"rows_kept":4,"cut":false,"hidden":false,"merged":[]}
["Description","Internal Code"]
["Not applicable","101"]
["Internal","111"]
["External","121"]

{"sheet":"Task_status","index":32,"n_rows":4,"n_cols":2,"rows_kept":4,"cut":false,"hidden":false,"merged":[]}
["Description","Internal Code"]
["Red","101"]
["Amber","111"]
["Green","121"]